Service Area,Service Division,Expense Type,Expense Code,Detailed Expense Type,Payment Date,Transaction Number,Amount Exc Vat,Supplier Name,Supplier Num
Assistant Chief Executive,Planning & Performance Division,Employees,040149,"Recruitment, Instruction and Training",03-Feb-2014,2700242-PDPT,"4,686.00",PDP.,85579
Assistant Chief Executive,Partnerships & Community Engagement Div.,Transfer Payments,525030,Other,03-Feb-2014,2699910-13-016,"4,000.00",1ST SEDGEFIELD SCOUT GROUP.,54598
Assistant Chief Executive,Partnerships & Community Engagement Div.,Transfer Payments,525030,Other,03-Feb-2014,2699968-13-030,"4,000.00",BOWBURN COMMUNITY ASSOCIATION.,48178
Assistant Chief Executive,Partnerships & Community Engagement Div.,Transfer Payments,525030,Other,03-Feb-2014,2700024-13-035,"3,680.00",COXHOE UNITED FOOTBALL CLUB.,127190
Assistant Chief Executive,Partnerships & Community Engagement Div.,Transfer Payments,525030,Other,03-Feb-2014,2700025-13-036,"4,000.00",COXHOE VILLAGE HALL ASSOCIATION.,48526
Assistant Chief Executive,Partnerships & Community Engagement Div.,Transfer Payments,525030,Other,03-Feb-2014,2700044-13-007,"4,000.00",DEAF HILL WARD REGENERATION PARTNERSHIP.,48626
Assistant Chief Executive,Partnerships & Community Engagement Div.,Transfer Payments,525030,Other,03-Feb-2014,2700078-13-026,"3,830.24",FUTURE LEISURE IN COXHOE (FLIC).,154771
Assistant Chief Executive,Partnerships & Community Engagement Div.,Transfer Payments,525030,Other,03-Feb-2014,2700228-13-024,"2,040.00",NORTH EAST BULLS WHEELCHAIR RUGBY CLUB.,174423
Assistant Chief Executive,Partnerships & Community Engagement Div.,Transfer Payments,525030,Other,03-Feb-2014,2700253-13-031,"2,895.00",PRE SCHOOL LEARNING ALLIANCE.,50501
Assistant Chief Executive,Partnerships & Community Engagement Div.,Transfer Payments,525030,Other,03-Feb-2014,2700257-13-028,"3,850.00",QUARRINGTON HILL COMMUNITY ASSOCIATION.,122389
Assistant Chief Executive,Partnerships & Community Engagement Div.,Transfer Payments,525030,Other,03-Feb-2014,2700285-13-023,"1,932.31",SEDGEFIELD VILLAGE OLYMPICS.,159160
Assistant Chief Executive,Partnerships & Community Engagement Div.,Transfer Payments,525030,Other,03-Feb-2014,2700286-13-025,"3,620.00",SEDGEFIELD YOUTH FOOTBALL CLUB.,174424
Assistant Chief Executive,Partnerships & Community Engagement Div.,Transfer Payments,525030,Other,03-Feb-2014,2700325-13-011,"4,000.00",TRIMDON COMMUNITY COLLEGE YOUTH GROUP FORUM.,61101
Assistant Chief Executive,Partnerships & Community Engagement Div.,Transfer Payments,525030,Other,03-Feb-2014,2700326-13-004,"4,000.00",TRIMDON CONCERT BRASS BAND.,51255
Children and Adult Services,Head of Adults,Third Party Payments,472101,Purchase of Care,03-Feb-2014,2700223-10205,"4,582.88",NEURO PARTNERS LTD.,45414
Children and Adult Services,Head of Adults,Third Party Payments,472101,Purchase of Care,03-Feb-2014,2700223-10707,"4,000.00",NEURO PARTNERS LTD.,45414
Children and Adult Services,Head of Adults,Supplies and Services,338366,Services,03-Feb-2014,2699993-13464,593.23,CARE ABILITY.,43069
Children and Adult Services,Head of Adults,Supplies and Services,338366,Services,03-Feb-2014,2699993-13465,590.86,CARE ABILITY.,43069
Children and Adult Services,Head of Adults,Supplies and Services,338366,Services,03-Feb-2014,2699993-13467,"1,011.83",CARE ABILITY.,43069
Children and Adult Services,Head of Adults,Supplies and Services,338366,Services,03-Feb-2014,2699993-13469,"2,243.32",CARE ABILITY.,43069
Children and Adult Services,Head of Adults,Supplies and Services,338366,Services,03-Feb-2014,2699993-13471,700.92,CARE ABILITY.,43069
Children and Adult Services,Head of Adults,Supplies and Services,338366,Services,03-Feb-2014,2699993-13479,753.32,CARE ABILITY.,43069
Children and Adult Services,Head of Adults,Supplies and Services,338366,Services,03-Feb-2014,2699993-13480,"2,813.01",CARE ABILITY.,43069
Children and Adult Services,Commissioning inc Supporting People,Supplies and Services,384700,Miscellaneous Expenses,03-Feb-2014,2700291-CCA26,"10,000.00",SIGNPOST ADVICE & INFORMATION CENTRE.,89701
Children and Adult Services,Commissioning inc Supporting People,Supplies and Services,384700,Miscellaneous Expenses,03-Feb-2014,2700299-426,"10,000.00",ST PAULS CENTRE LTD.,136398
Children and Adult Services,Commissioning inc Supporting People,Supplies and Services,384700,Miscellaneous Expenses,03-Feb-2014,2700337-CCA50,"10,000.00",WEST RAINTON & LEAMSIDE COMMUNITY ASSOCIATION.,93466
Children and Adult Services,Commissioning inc Supporting People,Supplies and Services,384700,Miscellaneous Expenses,03-Feb-2014,2700338-2610,"3,500.00",WHEATLEY HILL COMMUNITY ASSOCIATION.,160120
Children and Adult Services,Commissioning inc Supporting People,Third Party Payments,479111,Purchase of Care,03-Feb-2014,2699942-058,"13,296.00",ASPIRE LEARNING SUPPORT & WELLING CIC.,162546
Children and Adult Services,Commissioning inc Supporting People,Third Party Payments,479111,Purchase of Care,03-Feb-2014,2699942-059,"1,490.00",ASPIRE LEARNING SUPPORT & WELLING CIC.,162546
Children and Adult Services,Head of Adults,Employees,080025,Agency Staff,03-Feb-2014,2700313-4810001448,813.75,TEES ESK & WEAR VALLEYS NHS FOUNDATION TRUST.,46316
Children and Adult Services,Head of Adults,Employees,080025,Agency Staff,03-Feb-2014,2700313-4810001450,"1,627.42",TEES ESK & WEAR VALLEYS NHS FOUNDATION TRUST.,46316
Children and Adult Services,Head of Adults,Employees,080025,Agency Staff,03-Feb-2014,2700313-4810001449,"1,627.42",TEES ESK & WEAR VALLEYS NHS FOUNDATION TRUST.,46316
Children and Adult Services,Head of Adults,Third Party Payments,478101,Purchase of Care,03-Feb-2014,2700237-16718,"1,017.63",OAKLEA TRUST.,46407
Children and Adult Services,Head of Adults,Third Party Payments,478101,Purchase of Care,03-Feb-2014,2700237-16719,690.54,OAKLEA TRUST.,46407
Children and Adult Services,Head of Adults,Employees,080025,Agency Staff,03-Feb-2014,2700313-4810001454,"3,583.09",TEES ESK & WEAR VALLEYS NHS FOUNDATION TRUST.,46316
Children and Adult Services,Head of Adults,Third Party Payments,478111,Purchase of Care,03-Feb-2014,2700202-1933475,"1,501.20",MENCAP.,44684
Children and Adult Services,Commissioning inc Supporting People,Third Party Payments,479101,Purchase of Care,03-Feb-2014,2699943-14/043198,"5,833.00",ASTRAL PUBLIC SERVICES LTD.,173848
Children and Adult Services,Commissioning inc Supporting People,Third Party Payments,479111,Purchase of Care,03-Feb-2014,2699994-2066,"2,399.93",CARERS FEDERATION LTD.,168541
Children and Adult Services,Head of Adults,Supplies and Services,338066,Services,03-Feb-2014,2700244-347,"7,750.00",PEOPLETOO LTD.,159144
Children and Adult Services,Education,Supplies and Services,384199,Miscellaneous Expenses,03-Feb-2014,2700205-2174,"2,000.00",MID NITE EXPRESS.,44707
Children and Adult Services,Early Intervention and Involvement,Supplies and Services,304403,Equipment and Materials,03-Feb-2014,2700018-4100410927,500.00,CONSETT AMATEUR BOXING CLUB (ABC).,165401
Children and Adult Services,Public Health,Third Party Payments,460802,Contract Payments,03-Feb-2014,2700004-A83050/Q22013,"2,911.08",CESTRIA HEALTH CENTRE.,170746
Children and Adult Services,Public Health,Third Party Payments,460802,Contract Payments,03-Feb-2014,2700009-7910003092,"3,356.92",CITY HOSPITALS SUNDERLAND NHS FOUNDATION TRUST.,48409
Children and Adult Services,Public Health,Third Party Payments,460802,Contract Payments,03-Feb-2014,2700009-7910003584,"8,386.64",CITY HOSPITALS SUNDERLAND NHS FOUNDATION TRUST.,48409
Children and Adult Services,Public Health,Third Party Payments,460802,Contract Payments,03-Feb-2014,2700009-7910003591,"1,723.04",CITY HOSPITALS SUNDERLAND NHS FOUNDATION TRUST.,48409
Children and Adult Services,Public Health,Third Party Payments,460802,Contract Payments,03-Feb-2014,2700009-7910004323,"12,282.76",CITY HOSPITALS SUNDERLAND NHS FOUNDATION TRUST.,48409
Children and Adult Services,Public Health,Third Party Payments,460802,Contract Payments,03-Feb-2014,2700009-7910004330,"2,500.00",CITY HOSPITALS SUNDERLAND NHS FOUNDATION TRUST.,48409
Children and Adult Services,Public Health,Third Party Payments,460802,Contract Payments,03-Feb-2014,2700009-7910005256,"7,710.16",CITY HOSPITALS SUNDERLAND NHS FOUNDATION TRUST.,48409
Children and Adult Services,Public Health,Third Party Payments,460802,Contract Payments,03-Feb-2014,2700009-7910005264,"2,838.24",CITY HOSPITALS SUNDERLAND NHS FOUNDATION TRUST.,48409
Children and Adult Services,Public Health,Third Party Payments,460802,Contract Payments,03-Feb-2014,2700009-7910006211,"11,784.60",CITY HOSPITALS SUNDERLAND NHS FOUNDATION TRUST.,48409
Children and Adult Services,Public Health,Third Party Payments,460802,Contract Payments,03-Feb-2014,2700009-7910006212,"12,870.00",CITY HOSPITALS SUNDERLAND NHS FOUNDATION TRUST.,48409
Children and Adult Services,Public Health,Third Party Payments,460802,Contract Payments,03-Feb-2014,2700009-7910006213,"15,479.76",CITY HOSPITALS SUNDERLAND NHS FOUNDATION TRUST.,48409
Children and Adult Services,Public Health,Third Party Payments,460802,Contract Payments,03-Feb-2014,2700099-A83044OCT2013,"2,383.83",HORDEN GROUP PRACTICE.,61996
Children and Adult Services,Public Health,Third Party Payments,460802,Contract Payments,03-Feb-2014,2700292,"2,875.00",SILVERDALE FAMILY PRACTICE.,170572
Children and Adult Services,Public Health,Premises,145009,Cleaning and Domestic Supplies,03-Feb-2014,2700012-3980003288,"1,579.59",CO DURHAM & DARLINGTON NHS FOUNDATION TRUST.,43222
Children and Adult Services,Public Health,Third Party Payments,460803,Contract Payments,03-Feb-2014,2699939,"3,090.14",ASDA PHARMACY.,168641
Children and Adult Services,Public Health,Third Party Payments,460803,Contract Payments,03-Feb-2014,2699961,"1,374.48",BOOTS THE CHEMISTS LTD.,120493
Children and Adult Services,Public Health,Third Party Payments,460803,Contract Payments,03-Feb-2014,2699961,"1,025.89",BOOTS THE CHEMISTS LTD.,120493
Children and Adult Services,Public Health,Third Party Payments,460803,Contract Payments,03-Feb-2014,2699962,"1,356.81",BOOTS THE CHEMISTS LTD.,120493
Children and Adult Services,Public Health,Third Party Payments,460803,Contract Payments,03-Feb-2014,2699965,"1,886.89",BOOTS THE CHEMISTS LTD.,120493
Children and Adult Services,Public Health,Third Party Payments,460803,Contract Payments,03-Feb-2014,2700006-NRT/DEC13/FLE10,848.82,CHEAPSIDE CHEMIST.,167101
Children and Adult Services,Public Health,Third Party Payments,460802,Contract Payments,03-Feb-2014,2700074,"9,447.71",FERRYHILL & CHILTON MEDICAL PRACTICE.,51120
Children and Adult Services,Public Health,Third Party Payments,460803,Contract Payments,03-Feb-2014,2700124,"2,268.70",JF EILBECK CHEMIST LTD.,166282
Children and Adult Services,Public Health,Third Party Payments,460803,Contract Payments,03-Feb-2014,2700125-FKG29/NRT/1213,872.59,JF EILBECK CHEMIST LTD.,166282
Children and Adult Services,Public Health,Third Party Payments,460803,Contract Payments,03-Feb-2014,2700209,552.56,MJ & A TAYLOR.,167126
Children and Adult Services,Public Health,Third Party Payments,460803,Contract Payments,03-Feb-2014,2700012-3910002420,"1,192,739.44",CO DURHAM & DARLINGTON NHS FOUNDATION TRUST.,43222
Children and Adult Services,Public Health,Third Party Payments,460802,Contract Payments,03-Feb-2014,2700297-3396,"25,278.20",SOCIAL RESOURCE CENTRE LTD.,46430
Children and Adult Services,Central Charges,Long Term Debtors,924003,Independent sector care providers,03-Feb-2014,2700245,"8,300.00",PERFECT CARE LTD T/A BELMONT GRANGE CARE HOME.,42900
Children and Adult Services,Early Intervention and Involvement,Supplies and Services,304259,Equipment and Materials,03-Feb-2014,2699987-INV165208,656.00,CACHE.,43054
Children and Adult Services,Education,Supplies and Services,384199,Miscellaneous Expenses,03-Feb-2014,2700312-5041614,"7,344.00",TCV EMPLOYMENT & TRAINING SERVICES LTD.,166623
Dedicated Schools Grant,Dedicated Schools Grant,Supplies and Services,342053,Computers and Communications,03-Feb-2014,2700028-94398,907.50,CRICK SOFTWARE LTD.,43321
Children and Adult Services,Education,Supplies and Services,338099,Services,03-Feb-2014,2700318-2831,700.00,THE WORK PLACE (AYCLIFFE) LTD.,52492
Dedicated Schools Grant,Dedicated Schools Grant,Third Party Payments,440080,Other Third Party Payments,03-Feb-2014,2700048-C01827,"18,700.53",DERWENTSIDE COLLEGE.,43456
Dedicated Schools Grant,Dedicated Schools Grant,Third Party Payments,440080,Other Third Party Payments,03-Feb-2014,2700227-0000016319,"13,727.42",NORTH EAST AUTISM SOCIETY.,46548
Dedicated Schools Grant,Dedicated Schools Grant,Third Party Payments,440080,Other Third Party Payments,03-Feb-2014,2700227-0000016320,"10,470.48",NORTH EAST AUTISM SOCIETY.,46548
Dedicated Schools Grant,Dedicated Schools Grant,Third Party Payments,440080,Other Third Party Payments,03-Feb-2014,2700227-0000016321,"11,892.36",NORTH EAST AUTISM SOCIETY.,46548
Dedicated Schools Grant,Dedicated Schools Grant,Third Party Payments,440080,Other Third Party Payments,03-Feb-2014,2700227-0000016322,"14,092.01",NORTH EAST AUTISM SOCIETY.,46548
Dedicated Schools Grant,Dedicated Schools Grant,Third Party Payments,440080,Other Third Party Payments,03-Feb-2014,2700227-0000016328,"2,745.48",NORTH EAST AUTISM SOCIETY.,46548
Dedicated Schools Grant,Dedicated Schools Grant,Third Party Payments,440080,Other Third Party Payments,03-Feb-2014,2700227-0000016329,"2,094.09",NORTH EAST AUTISM SOCIETY.,46548
Dedicated Schools Grant,Dedicated Schools Grant,Third Party Payments,440080,Other Third Party Payments,03-Feb-2014,2700227-0000016330,"2,378.47",NORTH EAST AUTISM SOCIETY.,46548
Dedicated Schools Grant,Dedicated Schools Grant,Third Party Payments,440080,Other Third Party Payments,03-Feb-2014,2700227-0000016331,"2,818.40",NORTH EAST AUTISM SOCIETY.,46548
Dedicated Schools Grant,Dedicated Schools Grant,Transport,230005,Contract Hire,03-Feb-2014,2700055-DC03JAN2013,"1,140.00",DUNCAN G CUMMINGS T/A DC TAXIS.,155555
Dedicated Schools Grant,Dedicated Schools Grant,Transport,230005,Contract Hire,03-Feb-2014,2700204-INV-38,546.00,MICHAEL COBB (T/A HAIL TAXIS).,159384
Dedicated Schools Grant,Dedicated Schools Grant,Supplies and Services,384199,Miscellaneous Expenses,03-Feb-2014,2700313-4810001232,920.56,TEES ESK & WEAR VALLEYS NHS FOUNDATION TRUST.,46316
Dedicated Schools Grant,Dedicated Schools Grant,Supplies and Services,384199,Miscellaneous Expenses,03-Feb-2014,2700313-4810001452,920.56,TEES ESK & WEAR VALLEYS NHS FOUNDATION TRUST.,46316
Dedicated Schools Grant,Dedicated Schools Grant,Transport,230005,Contract Hire,03-Feb-2014,2700324-55,"2,320.00",TRIDENT TAXIS.,52602
Children and Adult Services,Childrens care,Supplies and Services,338027,Services,03-Feb-2014,2699923-427,650.00,ALAN GAUNT & ASSOCIATES LTD.,155633
Corporate Resources,Internal Audit and Insurance,Supplies and Services,352001,Conference Expenses,03-Feb-2014,2700005-INV000010410,895.00,CHARTERED INSTITUTE OF INTERNAL AUDITORS.,146106
Corporate Resources,I.C.T. Services,Supplies and Services,344033,Telephones,03-Feb-2014,2700309-04921575,"1,672.97",TALKTALK BUSINESS.,50337
Corporate Resources,I.C.T. Services,Stock,926900,Stock in hand-Inventory system,03-Feb-2014,2700107-1672179,961.77,INSIGHT DIRECT (UK) LTD.,44122
Corporate Resources,I.C.T. Services,Supplies and Services,304639,Equipment and Materials,03-Feb-2014,2700322-IN123068853,571.20,TOSHIBA INFORMATION SYSTEMS (UK) LTD.,54506
Neighbourhood Services,Direct Services,Premises,125009,Rents,03-Feb-2014,2700015-RP457,"1,349.01",COAL INDUSTRY SOCIAL WELFARE ORGANISATION.,111668
Neighbourhood Services,Direct Services,Premises,145009,Cleaning and Domestic Supplies,03-Feb-2014,2700222-156,"4,234.91",NE GREEN WASTE RECYCLING LTD.,155496
Neighbourhood Services,Direct Services,Supplies and Services,338099,Services,03-Feb-2014,2700046-3412,719.00,DEERNESS KENNELS.,48636
Neighbourhood Services,Direct Services,Supplies and Services,304221,Equipment and Materials,03-Feb-2014,2699998-446146,"1,010.00",CARRS BILLINGTON AGRICULTURE.,43088
Neighbourhood Services,Direct Services,Supplies and Services,304358,Equipment and Materials,03-Feb-2014,2700333-61923,"1,580.00",WARREN ACCESS LTD.,119647
Neighbourhood Services,Direct Services,Supplies and Services,338099,Services,03-Feb-2014,2700016-3205,705.00,COMMA PRINT LTD.,168452
Neighbourhood Services,Direct Services,Transport,230005,Contract Hire,03-Feb-2014,2700182-101989,595.00,LONDONDERRY GARAGE LTD.,44534
Neighbourhood Services,Direct Services,Transport,230005,Contract Hire,03-Feb-2014,2700182-103046,"1,445.00",LONDONDERRY GARAGE LTD.,44534
Neighbourhood Services,Direct Services,Transport,230005,Contract Hire,03-Feb-2014,2700232-SL02202351INV,521.04,NORTHGATE VEHICLE HIRE LTD.,45497
Neighbourhood Services,Culture & Sport,"Vehicles, Equipment, Furniture and Fittings",912521,Purchase-furniture and fittings,03-Feb-2014,2700206-131068,"48,279.24",MIKE AYRES DESIGN LTD.,91388
Neighbourhood Services,Culture & Sport,Supplies and Services,384167,Miscellaneous Expenses,03-Feb-2014,2700258-3460,"1,250.00",QUEST & NBS.,142068
Neighbourhood Services,Culture & Sport,Supplies and Services,304259,Equipment and Materials,03-Feb-2014,2700225-10395,610.85,NICOLL INDUSTRIES LTD.,125243
Neighbourhood Services,Technical Services,Supplies and Services,338045,Services,03-Feb-2014,2700212-235374-6/4/14,600.00,MR ADRIAN MAITRA.,162963
Neighbourhood Services,Technical Services,Stock,926004,Stock,03-Feb-2014,2700281-437126,"9,746.08",SALT UNION LTD.,54230
Neighbourhood Services,Direct Services,Transport,230005,Contract Hire,03-Feb-2014,2700290-10446173,"1,193.50",SHB HIRE LTD.,50796
Neighbourhood Services,Direct Services,Supplies and Services,304221,Equipment and Materials,03-Feb-2014,2700102-B33/0062839,832.34,HOWDENS JOINERY LTD.,44065
Neighbourhood Services,Direct Services,Third Party Payments,430100,Rendered by Private Contractors,03-Feb-2014,2700277-JAN03414,650.00,RW CHICKEN (SCAFFOLDING) LTD.,76902
Neighbourhood Services,Direct Services,Supplies and Services,384956,Miscellaneous Expenses,03-Feb-2014,2700068-Y01135231,"2,641.00",ENVIRONMENT AGENCY.,43691
Neighbourhood Services,Redundant Direct Services,Supplies and Services,304221,Equipment and Materials,03-Feb-2014,2699921-19164574,687.52,AGGREGATE INDUSTRIES UK LTD.,42655
Neighbourhood Services,Redundant Direct Services,Supplies and Services,304221,Equipment and Materials,03-Feb-2014,2699921-19164575,624.08,AGGREGATE INDUSTRIES UK LTD.,42655
Neighbourhood Services,Technical Services,Construction Work,908105,Construction work,03-Feb-2014,2700022-10011,"2,077.06",COUPE LINE LTD.,43305
Neighbourhood Services,Technical Services,Construction Work,908105,Construction work,03-Feb-2014,2700022-10014,"1,373.05",COUPE LINE LTD.,43305
Neighbourhood Services,Technical Services,Construction Work,908105,Construction work,03-Feb-2014,2700022-10016,"1,456.06",COUPE LINE LTD.,43305
Neighbourhood Services,Technical Services,Construction Work,908108,Capital - Surface Dressing,03-Feb-2014,2700156-14059,"100,050.35",KIELY BROS LTD.,49556
Neighbourhood Services,Projects and Business services,Third Party Payments,430116,Rendered by Private Contractors,03-Feb-2014,2700084-043143,850.00,GRONTMIJ GROUP LTD T/A GRONTMIJ LTD.,170588
Neighbourhood Services,Technical Services,Stock,926900,Stock in hand-Inventory system,03-Feb-2014,2699944-SIN210370,"1,088.10",ATF SUPPLIES LTD.,127844
Neighbourhood Services,Technical Services,Stock,926900,Stock in hand-Inventory system,03-Feb-2014,2699944-SIN210373,608.36,ATF SUPPLIES LTD.,127844
Neighbourhood Services,Technical Services,Stock,926900,Stock in hand-Inventory system,03-Feb-2014,2700075-OP/I275723,504.00,FLEMING & CO (MACHINERY) LTD.,43783
Neighbourhood Services,Technical Services,Stock,926900,Stock in hand-Inventory system,03-Feb-2014,2700108-434672,"1,453.20",INSTARMAC GROUP PLC.,44123
Neighbourhood Services,Technical Services,Stock,926900,Stock in hand-Inventory system,03-Feb-2014,2700128-NI023799,"11,385.00",JOHN MACLEAN & SONS ELECTRICAL (DINGWALL) LTD.,44264
Neighbourhood Services,Technical Services,Stock,926900,Stock in hand-Inventory system,03-Feb-2014,2700139-STI394170,832.50,JT DOVE LTD.,44305
Neighbourhood Services,Technical Services,Stock,926900,Stock in hand-Inventory system,03-Feb-2014,2700241-XL106258,"1,491.25",PARK ELECTRICAL DISTRIBUTORS LTD.,45579
Neighbourhood Services,Technical Services,Stock,926900,Stock in hand-Inventory system,03-Feb-2014,2700320-N/IN114872,822.42,THOMAS OWEN & SONS (NEWCASTLE) LTD.,46445
Neighbourhood Services,Technical Services,Supplies and Services,304337,Equipment and Materials,03-Feb-2014,2700231-DI20179878,"2,276.05",NORTHERN POWERGRID (NORTHEAST) LTD.,45487
Neighbourhood Services,Technical Services,Supplies and Services,304221,Equipment and Materials,03-Feb-2014,2699920-19239256,"1,806.68",AGGREGATE INDUSTRIES UK LTD.,42655
Neighbourhood Services,Technical Services,Supplies and Services,304221,Equipment and Materials,03-Feb-2014,2699921-19028974,500.00,AGGREGATE INDUSTRIES UK LTD.,42655
Neighbourhood Services,Technical Services,Supplies and Services,304221,Equipment and Materials,03-Feb-2014,2699921-19133954,603.88,AGGREGATE INDUSTRIES UK LTD.,42655
Neighbourhood Services,Technical Services,Supplies and Services,304221,Equipment and Materials,03-Feb-2014,2699921-19147631,"1,702.00",AGGREGATE INDUSTRIES UK LTD.,42655
Neighbourhood Services,Technical Services,Supplies and Services,304221,Equipment and Materials,03-Feb-2014,2699921-19148473,"1,588.42",AGGREGATE INDUSTRIES UK LTD.,42655
Neighbourhood Services,Technical Services,Supplies and Services,304221,Equipment and Materials,03-Feb-2014,2699921-19148474,"1,203.60",AGGREGATE INDUSTRIES UK LTD.,42655
Neighbourhood Services,Technical Services,Supplies and Services,304221,Equipment and Materials,03-Feb-2014,2699921-19148475,"2,799.54",AGGREGATE INDUSTRIES UK LTD.,42655
Neighbourhood Services,Technical Services,Supplies and Services,304221,Equipment and Materials,03-Feb-2014,2699921-19148476,"7,922.40",AGGREGATE INDUSTRIES UK LTD.,42655
Neighbourhood Services,Technical Services,Supplies and Services,304221,Equipment and Materials,03-Feb-2014,2699921-19152607,"1,455.92",AGGREGATE INDUSTRIES UK LTD.,42655
Neighbourhood Services,Technical Services,Supplies and Services,304221,Equipment and Materials,03-Feb-2014,2699921-19158514,927.18,AGGREGATE INDUSTRIES UK LTD.,42655
Neighbourhood Services,Technical Services,Third Party Payments,430100,Rendered by Private Contractors,03-Feb-2014,2700043-11750,"6,744.00",DCM PREMIER PLAY SURFACES.,53536
Neighbourhood Services,Technical Services,Third Party Payments,430100,Rendered by Private Contractors,03-Feb-2014,2700092-SIN7037346,"3,420.00",HCS DRAIN SERVICES LTD.,49195
Neighbourhood Services,Technical Services,Supplies and Services,304221,Equipment and Materials,03-Feb-2014,2700167-9029634154,522.43,LAFARGE TARMAC TRADING LTD.,44422
Neighbourhood Services,Technical Services,Supplies and Services,304221,Equipment and Materials,03-Feb-2014,2700167-9030043790,723.13,LAFARGE TARMAC TRADING LTD.,44422
Neighbourhood Services,Technical Services,Supplies and Services,304221,Equipment and Materials,03-Feb-2014,2700167-9030469444,"1,210.14",LAFARGE TARMAC TRADING LTD.,44422
Neighbourhood Services,Technical Services,Supplies and Services,304358,Equipment and Materials,03-Feb-2014,2700197-1630.00,720.00,MARTIN JEWITT PLANT HIRE.,164909
Neighbourhood Services,Direct Services,Third Party Payments,430100,Rendered by Private Contractors,03-Feb-2014,2700002-14611,658.00,CATHEDRAL LOCK & SAFE SERVICES LTD.,43103
Neighbourhood Services,Direct Services,Supplies and Services,304221,Equipment and Materials,03-Feb-2014,2700137-NOI42727,"1,056.25",JT DOVE LTD.,44305
Neighbourhood Services,Direct Services,Third Party Payments,430100,Rendered by Private Contractors,03-Feb-2014,2699918-25763293-61,630.00,ADT FIRE & SECURITY PLC.,42644
Neighbourhood Services,Direct Services,Third Party Payments,430100,Rendered by Private Contractors,03-Feb-2014,2699931-14006,"5,650.00",AMBIC LTD.,42697
Neighbourhood Services,Direct Services,Third Party Payments,430100,Rendered by Private Contractors,03-Feb-2014,2699945-1403,"1,345.00",AWR ROOFING & ALUMIN RAINWATER SYSTEMS LTD.,42833
Neighbourhood Services,Direct Services,Supplies and Services,304221,Equipment and Materials,03-Feb-2014,2700207-0000050598,779.18,MIKROFILL SYSTEMS LTD.,49849
Neighbourhood Services,Direct Services,Supplies and Services,304221,Equipment and Materials,03-Feb-2014,2699977-1650/0741910,"1,554.11",BSS GROUP PLC.,46351
Neighbourhood Services,Direct Services,Third Party Payments,430100,Rendered by Private Contractors,03-Feb-2014,2700270-2922,793.00,RINGLAND SCAFFOLDING.,45835
Neighbourhood Services,Projects and Business services,Third Party Payments,430111,Rendered by Private Contractors,03-Feb-2014,2700294-29081132,"795,953.05",SITA UK LTD.,46069
Neighbourhood Services,Projects and Business services,Third Party Payments,430112,Rendered by Private Contractors,03-Feb-2014,2700294-DH1,"138,080.04",SITA UK LTD.,46069
Neighbourhood Services,Technical Services,Supplies and Services,304999,Equipment and Materials,03-Feb-2014,2700263-CD970244680,"4,995.00",RADIODETECTION LTD.,134410
Neighbourhood Services,Culture & Sport,Premises,120021,Energy Costs,03-Feb-2014,2700105-6678,"5,652.35",IMPALA ESTATES LTD.,44107
Neighbourhood Services,Culture & Sport,Supplies and Services,308011,Furniture,03-Feb-2014,2699925-147421,"1,066.25",ALBANY OFFICE EQUIPMENT (WHOLESALE) LTD.,102440
RED HRA,HRA Capital,Construction Work,908105,Construction work,03-Feb-2014,2700047-189852,"1,741.91",DELTA ELECTRICAL & MECHANICAL SERVICES.,133387
RED HRA,HRA Capital,Construction Work,908105,Construction work,03-Feb-2014,2700047-189854,"3,266.86",DELTA ELECTRICAL & MECHANICAL SERVICES.,133387
RED HRA,HRA Capital,Construction Work,908105,Construction work,03-Feb-2014,2700047-189855,"12,977.19",DELTA ELECTRICAL & MECHANICAL SERVICES.,133387
RED HRA,HRA Capital,Construction Work,908105,Construction work,03-Feb-2014,2700047-189856,"1,735.96",DELTA ELECTRICAL & MECHANICAL SERVICES.,133387
Regeneration & Economic Development,Strategy Programmes and Performance,Employees,040149,"Recruitment, Instruction and Training",03-Feb-2014,2699941-1294,"2,280.00",ASPIRE EUROPE LTD.,172781
Regeneration & Economic Development,Economic Development and Housing,Premises,120009,Energy Costs,03-Feb-2014,2700234,"1,156.40",NPOWER.,45509
Regeneration & Economic Development,Economic Development and Housing,Supplies and Services,304337,Equipment and Materials,03-Feb-2014,2700284-3489,975.80,SEASALT LTD.,129407
Regeneration & Economic Development,Economic Development and Housing,Supplies and Services,384199,Miscellaneous Expenses,03-Feb-2014,2700332-LOSI28184,"10,000.00",VISIT BRITAIN (VISIT ENGLAND).,65797
Regeneration & Economic Development,"Spatial Policy, Planning, Assets & Environment",Third Party Payments,430100,Rendered by Private Contractors,03-Feb-2014,2700141-389,"4,800.00",JW BAINBRIDGE CONTRACTORS LTD.,58512
Regeneration & Economic Development,Transport and Contracted Services,Supplies and Services,372009,Subscriptions,03-Feb-2014,2700315-94638,"1,110.00",TELECARE SERVICES ASSOCIATION.,91518
Regeneration & Economic Development,Transport and Contracted Services,Third Party Payments,430108,Rendered by Private Contractors,03-Feb-2014,2700323-615051,707.50,TRAFFIC MANAGEMENT PRODUCTS LTD (TMP).,46511
Regeneration & Economic Development,Economic Development and Housing,Construction Work,908105,Construction work,03-Feb-2014,2699995-5064/SJS/01,"2,742.15",CARILLION CONSTRUCTION LTD T/A CARILLION CIVIL ENGINEERING.,80908
Assistant Chief Executive,Partnerships & Community Engagement Div.,Transfer Payments,525030,Other,04-Feb-2014,2701515-DVLY010,"8,500.00",OFF THE PAGE.,109663
Assistant Chief Executive,Partnerships & Community Engagement Div.,Transfer Payments,525030,Other,04-Feb-2014,2701146-13-005,"1,575.00",REDACTED - PAYMENT TO INDIVIDUAL,63259
Assistant Chief Executive,Partnerships & Community Engagement Div.,Transfer Payments,525030,Other,04-Feb-2014,2701545-13-038,"3,860.00",QUARRINGTON HILL VILLAGE PARTNERSHIP.,50544
Assistant Chief Executive,Partnerships & Community Engagement Div.,Transfer Payments,525030,Other,04-Feb-2014,2701606-13-003,"3,362.00",SEDGEFIELD JUNIOR SQUASH CLUB.,174479
Assistant Chief Executive,Partnerships & Community Engagement Div.,Transfer Payments,525030,Other,04-Feb-2014,2701661-13-010,"1,673.20",TRIMDON UNITED JUNIORS FOOTBALL CLUB.,139992
Children and Adult Services,Head of Adults,Supplies and Services,338366,Services,04-Feb-2014,2701088-13878,"1,585.00",CARE ABILITY.,43069
Children and Adult Services,Commissioning inc Supporting People,Supplies and Services,384700,Miscellaneous Expenses,04-Feb-2014,2701261-2013-14/IC/004,"9,000.00",INTEGRATING CHILDREN.,49344
Children and Adult Services,Commissioning inc Supporting People,Supplies and Services,384700,Miscellaneous Expenses,04-Feb-2014,2701686-WN1401,"10,000.00",WILLY NILLIE.,174459
Children and Adult Services,Head of Adults,Third Party Payments,470101,Purchase of Care,04-Feb-2014,2701262-INV-0055-3/1/14,"9,211.51",INTERACT CARE LTD.,44128
Children and Adult Services,Head of Adults,Income,720044,Fees and Charges,04-Feb-2014,2701065-CAS-02-2014-006,"1,961.00",REDACTED - PAYMENT TO INDIVIDUAL,174484
Children and Adult Services,Head of Adults,Income,720044,Fees and Charges,04-Feb-2014,2701475-CAS-02-2014-004,887.31,REDACTED - PAYMENT TO INDIVIDUAL,174485
Children and Adult Services,Head of Adults,Supplies and Services,338066,Services,04-Feb-2014,2701531-368,"4,625.00",PEOPLETOO LTD.,159144
Children and Adult Services,Head of Adults,Premises,145023,Cleaning and Domestic Supplies,04-Feb-2014,2701228-08/399799,740.11,GREENHAM TRADING LTD.,43935
Children and Adult Services,Head of Adults,Premises,125009,Rents,04-Feb-2014,2701366-333698,782.50,KNIGHT FRANK LLP.,132909
Children and Adult Services,Public Health,Third Party Payments,460802,Contract Payments,04-Feb-2014,2701170-A83018/Q2/2013,"4,575.00",DR YOUNG & PARTNERS.,172434
Children and Adult Services,Public Health,Third Party Payments,460803,Contract Payments,04-Feb-2014,2701056-FA773/NRT/1213,938.52,BOOTS THE CHEMISTS LTD.,120493
Children and Adult Services,Public Health,Third Party Payments,460803,Contract Payments,04-Feb-2014,2701057,681.81,BOOTS THE CHEMISTS LTD.,120493
Children and Adult Services,Public Health,Third Party Payments,460803,Contract Payments,04-Feb-2014,2701163-FLX61/12,572.99,DIXON & HALL LTD.,43491
Children and Adult Services,Public Health,Third Party Payments,460803,Contract Payments,04-Feb-2014,2701163-FLX61/OCT13,680.20,DIXON & HALL LTD.,43491
Children and Adult Services,Public Health,Third Party Payments,460803,Contract Payments,04-Feb-2014,2701164-FCJ518/12/2013,530.52,DIXON & HALL LTD.,43491
Children and Adult Services,Public Health,Third Party Payments,460803,Contract Payments,04-Feb-2014,2701165-FWL23/12,"1,177.23",DIXON & HALL LTD.,43491
Children and Adult Services,Public Health,Third Party Payments,460803,Contract Payments,04-Feb-2014,2701165-FWL23/SEPT,"3,946.45",DIXON & HALL LTD.,43491
Children and Adult Services,Public Health,Third Party Payments,460803,Contract Payments,04-Feb-2014,2701234,786.62,HANCOCK & AINSLEY CHEMIST LTD.,146622
Children and Adult Services,Public Health,Third Party Payments,460803,Contract Payments,04-Feb-2014,2701263,713.84,INTRAHEALTH LTD.,49350
Children and Adult Services,Public Health,Third Party Payments,460803,Contract Payments,04-Feb-2014,2701405,590.20,LLOYDS PHARMACY.,158693
Children and Adult Services,Public Health,Third Party Payments,460803,Contract Payments,04-Feb-2014,2701417,605.51,M & M PHARMACIES LTD.,139394
Children and Adult Services,Public Health,Third Party Payments,460803,Contract Payments,04-Feb-2014,2701418,806.07,M & M PHARMACIES LTD.,139394
Children and Adult Services,Public Health,Third Party Payments,460803,Contract Payments,04-Feb-2014,2701425,857.73,M WHITFIELD LTD.,168319
Children and Adult Services,Public Health,Third Party Payments,460803,Contract Payments,04-Feb-2014,2701454-FED01/DEC/12,536.01,MILLERS PHARMACY.,167129
Children and Adult Services,Public Health,Third Party Payments,460803,Contract Payments,04-Feb-2014,2701582-FL345/NRT/11/13,564.84,ROBERTS & ROBERTS LTD T/A HIGGINBOTTOM PHARMACY.,167886
Children and Adult Services,Public Health,Third Party Payments,460803,Contract Payments,04-Feb-2014,2701582-FL348/NRT/12/13,770.20,ROBERTS & ROBERTS LTD T/A HIGGINBOTTOM PHARMACY.,167886
Children and Adult Services,Public Health,Third Party Payments,460803,Contract Payments,04-Feb-2014,2701682-FEQ59/1213/NRT,839.72,WHITWORTH CHEMISTS LTD.,169259
Children and Adult Services,Education,Supplies and Services,384199,Miscellaneous Expenses,04-Feb-2014,2701534-C1232,"1,800.00",PETERLEE TOWN COUNCIL.,45641
Children and Adult Services,Early Intervention and Involvement,Third Party Payments,479101,Purchase of Care,04-Feb-2014,2701124-3910002524,"10,330.85",CO DURHAM & DARLINGTON NHS FOUNDATION TRUST.,43222
Children and Adult Services,Education,Transfer Payments,510026,School Children,04-Feb-2014,2701681-CAS-02-2014-003,"10,000.00",WHEATLEY HILL COMMUNITY NURSERY LTD.,46693
Children and Adult Services,Education,Supplies and Services,338089,Services,04-Feb-2014,2701519,650.00,REDACTED - PAYMENT TO INDIVIDUAL,173419
Children and Adult Services,Childrens care,Third Party Payments,425040,Rendered by Voluntary Organisations,04-Feb-2014,2701130-630105263,"3,876.88",CORE ASSETS FOSTERING LTD.,43795
Children and Adult Services,Childrens care,Third Party Payments,425040,Rendered by Voluntary Organisations,04-Feb-2014,2701130-630105283,"3,684.64",CORE ASSETS FOSTERING LTD.,43795
Children and Adult Services,Childrens care,Third Party Payments,425040,Rendered by Voluntary Organisations,04-Feb-2014,2701130-630105478,"3,684.64",CORE ASSETS FOSTERING LTD.,43795
Children and Adult Services,Childrens care,Third Party Payments,425040,Rendered by Voluntary Organisations,04-Feb-2014,2701130-630105646,"3,684.64",CORE ASSETS FOSTERING LTD.,43795
Children and Adult Services,Childrens care,Third Party Payments,425040,Rendered by Voluntary Organisations,04-Feb-2014,2701130-630105935,"3,684.64",CORE ASSETS FOSTERING LTD.,43795
Children and Adult Services,Childrens care,Third Party Payments,425040,Rendered by Voluntary Organisations,04-Feb-2014,2701130-630106145,"3,684.64",CORE ASSETS FOSTERING LTD.,43795
Children and Adult Services,Childrens care,Third Party Payments,425040,Rendered by Voluntary Organisations,04-Feb-2014,2701202-0000049644,"2,920.12",FIVE RIVERS CHILD CARE LTD.,94459
Children and Adult Services,Childrens care,Third Party Payments,425040,Rendered by Voluntary Organisations,04-Feb-2014,2701204-FC014186,"1,180.00",FOSTER CARES LTD.,43797
Children and Adult Services,Childrens care,Third Party Payments,425040,Rendered by Voluntary Organisations,04-Feb-2014,2701204-FC014195,760.00,FOSTER CARES LTD.,43797
Children and Adult Services,Childrens care,Third Party Payments,425040,Rendered by Voluntary Organisations,04-Feb-2014,2701495-100006805004,"2,897.26",NEWCASTLE UPON TYNE CITY COUNCIL.,45422
Children and Adult Services,Childrens care,Third Party Payments,425020,Rendered by Voluntary Organisations,04-Feb-2014,2701624-1141096,"2,118.75",ST CUTHBERTS CARE.,46153
Children and Adult Services,Childrens care,Third Party Payments,425040,Rendered by Voluntary Organisations,04-Feb-2014,2701636-139088,910.00,SWIIS FOSTER CARE LTD.,92006
Children and Adult Services,Childrens care,Third Party Payments,425040,Rendered by Voluntary Organisations,04-Feb-2014,2701636-141216,891.90,SWIIS FOSTER CARE LTD.,92006
Children and Adult Services,Childrens care,Third Party Payments,425040,Rendered by Voluntary Organisations,04-Feb-2014,2701636-141217,"1,069.00",SWIIS FOSTER CARE LTD.,92006
Children and Adult Services,Childrens care,Third Party Payments,425040,Rendered by Voluntary Organisations,04-Feb-2014,2701636-141462,891.90,SWIIS FOSTER CARE LTD.,92006
Children and Adult Services,Childrens care,Third Party Payments,425040,Rendered by Voluntary Organisations,04-Feb-2014,2701636-141463,"1,069.00",SWIIS FOSTER CARE LTD.,92006
Children and Adult Services,Childrens care,Transport,230005,Contract Hire,04-Feb-2014,2701612-71308,578.00,SHOTTON PRIVATE HIRE.,46040
Children and Adult Services,Childrens care,Premises,145051,Cleaning and Domestic Supplies,04-Feb-2014,2701669-8540042395,"1,064.00",VEOLIA ES (UK) LTD.,46599
Children and Adult Services,Childrens care,Transport,235057,Public Transport,04-Feb-2014,2701120-450019,"4,429.24",CLICK TRAVEL LTD.,160169
Children and Adult Services,Childrens care,Third Party Payments,440001,Other Third Party Payments,04-Feb-2014,227774-929904,"1,244.76",REDACTED - PAYMENT TO INDIVIDUAL,173923
Children and Adult Services,Childrens care,Third Party Payments,440001,Other Third Party Payments,04-Feb-2014,227774-929905,"1,244.76",REDACTED - PAYMENT TO INDIVIDUAL,173923
Children and Adult Services,Childrens care,Third Party Payments,486044,Service Level Agreements,04-Feb-2014,2701124-3910002673,"3,187.13",CO DURHAM & DARLINGTON NHS FOUNDATION TRUST.,43222
Children and Adult Services,Childrens care,Supplies and Services,364353,Grants to Voluntary Organisations,04-Feb-2014,2701631-GY11,937.93,STONHAM HOUSING ASSOCIATION LTD.,46225
Children and Adult Services,Childrens care,Supplies and Services,364353,Grants to Voluntary Organisations,04-Feb-2014,2701632-GY10,637.67,STONHAM HOUSING ASSOCIATION LTD.,46225
Children and Adult Services,Childrens care,Supplies and Services,364358,Grants to Voluntary Organisations,04-Feb-2014,2701664-31,966.67,U STUDENT (SUNDERLAND) LTD.,172297
Children and Adult Services,Childrens care,Third Party Payments,440028,Other Third Party Payments,04-Feb-2014,2700938-930839,708.82,REDACTED - PAYMENT TO INDIVIDUAL,169919
Children and Adult Services,Childrens care,Supplies and Services,384507,Miscellaneous Expenses,04-Feb-2014,2700979-4910,"23,815.00",AFTER ADOPTION.,47914
Children and Adult Services,Childrens care,Employees,080025,Agency Staff,04-Feb-2014,2701233-2013/190114,"2,137.50",HAMPTON`S RESOUCING.,172881
Children and Adult Services,Childrens care,Supplies and Services,384638,Miscellaneous Expenses,04-Feb-2014,2701505-0000016380,882.00,NORTH EAST AUTISM SOCIETY.,46548
Children and Adult Services,Childrens care,Supplies and Services,384638,Miscellaneous Expenses,04-Feb-2014,2701505-0000016381,"1,701.00",NORTH EAST AUTISM SOCIETY.,46548
Children and Adult Services,Childrens care,Supplies and Services,384638,Miscellaneous Expenses,04-Feb-2014,2701505-0000016383,"1,039.50",NORTH EAST AUTISM SOCIETY.,46548
Children and Adult Services,Childrens care,Supplies and Services,384638,Miscellaneous Expenses,04-Feb-2014,2701505-0000016384,"2,205.00",NORTH EAST AUTISM SOCIETY.,46548
Children and Adult Services,Childrens care,Supplies and Services,384638,Miscellaneous Expenses,04-Feb-2014,2701505-0000016387,677.25,NORTH EAST AUTISM SOCIETY.,46548
Children and Adult Services,Childrens care,Supplies and Services,384638,Miscellaneous Expenses,04-Feb-2014,2701505-0000016388,"1,338.75",NORTH EAST AUTISM SOCIETY.,46548
Children and Adult Services,Childrens care,Supplies and Services,384638,Miscellaneous Expenses,04-Feb-2014,2701505-0000016389,913.50,NORTH EAST AUTISM SOCIETY.,46548
Children and Adult Services,Childrens care,Supplies and Services,384638,Miscellaneous Expenses,04-Feb-2014,2701505-0000016390,661.50,NORTH EAST AUTISM SOCIETY.,46548
Children and Adult Services,Childrens care,Supplies and Services,384638,Miscellaneous Expenses,04-Feb-2014,2701505-0000016392,598.50,NORTH EAST AUTISM SOCIETY.,46548
Children and Adult Services,Childrens care,Supplies and Services,384638,Miscellaneous Expenses,04-Feb-2014,2701505-0000016393,661.50,NORTH EAST AUTISM SOCIETY.,46548
Children and Adult Services,Childrens care,Supplies and Services,384638,Miscellaneous Expenses,04-Feb-2014,2701505-0000016394,"3,118.50",NORTH EAST AUTISM SOCIETY.,46548
Children and Adult Services,Childrens care,Supplies and Services,384638,Miscellaneous Expenses,04-Feb-2014,2701505-0000016395,"1,212.75",NORTH EAST AUTISM SOCIETY.,46548
Children and Adult Services,Childrens care,Supplies and Services,384638,Miscellaneous Expenses,04-Feb-2014,2701505-0000016396,964.69,NORTH EAST AUTISM SOCIETY.,46548
Children and Adult Services,Childrens care,Supplies and Services,384638,Miscellaneous Expenses,04-Feb-2014,2701505-0000016399,882.00,NORTH EAST AUTISM SOCIETY.,46548
Children and Adult Services,Childrens care,Supplies and Services,384638,Miscellaneous Expenses,04-Feb-2014,2701505-0000016400,913.50,NORTH EAST AUTISM SOCIETY.,46548
Children and Adult Services,Childrens care,Supplies and Services,384638,Miscellaneous Expenses,04-Feb-2014,2701505-0000016401,"1,260.00",NORTH EAST AUTISM SOCIETY.,46548
Children and Adult Services,Childrens care,Supplies and Services,384638,Miscellaneous Expenses,04-Feb-2014,2701505-0000016402,787.50,NORTH EAST AUTISM SOCIETY.,46548
Children and Adult Services,Childrens care,Supplies and Services,384638,Miscellaneous Expenses,04-Feb-2014,2701505-0000016404,535.50,NORTH EAST AUTISM SOCIETY.,46548
Children and Adult Services,Childrens care,Supplies and Services,384638,Miscellaneous Expenses,04-Feb-2014,2701505-0000016405,"1,134.00",NORTH EAST AUTISM SOCIETY.,46548
Children and Adult Services,Childrens care,Supplies and Services,384638,Miscellaneous Expenses,04-Feb-2014,2701505-0000016407,"1,283.63",NORTH EAST AUTISM SOCIETY.,46548
Children and Adult Services,Childrens care,Supplies and Services,384638,Miscellaneous Expenses,04-Feb-2014,2701505-0000016409,"1,134.00",NORTH EAST AUTISM SOCIETY.,46548
Children and Adult Services,Childrens care,Supplies and Services,384638,Miscellaneous Expenses,04-Feb-2014,2701505-0000016412,819.00,NORTH EAST AUTISM SOCIETY.,46548
Children and Adult Services,Childrens care,Supplies and Services,384638,Miscellaneous Expenses,04-Feb-2014,2701505-0000016413,661.50,NORTH EAST AUTISM SOCIETY.,46548
Children and Adult Services,Childrens care,Supplies and Services,384638,Miscellaneous Expenses,04-Feb-2014,2701505-0000016416,"1,323.00",NORTH EAST AUTISM SOCIETY.,46548
Children and Adult Services,Childrens care,Supplies and Services,384638,Miscellaneous Expenses,04-Feb-2014,2701505-0000016417,614.25,NORTH EAST AUTISM SOCIETY.,46548
Children and Adult Services,Childrens care,Supplies and Services,352001,Conference Expenses,04-Feb-2014,2701559-INV23597,"2,286.25",RAMSIDE HALL HOTEL & GOLF CLUB.,45770
Children and Adult Services,Childrens care,Supplies and Services,384638,Miscellaneous Expenses,04-Feb-2014,2701679-WM05,"1,280.00",WEAR MENCAP.,170223
Children and Adult Services,Childrens care,Premises,120021,Energy Costs,04-Feb-2014,2701068-102228630,"2,001.49",BRITISH GAS BUSINESS.,43003
Children and Adult Services,Education,Employees,040001,"Recruitment, Instruction and Training",04-Feb-2014,2701662-TARINV/15259684,607.50,TSL EDUCATION LTD.,46533
Children and Adult Services,Education,Employees,040001,"Recruitment, Instruction and Training",04-Feb-2014,2701662-TARINV/15259689,607.50,TSL EDUCATION LTD.,46533
Corporate Resources,I.C.T. Services,Stock,926900,Stock in hand-Inventory system,04-Feb-2014,2701623-OP/L791168,"1,600.00",SPECIALIST COMPUTER CENTRES PLC.,50889
Corporate Resources,I.C.T. Services,Supplies and Services,344033,Telephones,04-Feb-2014,2701670-912363-050,"1,000.00",VIRGIN MEDIA LTD.,107413
Corporate Resources,I.C.T. Services,Supplies and Services,304245,Equipment and Materials,04-Feb-2014,2701254-119000N,616.32,HOWARD SMITH PAPER GROUP.,111522
Corporate Resources,I.C.T. Services,Supplies and Services,304252,Equipment and Materials,04-Feb-2014,2701675-132081,518.00,W WILKINSON (SAWMAKERS) LTD.,46631
Corporate Resources,I.C.T. Services,Supplies and Services,340001,Postages,04-Feb-2014,2701587-9046230184,"7,861.09",ROYAL MAIL GROUP PLC.,45883
Corporate Resources,I.C.T. Services,Supplies and Services,304303,Equipment and Materials,04-Feb-2014,2701660-109087,695.25,TP ELECTRICAL SUPPLIES & FIXINGS LTD.,148708
Corporate Resources,I.C.T. Services,Stock,926900,Stock in hand-Inventory system,04-Feb-2014,2701690-U626168,"1,733.22",XMA LTD.,46758
Neighbourhood Services,Direct Services,Premises,145009,Cleaning and Domestic Supplies,04-Feb-2014,2701491-162,"3,316.20",NE GREEN WASTE RECYCLING LTD.,155496
Neighbourhood Services,Direct Services,Supplies and Services,304221,Equipment and Materials,04-Feb-2014,2701100-119878,935.00,CHAS LONG & SON (AGGREGATES) LTD.,140704
Neighbourhood Services,Direct Services,Supplies and Services,304221,Equipment and Materials,04-Feb-2014,2701195-6727368,"5,458.80",ESE WORLD LTD.,61770
Neighbourhood Services,Direct Services,Transport,210057,Repair and Maintenance of Vehicles,04-Feb-2014,2701083-11907,562.84,CALDER TRAILER BOARDS.,43055
Neighbourhood Services,Direct Services,Third Party Payments,430100,Rendered by Private Contractors,04-Feb-2014,2701213-B91858,"4,758.88",GEESINK NORBA LTD.,89077
Neighbourhood Services,Direct Services,Transport,210057,Repair and Maintenance of Vehicles,04-Feb-2014,2701518-SIP036772,560.44,OWEN SPRINGS LTD.,50356
Neighbourhood Services,Direct Services,Transport,230005,Contract Hire,04-Feb-2014,2701050-301966,900.00,BICKFORD TRUCK HIRE LTD.,111613
Neighbourhood Services,Culture & Sport,Supplies and Services,304259,Equipment and Materials,04-Feb-2014,2701589-13365,"3,471.00",RUBBER BOX CO LTD.,157252
Neighbourhood Services,"Environment,Health & Consumer Protection",Supplies and Services,384199,Miscellaneous Expenses,04-Feb-2014,2701541,"3,347.00",PUBLIC ANALYST SCIENTIFIC SERVICES LTD.,162267
Neighbourhood Services,Direct Services,Supplies and Services,342053,Computers and Communications,04-Feb-2014,2701117-CSS2266,500.00,CLEARSKIES SOFTWARE.,123147
Neighbourhood Services,Direct Services,Stock,926004,Stock,04-Feb-2014,2700977-60192369,531.04,AEBI SCHMIDT UK LTD.,102435
Neighbourhood Services,Direct Services,Third Party Payments,430100,Rendered by Private Contractors,04-Feb-2014,2701155-11793,995.00,DCM PREMIER PLAY SURFACES.,53536
Neighbourhood Services,Direct Services,Transport,210057,Repair and Maintenance of Vehicles,04-Feb-2014,2701213-B91690,539.88,GEESINK NORBA LTD.,89077
Neighbourhood Services,Direct Services,Stock,926004,Stock,04-Feb-2014,2701229-111651,"1,025.64",GREENLAY (GRASS MACHINERY) LTD.,78974
Neighbourhood Services,Technical Services,Third Party Payments,460350,Contract Payments,04-Feb-2014,2701258-2071,"1,242.80",IAN C LIDDLE.,44089
Neighbourhood Services,Technical Services,Third Party Payments,460350,Contract Payments,04-Feb-2014,2701258-2072,938.00,IAN C LIDDLE.,44089
Neighbourhood Services,Direct Services,Transport,210057,Repair and Maintenance of Vehicles,04-Feb-2014,2701532-1442,995.00,PERFECT SOLUTIONS NE LTD.,157516
Neighbourhood Services,Direct Services,Transport,230005,Contract Hire,04-Feb-2014,2701610-10446174,642.13,SHB HIRE LTD.,50796
Neighbourhood Services,Direct Services,Supplies and Services,304221,Equipment and Materials,04-Feb-2014,2701256-B33/0062859,699.60,HOWDENS JOINERY LTD.,44065
Neighbourhood Services,Direct Services,Supplies and Services,304221,Equipment and Materials,04-Feb-2014,2701256-B33/0063197,"1,042.75",HOWDENS JOINERY LTD.,44065
Neighbourhood Services,Direct Services,Supplies and Services,304221,Equipment and Materials,04-Feb-2014,2701256-B33/0063204,978.77,HOWDENS JOINERY LTD.,44065
Neighbourhood Services,Direct Services,Supplies and Services,304221,Equipment and Materials,04-Feb-2014,2701538-189634,"1,700.22",PLUMBING TRADE SUPPLIES LTD.,52634
Neighbourhood Services,Direct Services,Supplies and Services,304221,Equipment and Materials,04-Feb-2014,2701538-4120161240,871.83,PLUMBING TRADE SUPPLIES LTD.,52634
Neighbourhood Services,Direct Services,Supplies and Services,304221,Equipment and Materials,04-Feb-2014,2701538-4120161391,869.74,PLUMBING TRADE SUPPLIES LTD.,52634
Neighbourhood Services,Direct Services,Supplies and Services,304221,Equipment and Materials,04-Feb-2014,2701538-4120161397,774.18,PLUMBING TRADE SUPPLIES LTD.,52634
Neighbourhood Services,Technical Services,Supplies and Services,304259,Equipment and Materials,04-Feb-2014,2701407-89184,507.00,LORD TECHNICAL LTD.,44538
Neighbourhood Services,Technical Services,Supplies and Services,304252,Equipment and Materials,04-Feb-2014,2701407-89214,819.00,LORD TECHNICAL LTD.,44538
Neighbourhood Services,Culture & Sport,Supplies and Services,336005,Advertising,04-Feb-2014,2701542-1430,"1,105.00",PUBLIC UK LTD.,144999
Neighbourhood Services,Culture & Sport,Supplies and Services,384700,Miscellaneous Expenses,04-Feb-2014,2701053,"1,145.00",BISHOP AUCKLAND COLLEGE.,42931
Neighbourhood Services,Culture & Sport,Supplies and Services,384700,Miscellaneous Expenses,04-Feb-2014,2701469,500.00,MR E TURNBULL T/A FISHING NORTH EAST.,171947
Neighbourhood Services,Culture & Sport,Supplies and Services,384700,Miscellaneous Expenses,04-Feb-2014,2701644,791.50,TEESDALE SCHOOL (FUND).,51072
Neighbourhood Services,Direct Services,Supplies and Services,304221,Equipment and Materials,04-Feb-2014,2701100-119877,825.00,CHAS LONG & SON (AGGREGATES) LTD.,140704
Neighbourhood Services,Direct Services,Construction Work,908105,Construction work,04-Feb-2014,2701494-061898,900.75,NEW ROW FARM NURSERIES.,45420
Neighbourhood Services,Technical Services,Stock,926900,Stock in hand-Inventory system,04-Feb-2014,2701027-INV084964,"2,639.10",AZTEC CHEMICALS LTD.,42841
Neighbourhood Services,Technical Services,Stock,926900,Stock in hand-Inventory system,04-Feb-2014,2701320-NI023833,"4,781.70",JOHN MACLEAN & SONS ELECTRICAL (DINGWALL) LTD.,44264
Neighbourhood Services,Technical Services,Stock,926900,Stock in hand-Inventory system,04-Feb-2014,2701406-10298,855.40,LOGIC STREET & PARK FURNITURE LTD.,156972
Neighbourhood Services,Technical Services,Stock,926900,Stock in hand-Inventory system,04-Feb-2014,2701500-4863,"1,720.00",NICK CLEMMIT (JOINERY) CONTRACTS.,134558
Neighbourhood Services,Technical Services,Stock,926900,Stock in hand-Inventory system,04-Feb-2014,2701510-1040254,509.88,NORTHERN TOOLS & ACCESSORIES.,45494
Neighbourhood Services,Technical Services,Stock,926900,Stock in hand-Inventory system,04-Feb-2014,2701613-266587/120259,659.40,SIGNATURE LTD T/A POST & COLUMN CO LTD.,46418
Neighbourhood Services,Technical Services,Supplies and Services,304221,Equipment and Materials,04-Feb-2014,2700980-19164576,"2,142.75",AGGREGATE INDUSTRIES UK LTD.,42655
Neighbourhood Services,Technical Services,Supplies and Services,304221,Equipment and Materials,04-Feb-2014,2700980-19164577,"4,314.00",AGGREGATE INDUSTRIES UK LTD.,42655
Neighbourhood Services,Technical Services,Supplies and Services,304221,Equipment and Materials,04-Feb-2014,2700980-19164578,"3,608.40",AGGREGATE INDUSTRIES UK LTD.,42655
Neighbourhood Services,Technical Services,Supplies and Services,304221,Equipment and Materials,04-Feb-2014,2700980-19172335,"1,087.24",AGGREGATE INDUSTRIES UK LTD.,42655
Neighbourhood Services,Technical Services,Supplies and Services,304221,Equipment and Materials,04-Feb-2014,2700980-19177034,"1,404.16",AGGREGATE INDUSTRIES UK LTD.,42655
Neighbourhood Services,Technical Services,Supplies and Services,304221,Equipment and Materials,04-Feb-2014,2700980-19177035,"1,093.80",AGGREGATE INDUSTRIES UK LTD.,42655
Neighbourhood Services,Technical Services,Supplies and Services,304221,Equipment and Materials,04-Feb-2014,2700980-19177037,"1,047.60",AGGREGATE INDUSTRIES UK LTD.,42655
Neighbourhood Services,Technical Services,Supplies and Services,304221,Equipment and Materials,04-Feb-2014,2701017-19125,623.00,ARBOR TIMBER & BUILDERS MERCHANTS LTD.,42761
Neighbourhood Services,Technical Services,Third Party Payments,430100,Rendered by Private Contractors,04-Feb-2014,2701227-0040,"2,950.00",GRAEME HOPPER.,43915
Neighbourhood Services,Technical Services,Supplies and Services,304221,Equipment and Materials,04-Feb-2014,2701232-40583,"73,359.96",HALL CONSTRUCTION SERVICES LTD.,85231
Neighbourhood Services,Technical Services,Supplies and Services,304221,Equipment and Materials,04-Feb-2014,2701406-10400,757.14,LOGIC STREET & PARK FURNITURE LTD.,156972
Neighbourhood Services,Technical Services,Supplies and Services,304221,Equipment and Materials,04-Feb-2014,2701430-ZJB0024157,"1,070.00",MARSHALLS MONO LTD.,44630
Neighbourhood Services,Technical Services,Supplies and Services,304357,Equipment and Materials,04-Feb-2014,2701432-1614.00,"4,244.00",MARTIN JEWITT PLANT HIRE.,164909
Neighbourhood Services,Technical Services,Third Party Payments,430100,Rendered by Private Contractors,04-Feb-2014,2701450-171,"1,062.40",MICHAEL KELLY.,54285
Neighbourhood Services,Technical Services,Third Party Payments,430100,Rendered by Private Contractors,04-Feb-2014,2701539-63138,550.00,PROTECTOR SECURITY GROUP LTD.,46421
Neighbourhood Services,Technical Services,Supplies and Services,304221,Equipment and Materials,04-Feb-2014,2701614-63581,"1,306.76",SIMMONSIGNS LTD.,46061
Neighbourhood Services,Direct Services,Third Party Payments,430100,Rendered by Private Contractors,04-Feb-2014,2700997-14313,"6,200.00",AMBIC LTD.,42697
Neighbourhood Services,Direct Services,Supplies and Services,304221,Equipment and Materials,04-Feb-2014,2701247-SIP-UK-146423,"1,356.90",HERAS READY FENCE HIRE & SALES.,167483
Neighbourhood Services,Direct Services,Supplies and Services,304221,Equipment and Materials,04-Feb-2014,2701404-NE129712,946.73,LLOYD WORRALL (NEWCASTLE UPON TYNE) LTD.,44523
Neighbourhood Services,Direct Services,Third Party Payments,430100,Rendered by Private Contractors,04-Feb-2014,2701575-2925,"2,778.00",RINGLAND SCAFFOLDING.,45835
Neighbourhood Services,Direct Services,Third Party Payments,430100,Rendered by Private Contractors,04-Feb-2014,2701575-2928,933.00,RINGLAND SCAFFOLDING.,45835
Neighbourhood Services,Direct Services,Third Party Payments,430100,Rendered by Private Contractors,04-Feb-2014,2701539-62809,"1,751.04",PROTECTOR SECURITY GROUP LTD.,46421
Neighbourhood Services,Direct Services,Supplies and Services,304221,Equipment and Materials,04-Feb-2014,2701235-SIN342646,"1,347.05",HANDICARE ACCESSIBILITY LTD.,44718
Neighbourhood Services,Direct Services,Supplies and Services,324117,Provisions,04-Feb-2014,2701332-O40353,"2,173.53",JR HOLLAND FOOD SERVICES LTD.,44302
Neighbourhood Services,Direct Services,Supplies and Services,324117,Provisions,04-Feb-2014,2701427-218384,784.99,MALTON FOODS LTD.,144452
Neighbourhood Services,Culture & Sport,Premises,120021,Energy Costs,04-Feb-2014,2701086-25100754,731.85,CALOR GAS LTD.,43056
Neighbourhood Services,Culture & Sport,"Vehicles, Equipment, Furniture and Fittings",912521,Purchase-furniture and fittings,04-Feb-2014,2700989-147409,"2,215.30",ALBANY OFFICE EQUIPMENT (WHOLESALE) LTD.,102440
Neighbourhood Services,Culture & Sport,Supplies and Services,312013,"Newspapers, Books and Periodicals",04-Feb-2014,2701023-4171705,544.26,ASKEWS & HOLTS LIBRARY SERVICES LTD.,42797
Neighbourhood Services,Culture & Sport,Supplies and Services,312017,"Newspapers, Books and Periodicals",04-Feb-2014,2701023-4171808,934.37,ASKEWS & HOLTS LIBRARY SERVICES LTD.,42797
Neighbourhood Services,Culture & Sport,Supplies and Services,312017,"Newspapers, Books and Periodicals",04-Feb-2014,2701023-4171926,658.00,ASKEWS & HOLTS LIBRARY SERVICES LTD.,42797
Neighbourhood Services,Culture & Sport,Supplies and Services,312013,"Newspapers, Books and Periodicals",04-Feb-2014,2701023-4173685,557.31,ASKEWS & HOLTS LIBRARY SERVICES LTD.,42797
Neighbourhood Services,Culture & Sport,Supplies and Services,384199,Miscellaneous Expenses,04-Feb-2014,2701507-039,"1,250.00",NORTH EXHIBITION SERVICES LTD.,158830
Neighbourhood Services,Culture & Sport,Supplies and Services,324001,Provisions,04-Feb-2014,2701089-EW54795469,815.73,CARLSBERG UK LTD.,93769
Neighbourhood Services,Culture & Sport,Supplies and Services,338047,Services,04-Feb-2014,2701676-22145373,"1,249.17",WARNER BROS ENTERTAINMENT UK LTD.,134141
Neighbourhood Services,Culture & Sport,Supplies and Services,338047,Services,04-Feb-2014,2701676-22145375,"1,201.31",WARNER BROS ENTERTAINMENT UK LTD.,134141
Neighbourhood Services,Culture & Sport,Supplies and Services,338047,Services,04-Feb-2014,2701025-SIN007798,"3,000.00",AVALON PROMOTIONS LTD.,133220
Neighbourhood Services,Culture & Sport,Supplies and Services,338047,Services,04-Feb-2014,2701605-1466,750.00,SCOTT PENROSE.,174464
RED HRA,Housing Revenue Account,Supplies and Services,338027,Services,04-Feb-2014,2701265-10997,"2,955.00",IPB COMMUNICATIONS LTD.,158137
RED HRA,HRA Capital,Construction Work,908105,Construction work,04-Feb-2014,2700969-13265,"1,229.00",ACREBROAD LTD T/A DOBERMANS FLOORING.,48683
RED HRA,HRA Capital,Construction Work,908105,Construction work,04-Feb-2014,2700969-13266,"1,320.00",ACREBROAD LTD T/A DOBERMANS FLOORING.,48683
RED HRA,HRA Capital,Construction Work,908105,Construction work,04-Feb-2014,2700969-13271,"1,320.00",ACREBROAD LTD T/A DOBERMANS FLOORING.,48683
RED HRA,HRA Capital,Construction Work,908105,Construction work,04-Feb-2014,2700969-13272,"1,515.00",ACREBROAD LTD T/A DOBERMANS FLOORING.,48683
RED HRA,HRA Capital,Construction Work,908105,Construction work,04-Feb-2014,2700969-13273,"1,515.00",ACREBROAD LTD T/A DOBERMANS FLOORING.,48683
RED HRA,HRA Capital,Construction Work,908105,Construction work,04-Feb-2014,2701514-24624607476,580.40,NPOWER.,45509
RED HRA,HRA Capital,Construction Work,908105,Construction work,04-Feb-2014,2701215-SIGN/00040469,"255,638.00",GENTOO CONSTRUCTION LTD.,63996
RED HRA,HRA Capital,Construction Work,908105,Construction work,04-Feb-2014,2701157-189460,"28,922.89",DEERNESS FENCING LTD.,48635
RED HRA,HRA Capital,Construction Work,908105,Construction work,04-Feb-2014,2701070-971752,"3,670.40",BRITISH TELECOMMUNICATIONS PLC.,43006
Regeneration & Economic Development,Strategy Programmes and Performance,Supplies and Services,342055,Computers and Communications,04-Feb-2014,2701236-3630,"1,150.00",HANLON COMPUTER SYSTEMS LTD.,61247
Regeneration & Economic Development,Economic Development and Housing,Supplies and Services,324117,Provisions,04-Feb-2014,2700954-36536855,988.16,3663.,42578
Regeneration & Economic Development,Economic Development and Housing,Supplies and Services,384199,Miscellaneous Expenses,04-Feb-2014,2700981-80,"8,688.00",AHA DISTRIBUTION LTD.,148026
Regeneration & Economic Development,"Spatial Policy, Planning, Assets & Environment",Third Party Payments,440999,Other Third Party Payments,04-Feb-2014,2700953-634M8,750.00,1ST FOR LOCKS T/A 112 LTD.,165986
Regeneration & Economic Development,"Spatial Policy, Planning, Assets & Environment",Supplies and Services,342051,Computers and Communications,04-Feb-2014,2701113-M/EW018629,"2,750.94",CIVICA UK LTD.,61521
Regeneration & Economic Development,"Spatial Policy, Planning, Assets & Environment",Supplies and Services,338099,Services,04-Feb-2014,2701242-0040121223,"4,109.30",HARTLEPOOL BOROUGH COUNCIL.,43980
Regeneration & Economic Development,"Spatial Policy, Planning, Assets & Environment",Supplies and Services,338066,Services,04-Feb-2014,2701508-INV3563/1133,"1,080.00",NORTHERN ARCHAELOGICAL ASSOCIATES LTD.,123646
Regeneration & Economic Development,"Spatial Policy, Planning, Assets & Environment",Construction Work,908105,Construction work,04-Feb-2014,2701560-12/10,"8,110.52",RANDALL ORCHARD CONSTRUCTION LTD.,163757
Regeneration & Economic Development,"Spatial Policy, Planning, Assets & Environment",Supplies and Services,342225,Computers and Communications,04-Feb-2014,2701642-000003,"1,039.98",TECHNICAL COMMS LTD.,173573
Regeneration & Economic Development,Economic Development and Housing,Supplies and Services,384999,Miscellaneous Expenses,04-Feb-2014,2701509-RED-01-2014-222,"5,241.02",NORTHERN ROCK ASSET MANAGEMENT PLC (NRAM).,167068
Regeneration & Economic Development,Transport and Contracted Services,Supplies and Services,384199,Miscellaneous Expenses,04-Feb-2014,2701635-140539,"16,348.00",SUSTRANS.,134119
Regeneration & Economic Development,Economic Development and Housing,Supplies and Services,384899,Miscellaneous Expenses,04-Feb-2014,2701650-63,700.00,THE WITHAM.,51195
Regeneration & Economic Development,Economic Development and Housing,Supplies and Services,384899,Miscellaneous Expenses,04-Feb-2014,2701650-66,"1,100.00",THE WITHAM.,51195
Regeneration & Economic Development,Economic Development and Housing,Construction Work,908113,Capital - Landscaping,04-Feb-2014,2701063-140297,"11,004.12",BRAMBLEDOWN LANDSCAPE SERVICES LTD.,54000
Regeneration & Economic Development,Economic Development and Housing,Other Expenses,914001,Other capital expenses,04-Feb-2014,2701125-1609,"19,316.30",COMSHOP LTD.,173329
Regeneration & Economic Development,Economic Development and Housing,Fees,901001,Internal fees,04-Feb-2014,2701087-SITRH/0005983,591.66,CARE & REPAIR DERWENTSIDE.,123157
Regeneration & Economic Development,Economic Development and Housing,Fees,901001,Internal fees,04-Feb-2014,2701087-SITRH/0005984,831.00,CARE & REPAIR DERWENTSIDE.,123157
Regeneration & Economic Development,Economic Development and Housing,Cap Exp on Grants & Other Financial Assistance (REFCUS),918401,Capital grants,04-Feb-2014,2701585-RED-01-2014-228,"5,949.00",RONDEN PROPERTIES LTD.,50678
Regeneration & Economic Development,Economic Development and Housing,Cap Exp on Grants & Other Financial Assistance (REFCUS),918401,Capital grants,04-Feb-2014,2701654-RED-01-2014-229,"2,751.00",THYSSENKRUPP ENCASA LTD.,44486
Regeneration & Economic Development,Economic Development and Housing,Cap Exp on Grants & Other Financial Assistance (REFCUS),918401,Capital grants,04-Feb-2014,2701654-RED-01-2014-231,675.00,THYSSENKRUPP ENCASA LTD.,44486
Regeneration & Economic Development,Economic Development and Housing,Cap Exp on Grants & Other Financial Assistance (REFCUS),918401,Capital grants,04-Feb-2014,2701659-RED-01-2014-230,"5,171.00",TORONTO ELECTRICAL SERVICES & TESTING (TEST).,141018
Assistant Chief Executive,Partnerships & Community Engagement Div.,Supplies and Services,384085,Miscellaneous Expenses,05-Feb-2014,227884-ADEA16-13,500.00,LINDEN PLACE RESIDENTS ASSOCIATION.,62881
Assistant Chief Executive,Partnerships & Community Engagement Div.,Supplies and Services,384085,Miscellaneous Expenses,05-Feb-2014,227956-BELE03-13,544.00,SEAHAM RUGBY FOOTBALL CLUB.,87746
Children and Adult Services,Head of Adults,Transfer Payments,515201,Social Services Clients,05-Feb-2014,2701694-CAS-02-2014-005,580.23,REDACTED - PAYMENT TO INDIVIDUAL,95107
Children and Adult Services,Head of Adults,Third Party Payments,470101,Purchase of Care,05-Feb-2014,227797-2143240,"2,500.00",CARELINE LIFESTYLES LTD.,48304
Children and Adult Services,Commissioning inc Supporting People,Supplies and Services,384700,Miscellaneous Expenses,05-Feb-2014,227883-CCA40,"8,240.00",LIFELINE COMMUNITY ACTION.,172606
Children and Adult Services,Commissioning inc Supporting People,Third Party Payments,479111,Purchase of Care,05-Feb-2014,2701893-D1IN/00013620,"70,458.25",STONHAM HOUSING ASSOCIATION LTD.,46225
Children and Adult Services,Commissioning inc Supporting People,Third Party Payments,479111,Purchase of Care,05-Feb-2014,2701782-GD1314040,"16,000.00",GREATER DURHAM CITIZENS ADVICE BUREAU.,48730
Children and Adult Services,Commissioning inc Supporting People,Third Party Payments,479101,Purchase of Care,05-Feb-2014,2701719-650053002,"4,012.33",BRITISH RED CROSS SOCIETY.,43005
Children and Adult Services,Commissioning inc Supporting People,Third Party Payments,479101,Purchase of Care,05-Feb-2014,2701719-650053003,"4,012.33",BRITISH RED CROSS SOCIETY.,43005
Children and Adult Services,Commissioning inc Supporting People,Third Party Payments,479111,Purchase of Care,05-Feb-2014,2701844-3610007660,"51,675.00",NORTH TEES & HARTLEPOOL NHS FOUNDATION TRUST.,45479
Children and Adult Services,Commissioning inc Supporting People,Third Party Payments,479111,Purchase of Care,05-Feb-2014,2701895-CRM4633,"12,175.00",STROKE ASSOCIATION.,59377
Children and Adult Services,Head of Adults,Supplies and Services,338429,Services,05-Feb-2014,227964-02786,"1,600.00",T HS,174487
Children and Adult Services,Head of Adults,Third Party Payments,470101,Purchase of Care,05-Feb-2014,227797-2143241,"2,500.00",CARELINE LIFESTYLES LTD.,48304
Children and Adult Services,Head of Adults,Third Party Payments,470101,Purchase of Care,05-Feb-2014,227797-2143242,"2,016.00",CARELINE LIFESTYLES LTD.,48304
Children and Adult Services,Head of Adults,Third Party Payments,478101,Purchase of Care,05-Feb-2014,227919-2141039,"1,285.60",REDACTED - PAYMENT TO INDIVIDUAL,45067
Children and Adult Services,Head of Adults,Third Party Payments,472101,Purchase of Care,05-Feb-2014,2701752-5065,"1,475.50",DCS & D LTD T/A HERITAGE HEALTHCARE.,159068
Children and Adult Services,Head of Adults,Third Party Payments,474101,Purchase of Care,05-Feb-2014,227947-2141016,690.04,RICHMOND FELLOWSHIP.,45827
Children and Adult Services,Head of Adults,Income,720045,Fees and Charges,05-Feb-2014,227808-CAS-01-2014-211,"3,507.84",REDACTED - PAYMENT TO INDIVIDUAL,174383
Children and Adult Services,Commissioning inc Supporting People,Third Party Payments,479101,Purchase of Care,05-Feb-2014,2701868-3757,"17,730.25",RETHINK MENTAL ILLNESS.,156720
Children and Adult Services,Education,Supplies and Services,304245,Equipment and Materials,05-Feb-2014,2701889-P-6859,"1,079.50",HIRE EDUCATION LTD T/A STARBECK EDUCATIONAL RESOURCES.,50963
Children and Adult Services,Early Intervention and Involvement,Supplies and Services,304403,Equipment and Materials,05-Feb-2014,227887-6873,805.90,MAIL BOXES ETC.,173323
Children and Adult Services,Public Health,Third Party Payments,479101,Purchase of Care,05-Feb-2014,227968-A83035/APR,"7,764.76",THE WEARDALE PRACTICE.,51191
Children and Adult Services,Public Health,Third Party Payments,460802,Contract Payments,05-Feb-2014,227968-A83035/JUL,"5,509.53",THE WEARDALE PRACTICE.,51191
Children and Adult Services,Public Health,Third Party Payments,460803,Contract Payments,05-Feb-2014,2701717-FPC89/OCT/13,"1,549.83",BOOTS THE CHEMISTS LTD.,120493
Children and Adult Services,Public Health,Third Party Payments,460803,Contract Payments,05-Feb-2014,2701729,612.00,CENTRECHEM DISPENSING CHEMIST.,167098
Children and Adult Services,Public Health,Third Party Payments,460803,Contract Payments,05-Feb-2014,2701872,979.94,ROBERTS & ROBERTS LTD T/A HIGGINBOTTOM PHARMACY.,167886
Children and Adult Services,Public Health,Third Party Payments,460803,Contract Payments,05-Feb-2014,227962,"1,642.98",SUPERDRUG PHARMACY.,168652
Children and Adult Services,Education,Premises,145009,Cleaning and Domestic Supplies,05-Feb-2014,227789-003254,570.00,A & B INDUSTRIAL CLEANING LTD.,47856
Children and Adult Services,Early Intervention and Involvement,Third Party Payments,479101,Purchase of Care,05-Feb-2014,2701739-3910002528,"1,991.45",CO DURHAM & DARLINGTON NHS FOUNDATION TRUST.,43222
Children and Adult Services,Early Intervention and Involvement,Employees,040149,"Recruitment, Instruction and Training",05-Feb-2014,2701852-122,525.00,NURTURE US.,50319
Children and Adult Services,Education,Construction Work,908105,Construction work,05-Feb-2014,2701875-994,"3,600.00",SAFE STRIP UK LTD.,62955
Children and Adult Services,Education,Supplies and Services,324500,Provisions,05-Feb-2014,2701904-SI-TSD-1000422,"50,935.95",TAYLOR SHAW LTD.,46293
Dedicated Schools Grant,Dedicated Schools Grant,Third Party Payments,425005,Rendered by Voluntary Organisations,05-Feb-2014,227854-0018629,"2,060.00",DURHAM SCHOOL.,159867
Dedicated Schools Grant,Dedicated Schools Grant,Third Party Payments,440080,Other Third Party Payments,05-Feb-2014,227871-SIN048420,"3,993.90",HENSHAWS SOCIETY FOR THE BLIND.,58995
Dedicated Schools Grant,Dedicated Schools Grant,Supplies and Services,304639,Equipment and Materials,05-Feb-2014,2701861-2590934684,840.00,PHONAK UK LTD.,45657
Children and Adult Services,Childrens care,Third Party Payments,425020,Rendered by Voluntary Organisations,05-Feb-2014,2701859-20266,"2,760.00",PERCY HEDLEY FOUNDATION.,45630
Children and Adult Services,Childrens care,Third Party Payments,425040,Rendered by Voluntary Organisations,05-Feb-2014,2701901-141802,891.90,SWIIS FOSTER CARE LTD.,92006
Children and Adult Services,Childrens care,Third Party Payments,425040,Rendered by Voluntary Organisations,05-Feb-2014,2701901-141803,"1,069.00",SWIIS FOSTER CARE LTD.,92006
Children and Adult Services,Childrens care,Third Party Payments,425040,Rendered by Voluntary Organisations,05-Feb-2014,2701906-21243,"1,981.43",TEAM FOSTERING.,46306
Children and Adult Services,Childrens care,Supplies and Services,338044,Services,05-Feb-2014,227816-220,"1,297.68",REDACTED - PAYMENT TO INDIVIDUAL,159701
Children and Adult Services,Childrens care,Supplies and Services,338044,Services,05-Feb-2014,227816-235,"2,741.20",REDACTED - PAYMENT TO INDIVIDUAL,159701
Children and Adult Services,Childrens care,Supplies and Services,338042,Services,05-Feb-2014,227904,840.00,MR JUSTIN GRAY.,49982
Children and Adult Services,Childrens care,Supplies and Services,338040,Services,05-Feb-2014,2701788-RES-02-2014-005,"3,320.00",HMCTS.,49251
Children and Adult Services,Childrens care,Supplies and Services,364320,Grants to Voluntary Organisations,05-Feb-2014,2701829-CAS-02-2014-011,"3,262.50",REDACTED - PAYMENT TO INDIVIDUAL,173815
Children and Adult Services,Childrens care,Supplies and Services,364358,Grants to Voluntary Organisations,05-Feb-2014,227800-SINV312,"3,465.00",CLEVELAND COLLEGE OF ART & DESIGN.,155291
Children and Adult Services,Childrens care,Employees,080025,Agency Staff,05-Feb-2014,2701785-2013/050114,"1,368.00",HAMPTON`S RESOUCING.,172881
Children and Adult Services,Childrens care,Employees,080025,Agency Staff,05-Feb-2014,2701728-2276455,945.00,CELSIAN.,43123
Children and Adult Services,Education,Employees,040001,"Recruitment, Instruction and Training",05-Feb-2014,2701919-TARINV/15259789,607.50,TSL EDUCATION LTD.,46533
Corporate Resources,Financial Services,Supplies and Services,384199,Miscellaneous Expenses,05-Feb-2014,2701892-90399090,"2,559.00",STOCKPORT MBC.,156985
Corporate Resources,Financial Services,Supplies and Services,384199,Miscellaneous Expenses,05-Feb-2014,2701892-90399091,"1,706.00",STOCKPORT MBC.,156985
Corporate Resources,Financial Services,Supplies and Services,384199,Miscellaneous Expenses,05-Feb-2014,2701892-90399092,"3,412.00",STOCKPORT MBC.,156985
Corporate Resources,Financial Services,Supplies and Services,384199,Miscellaneous Expenses,05-Feb-2014,2701892-90399093,"2,559.00",STOCKPORT MBC.,156985
Corporate Resources,Financial Services,Employees,040149,"Recruitment, Instruction and Training",05-Feb-2014,2701731-3093206,600.00,CIPFA BUSINESS LTD.,44125
Corporate Resources,I.C.T. Services,Stock,926900,Stock in hand-Inventory system,05-Feb-2014,2701886-OP/L791169,"1,600.00",SPECIALIST COMPUTER CENTRES PLC.,50889
Corporate Resources,I.C.T. Services,"Vehicles, Equipment, Furniture and Fittings",912701,Computer equipment,05-Feb-2014,2701902-119033,"3,555.00",SWITCHSHOP LTD.,51032
Corporate Resources,I.C.T. Services,Supplies and Services,304259,Equipment and Materials,05-Feb-2014,2701815-INV3070,"4,160.00",LION CONTAINERS LTD.,174045
Corporate Resources,I.C.T. Services,Supplies and Services,342051,Computers and Communications,05-Feb-2014,2701722-365493,"2,281.30",BYTES SOFTWARE SERVICES.,164101
Corporate Resources,I.C.T. Services,Debtors,930167,Debtor-Telephone Holding Account,05-Feb-2014,2701720-GB,"3,579.43",BRITISH TELECOMMUNICATIONS PLC.,43006
Corporate Resources,I.C.T. Services,Debtors,930167,Debtor-Telephone Holding Account,05-Feb-2014,2701720-GD,"25,214.97",BRITISH TELECOMMUNICATIONS PLC.,43006
Corporate Resources,Human Resources,Supplies and Services,338027,Services,05-Feb-2014,2701934-INV-0061,"1,326.10",YOUR GROWTH CONSULTING LTD.,174426
Neighbourhood Services,Direct Services,Supplies and Services,304259,Equipment and Materials,05-Feb-2014,2701766-SI143739,"1,168.20",FLEET (LINE MARKERS) LTD.,54132
Neighbourhood Services,Direct Services,Premises,108099,Service Repairs and Maintenance,05-Feb-2014,2701799,"3,273.00",JN KEARTON.,102872
Neighbourhood Services,Direct Services,Supplies and Services,304221,Equipment and Materials,05-Feb-2014,2701781-6028,697.50,GRAFFITI REMOVAL LTD.,102487
Neighbourhood Services,Direct Services,Third Party Payments,430100,Rendered by Private Contractors,05-Feb-2014,2701812-1271,600.00,LAWLORS FALLEN STOCK.,159158
Neighbourhood Services,Direct Services,Income,720263,Fees and Charges,05-Feb-2014,227913,765.00,MR ZAKIR AHMED.,170596
Neighbourhood Services,Direct Services,Transport,230005,Contract Hire,05-Feb-2014,2701751-067890,"1,998.81",DAWSONRENTALS SWEEPERS.,115705
Neighbourhood Services,Direct Services,Transport,230005,Contract Hire,05-Feb-2014,2701874-SLINV/00065890,"4,620.00",RTR RIVERSIDE TRUCK RENTAL LTD.,57849
Neighbourhood Services,Direct Services,Transport,230005,Contract Hire,05-Feb-2014,2701713-301627,"1,350.00",BICKFORD TRUCK HIRE LTD.,111613
Neighbourhood Services,Direct Services,Transport,230005,Contract Hire,05-Feb-2014,2701841-68412,"3,740.00",NOBLET MUNICIPAL SERVICES LTD.,102564
Neighbourhood Services,Direct Services,Transport,230005,Contract Hire,05-Feb-2014,2701874-SLINV/00065889,"3,272.64",RTR RIVERSIDE TRUCK RENTAL LTD.,57849
Neighbourhood Services,Direct Services,Transport,230005,Contract Hire,05-Feb-2014,2701874-SLINV/00065893,"4,620.00",RTR RIVERSIDE TRUCK RENTAL LTD.,57849
Neighbourhood Services,Direct Services,Transport,230005,Contract Hire,05-Feb-2014,2701874-SLINV/00065895,"4,620.00",RTR RIVERSIDE TRUCK RENTAL LTD.,57849
Neighbourhood Services,Direct Services,Transport,230005,Contract Hire,05-Feb-2014,2701874-SLINV/00065900,"3,272.64",RTR RIVERSIDE TRUCK RENTAL LTD.,57849
Neighbourhood Services,Direct Services,Transport,230005,Contract Hire,05-Feb-2014,2701874-SLINV/00065901,"3,272.64",RTR RIVERSIDE TRUCK RENTAL LTD.,57849
Neighbourhood Services,Culture & Sport,"Vehicles, Equipment, Furniture and Fittings",912529,Purchase-equipment,05-Feb-2014,2701737-IN034120,"17,536.02",CLEVELAND LAND SERVICES (GUISBOROUGH) LTD.,93848
Neighbourhood Services,Culture & Sport,Supplies and Services,338099,Services,05-Feb-2014,2701702-734,"3,900.00",ASA JAMES.,112534
Neighbourhood Services,Technical Services,Third Party Payments,460350,Contract Payments,05-Feb-2014,2701750-465,"2,293.50",D & L HOPPS.,43382
Neighbourhood Services,Technical Services,Third Party Payments,460350,Contract Payments,05-Feb-2014,2701786-4287,"3,841.50",HAWTHORN PLANT HIRE.,49184
Neighbourhood Services,Direct Services,Supplies and Services,304221,Equipment and Materials,05-Feb-2014,2701790-B33/0062335,"1,036.89",HOWDENS JOINERY LTD.,44065
Neighbourhood Services,Direct Services,Third Party Payments,430100,Rendered by Private Contractors,05-Feb-2014,2701875-998,756.00,SAFE STRIP UK LTD.,62955
Neighbourhood Services,Culture & Sport,Third Party Payments,430100,Rendered by Private Contractors,05-Feb-2014,2701809-WALL2/12/13,"4,995.00",KEN PEACOCK.,107915
Neighbourhood Services,Culture & Sport,Third Party Payments,430100,Rendered by Private Contractors,05-Feb-2014,2701809-WALL-25/10/13,"4,995.00",KEN PEACOCK.,107915
Neighbourhood Services,Technical Services,Supplies and Services,338027,Services,05-Feb-2014,2701705-13042742,"1,746.00",ATKINS GLOBAL.,168904
Neighbourhood Services,"Environment,Health & Consumer Protection",Supplies and Services,336005,Advertising,05-Feb-2014,2701772-107321084,650.00,GATESHEAD COUNCIL.,43852
Neighbourhood Services,"Environment,Health & Consumer Protection",Supplies and Services,338027,Services,05-Feb-2014,227895-206275,"1,190.00",MISS JOAN SMITH.,94967
Neighbourhood Services,Projects and Business services,Supplies and Services,304357,Equipment and Materials,05-Feb-2014,2701802-1201530,"3,218.46",JOHN NIXON LTD.,44266
Neighbourhood Services,Projects and Business services,Supplies and Services,304357,Equipment and Materials,05-Feb-2014,2701802-1229498,655.20,JOHN NIXON LTD.,44266
Neighbourhood Services,Projects and Business services,Supplies and Services,304357,Equipment and Materials,05-Feb-2014,2701802-1241647,576.60,JOHN NIXON LTD.,44266
Neighbourhood Services,Direct Services,Premises,135005,Water Services,05-Feb-2014,2701849-314891340024003,"2,661.60",NORTHUMBRIAN WATER LTD.,45504
Neighbourhood Services,Sport & Leisure,Fees,901002,Professional fees,05-Feb-2014,2701705-13042756,"1,686.00",ATKINS GLOBAL.,168904
Neighbourhood Services,Technical Services,Stock,926900,Stock in hand-Inventory system,05-Feb-2014,2701708-INV085458,"1,400.00",AZTEC CHEMICALS LTD.,42841
Neighbourhood Services,Technical Services,Stock,926900,Stock in hand-Inventory system,05-Feb-2014,2701762-059-136092,"8,923.98",EDMUNDSON ELECTRICAL LTD.,43635
Neighbourhood Services,Technical Services,Stock,926900,Stock in hand-Inventory system,05-Feb-2014,2701791-080561,"1,596.40",HYDRAM ENGINEERING LTD.,44082
Neighbourhood Services,Technical Services,Stock,926900,Stock in hand-Inventory system,05-Feb-2014,2701805-STI394407,632.17,JT DOVE LTD.,44305
Neighbourhood Services,Technical Services,Stock,926900,Stock in hand-Inventory system,05-Feb-2014,2701857-XL106340,825.00,PARK ELECTRICAL DISTRIBUTORS LTD.,45579
Neighbourhood Services,Technical Services,Supplies and Services,372009,Subscriptions,05-Feb-2014,227949-3117,"2,000.00",ROAD SURFACE TREATMENTS ASSOCIATION.,50662
Neighbourhood Services,Technical Services,Supplies and Services,304221,Equipment and Materials,05-Feb-2014,2701696-19172339,"1,207.60",AGGREGATE INDUSTRIES UK LTD.,42655
Neighbourhood Services,Technical Services,Supplies and Services,304221,Equipment and Materials,05-Feb-2014,2701696-19209240,860.15,AGGREGATE INDUSTRIES UK LTD.,42655
Neighbourhood Services,Technical Services,Supplies and Services,304221,Equipment and Materials,05-Feb-2014,2701696-19209341,"2,487.44",AGGREGATE INDUSTRIES UK LTD.,42655
Neighbourhood Services,Technical Services,Supplies and Services,304221,Equipment and Materials,05-Feb-2014,2701697-18944218,620.75,AGGREGATE INDUSTRIES UK LTD.,42655
Neighbourhood Services,Technical Services,Supplies and Services,304221,Equipment and Materials,05-Feb-2014,2701697-19128139,"2,473.00",AGGREGATE INDUSTRIES UK LTD.,42655
Neighbourhood Services,Technical Services,Supplies and Services,304221,Equipment and Materials,05-Feb-2014,2701697-19161828,"1,031.21",AGGREGATE INDUSTRIES UK LTD.,42655
Neighbourhood Services,Technical Services,Supplies and Services,304221,Equipment and Materials,05-Feb-2014,2701697-19181825,646.00,AGGREGATE INDUSTRIES UK LTD.,42655
Neighbourhood Services,Technical Services,Supplies and Services,304221,Equipment and Materials,05-Feb-2014,2701697-19181828,"6,028.80",AGGREGATE INDUSTRIES UK LTD.,42655
Neighbourhood Services,Technical Services,Supplies and Services,304221,Equipment and Materials,05-Feb-2014,2701697-19181829,"1,013.03",AGGREGATE INDUSTRIES UK LTD.,42655
Neighbourhood Services,Technical Services,Supplies and Services,304221,Equipment and Materials,05-Feb-2014,2701697-19185953,808.16,AGGREGATE INDUSTRIES UK LTD.,42655
Neighbourhood Services,Technical Services,Supplies and Services,304221,Equipment and Materials,05-Feb-2014,2701697-19185954,555.65,AGGREGATE INDUSTRIES UK LTD.,42655
Neighbourhood Services,Technical Services,Supplies and Services,304221,Equipment and Materials,05-Feb-2014,2701697-19185955,653.20,AGGREGATE INDUSTRIES UK LTD.,42655
Neighbourhood Services,Technical Services,Supplies and Services,304221,Equipment and Materials,05-Feb-2014,2701697-19185956,641.06,AGGREGATE INDUSTRIES UK LTD.,42655
Neighbourhood Services,Technical Services,Supplies and Services,304221,Equipment and Materials,05-Feb-2014,2701697-19186266,"1,091.61",AGGREGATE INDUSTRIES UK LTD.,42655
Neighbourhood Services,Technical Services,Supplies and Services,304221,Equipment and Materials,05-Feb-2014,2701697-19188265,827.92,AGGREGATE INDUSTRIES UK LTD.,42655
Neighbourhood Services,Technical Services,Supplies and Services,304221,Equipment and Materials,05-Feb-2014,2701697-19188267,610.80,AGGREGATE INDUSTRIES UK LTD.,42655
Neighbourhood Services,Technical Services,Supplies and Services,304221,Equipment and Materials,05-Feb-2014,2701697-19188268,660.44,AGGREGATE INDUSTRIES UK LTD.,42655
Neighbourhood Services,Technical Services,Supplies and Services,304221,Equipment and Materials,05-Feb-2014,2701697-19188269,640.04,AGGREGATE INDUSTRIES UK LTD.,42655
Neighbourhood Services,Technical Services,Supplies and Services,304221,Equipment and Materials,05-Feb-2014,2701697-19188270,"11,787.60",AGGREGATE INDUSTRIES UK LTD.,42655
Neighbourhood Services,Technical Services,Supplies and Services,304221,Equipment and Materials,05-Feb-2014,2701697-19193633,"1,406.20",AGGREGATE INDUSTRIES UK LTD.,42655
Neighbourhood Services,Technical Services,Supplies and Services,304221,Equipment and Materials,05-Feb-2014,2701697-19193634,"1,123.60",AGGREGATE INDUSTRIES UK LTD.,42655
Neighbourhood Services,Technical Services,Supplies and Services,304221,Equipment and Materials,05-Feb-2014,2701697-19193635,"8,549.80",AGGREGATE INDUSTRIES UK LTD.,42655
Neighbourhood Services,Technical Services,Supplies and Services,304221,Equipment and Materials,05-Feb-2014,2701697-19193636,"1,785.56",AGGREGATE INDUSTRIES UK LTD.,42655
Neighbourhood Services,Technical Services,Supplies and Services,304221,Equipment and Materials,05-Feb-2014,2701697-19198862,778.16,AGGREGATE INDUSTRIES UK LTD.,42655
Neighbourhood Services,Technical Services,Supplies and Services,304221,Equipment and Materials,05-Feb-2014,2701697-19198864,"10,941.76",AGGREGATE INDUSTRIES UK LTD.,42655
Neighbourhood Services,Technical Services,Supplies and Services,304221,Equipment and Materials,05-Feb-2014,2701697-19198865,"1,009.63",AGGREGATE INDUSTRIES UK LTD.,42655
Neighbourhood Services,Technical Services,Supplies and Services,304221,Equipment and Materials,05-Feb-2014,2701697-19198866,"2,022.44",AGGREGATE INDUSTRIES UK LTD.,42655
Neighbourhood Services,Technical Services,Supplies and Services,304221,Equipment and Materials,05-Feb-2014,2701697-19198B63,"1,153.08",AGGREGATE INDUSTRIES UK LTD.,42655
Neighbourhood Services,Technical Services,Supplies and Services,304221,Equipment and Materials,05-Feb-2014,2701697-19203338,"11,161.24",AGGREGATE INDUSTRIES UK LTD.,42655
Neighbourhood Services,Technical Services,Supplies and Services,304221,Equipment and Materials,05-Feb-2014,2701697-19203634,886.16,AGGREGATE INDUSTRIES UK LTD.,42655
Neighbourhood Services,Technical Services,Supplies and Services,304221,Equipment and Materials,05-Feb-2014,2701697-19203835,"1,156.48",AGGREGATE INDUSTRIES UK LTD.,42655
Neighbourhood Services,Technical Services,Supplies and Services,304221,Equipment and Materials,05-Feb-2014,2701697-19203836,"3,593.76",AGGREGATE INDUSTRIES UK LTD.,42655
Neighbourhood Services,Technical Services,Supplies and Services,304221,Equipment and Materials,05-Feb-2014,2701697-19203837,564.83,AGGREGATE INDUSTRIES UK LTD.,42655
Neighbourhood Services,Technical Services,Supplies and Services,304221,Equipment and Materials,05-Feb-2014,2701697-19209337,998.20,AGGREGATE INDUSTRIES UK LTD.,42655
Neighbourhood Services,Technical Services,Supplies and Services,304221,Equipment and Materials,05-Feb-2014,2701697-19209338,514.55,AGGREGATE INDUSTRIES UK LTD.,42655
Neighbourhood Services,Technical Services,Supplies and Services,304221,Equipment and Materials,05-Feb-2014,2701697-19209339,"1,138.34",AGGREGATE INDUSTRIES UK LTD.,42655
Neighbourhood Services,Technical Services,Supplies and Services,304221,Equipment and Materials,05-Feb-2014,2701697-19209340,"1,226.36",AGGREGATE INDUSTRIES UK LTD.,42655
Neighbourhood Services,Technical Services,Supplies and Services,304221,Equipment and Materials,05-Feb-2014,2701697-19209344,"1,028.46",AGGREGATE INDUSTRIES UK LTD.,42655
Neighbourhood Services,Technical Services,Supplies and Services,304221,Equipment and Materials,05-Feb-2014,2701697-19214389,885.36,AGGREGATE INDUSTRIES UK LTD.,42655
Neighbourhood Services,Technical Services,Supplies and Services,304221,Equipment and Materials,05-Feb-2014,2701697-19214391,"3,718.76",AGGREGATE INDUSTRIES UK LTD.,42655
Neighbourhood Services,Technical Services,Supplies and Services,304221,Equipment and Materials,05-Feb-2014,2701697-19214392,"1,242.48",AGGREGATE INDUSTRIES UK LTD.,42655
Neighbourhood Services,Technical Services,Supplies and Services,304221,Equipment and Materials,05-Feb-2014,2701697-19216953,"8,063.72",AGGREGATE INDUSTRIES UK LTD.,42655
Neighbourhood Services,Technical Services,Supplies and Services,304221,Equipment and Materials,05-Feb-2014,2701697-19222065,851.99,AGGREGATE INDUSTRIES UK LTD.,42655
Neighbourhood Services,Technical Services,Supplies and Services,304221,Equipment and Materials,05-Feb-2014,2701697-19222153,769.68,AGGREGATE INDUSTRIES UK LTD.,42655
Neighbourhood Services,Technical Services,Supplies and Services,304221,Equipment and Materials,05-Feb-2014,2701697-19222156,555.66,AGGREGATE INDUSTRIES UK LTD.,42655
Neighbourhood Services,Technical Services,Supplies and Services,304221,Equipment and Materials,05-Feb-2014,2701697-19227808,"1,293.87",AGGREGATE INDUSTRIES UK LTD.,42655
Neighbourhood Services,Technical Services,Supplies and Services,304221,Equipment and Materials,05-Feb-2014,2701697-19227899,672.00,AGGREGATE INDUSTRIES UK LTD.,42655
Neighbourhood Services,Technical Services,Supplies and Services,304221,Equipment and Materials,05-Feb-2014,2701697-19227901,"2,095.23",AGGREGATE INDUSTRIES UK LTD.,42655
Neighbourhood Services,Technical Services,Supplies and Services,304221,Equipment and Materials,05-Feb-2014,2701697-19227902,"7,257.72",AGGREGATE INDUSTRIES UK LTD.,42655
Neighbourhood Services,Technical Services,Supplies and Services,304221,Equipment and Materials,05-Feb-2014,2701697-19227903,787.13,AGGREGATE INDUSTRIES UK LTD.,42655
Neighbourhood Services,Technical Services,Supplies and Services,304221,Equipment and Materials,05-Feb-2014,2701697-19233477,"5,582.48",AGGREGATE INDUSTRIES UK LTD.,42655
Neighbourhood Services,Technical Services,Supplies and Services,304221,Equipment and Materials,05-Feb-2014,2701697-19239258,"6,080.96",AGGREGATE INDUSTRIES UK LTD.,42655
Neighbourhood Services,Technical Services,Supplies and Services,304221,Equipment and Materials,05-Feb-2014,2701697-19246737,"7,488.36",AGGREGATE INDUSTRIES UK LTD.,42655
Neighbourhood Services,Technical Services,Supplies and Services,304221,Equipment and Materials,05-Feb-2014,2701697-19246740,616.16,AGGREGATE INDUSTRIES UK LTD.,42655
Neighbourhood Services,Technical Services,Supplies and Services,304221,Equipment and Materials,05-Feb-2014,2701712-2052,"1,000.00",BEAVER BRIDGES.,168495
Neighbourhood Services,Technical Services,Supplies and Services,304357,Equipment and Materials,05-Feb-2014,2701721-NEW8105106,"1,135.50",BURNT TREE GROUP LTD.,43033
Neighbourhood Services,Technical Services,Third Party Payments,430100,Rendered by Private Contractors,05-Feb-2014,2701763-1400383,"4,990.00",EL FABRICATIONS LTD.,151428
Neighbourhood Services,Technical Services,Third Party Payments,430100,Rendered by Private Contractors,05-Feb-2014,2701779-23250,640.00,GRAB & DELIVER LTD.,144885
Neighbourhood Services,Technical Services,Third Party Payments,430100,Rendered by Private Contractors,05-Feb-2014,2701779-23332,940.00,GRAB & DELIVER LTD.,144885
Neighbourhood Services,Technical Services,Third Party Payments,430100,Rendered by Private Contractors,05-Feb-2014,2701863-127061,"3,882.20",PREMIER TRAFFIC MANAGEMENT LTD.,45702
Neighbourhood Services,Technical Services,Supplies and Services,304221,Equipment and Materials,05-Feb-2014,2701880-25216359326,"1,490.93",USE (175070) SIG FIXINGS.,49778
Neighbourhood Services,Technical Services,Supplies and Services,304221,Equipment and Materials,05-Feb-2014,2701880-25216374181,"3,304.00",USE (175070) SIG FIXINGS.,49778
Neighbourhood Services,Technical Services,Supplies and Services,304358,Equipment and Materials,05-Feb-2014,2701926-36691,"2,069.50",W MARLEY AGRICULTURAL CONTRACTORS LTD.,46628
Neighbourhood Services,Direct Services,Supplies and Services,304259,Equipment and Materials,05-Feb-2014,2701764-SI10568,771.85,ELECTROMASTER TELECOMMUNICATIONS LTD.,84585
Neighbourhood Services,Direct Services,Third Party Payments,430100,Rendered by Private Contractors,05-Feb-2014,2701699-14263,"5,450.00",AMBIC LTD.,42697
Neighbourhood Services,Direct Services,Third Party Payments,430100,Rendered by Private Contractors,05-Feb-2014,2701699-14239,"1,250.00",AMBIC LTD.,42697
Neighbourhood Services,Direct Services,Third Party Payments,430100,Rendered by Private Contractors,05-Feb-2014,2701699-14286,"3,750.00",AMBIC LTD.,42697
Neighbourhood Services,Direct Services,Third Party Payments,430100,Rendered by Private Contractors,05-Feb-2014,2701922-2233,700.00,UPNORTH FOODSERVICE EQUIPMENT LTD.,128213
Neighbourhood Services,Direct Services,Third Party Payments,430100,Rendered by Private Contractors,05-Feb-2014,2701695-25053580-61,581.98,ADT FIRE & SECURITY PLC.,42644
Neighbourhood Services,Direct Services,Supplies and Services,304221,Equipment and Materials,05-Feb-2014,2701907-P19378,505.90,TERRY GROUP LTD.,51085
Neighbourhood Services,Direct Services,Supplies and Services,304221,Equipment and Materials,05-Feb-2014,2701933-036981-001,"2,091.64",XTRALITE (ROOFLIGHTS) LTD.,46760
Neighbourhood Services,Direct Services,Supplies and Services,304221,Equipment and Materials,05-Feb-2014,227792-ME/420670,709.00,AMARI PLASTICS PLC.,42695
Neighbourhood Services,Direct Services,Supplies and Services,324117,Provisions,05-Feb-2014,2701718-34249240,546.87,BRAKE BROS FOODSERVICE LTD.,42973
Neighbourhood Services,Direct Services,Supplies and Services,324117,Provisions,05-Feb-2014,2701718-34278291,507.49,BRAKE BROS FOODSERVICE LTD.,42973
Neighbourhood Services,Culture & Sport,Supplies and Services,312013,"Newspapers, Books and Periodicals",05-Feb-2014,2701839-221,"1,200.00",NEW WRITING NORTH LTD.,97880
Neighbourhood Services,Culture & Sport,Supplies and Services,324001,Provisions,05-Feb-2014,2701726-EW54861455,"1,335.64",CARLSBERG UK LTD.,93769
RED HRA,Housing Revenue Account,Premises,105003,HRA Repair & Maintenance,05-Feb-2014,2701824-188794,"1,880.45",MITIE PROPERTY SERVICES (UK) LTD.,58752
RED HRA,Housing Revenue Account,Supplies and Services,338027,Services,05-Feb-2014,2701856-1470,"3,488.31",OPEN COMMUNITIES LTD.,159048
RED HRA,HRA Centrally Managed,Supplies and Services,384999,Miscellaneous Expenses,05-Feb-2014,227925,658.59,REDACTED - PAYMENT TO INDIVIDUAL,174369
RED HRA,HRA Capital,Construction Work,908105,Construction work,05-Feb-2014,2701762-189864,645.24,EDMUNDSON ELECTRICAL LTD.,43635
RED HRA,HRA Capital,Other Expenses,914006,Tenants Allowances,05-Feb-2014,2701769-6/369634,"1,867.76",FRED WILLIAMSON & SONS LTD.,43811
RED HRA,HRA Capital,Construction Work,908105,Construction work,05-Feb-2014,2701814-RV10053,"1,380.00",LIDDLE DOORS LTD.,133012
RED HRA,HRA Capital,Construction Work,908105,Construction work,05-Feb-2014,2701897-187040,"1,498.50",SUNTER LTD.,53106
RED HRA,HRA Capital,Construction Work,908105,Construction work,05-Feb-2014,2701897-188449,"1,477.49",SUNTER LTD.,53106
RED HRA,HRA Capital,Construction Work,908105,Construction work,05-Feb-2014,2701914-I2013/328,"34,975.54",TODD MILBURN PARTNERSHIP LTD.,86200
RED HRA,HRA Capital,Other Expenses,914001,Other capital expenses,05-Feb-2014,2701927-401B,533.34,WEAR VALLEY DECORATING CENTRE LTD.,51380
Regeneration & Economic Development,Economic Development and Housing,Supplies and Services,384540,Miscellaneous Expenses,05-Feb-2014,2701925-2060,702.00,VISIT COUNTY DURHAM.,59977
Regeneration & Economic Development,Strategy Programmes and Performance,Supplies and Services,384899,Miscellaneous Expenses,05-Feb-2014,2701885,"1,738.16",SOUTH DURHAM ENTERPRISE AGENCY LTD.,75379
Regeneration & Economic Development,Economic Development and Housing,Supplies and Services,304259,Equipment and Materials,05-Feb-2014,2701836-20145646,795.83,NEOPOST FINANCE LTD.,45407
Regeneration & Economic Development,Economic Development and Housing,Supplies and Services,368006,Incentives to Industrialists,05-Feb-2014,2701784-RED-01-2014-197,"87,000.00",GT GROUP LTD.,143144
Regeneration & Economic Development,Economic Development and Housing,Supplies and Services,384199,Miscellaneous Expenses,05-Feb-2014,2701732-SIN011709,"3,261.00",CISION UK LTD.,137892
Regeneration & Economic Development,Economic Development and Housing,Supplies and Services,384199,Miscellaneous Expenses,05-Feb-2014,2701823-PPC5/11/13,500.00,MEDIAWORKS UK LTD.,159741
Regeneration & Economic Development,Economic Development and Housing,Supplies and Services,384700,Miscellaneous Expenses,05-Feb-2014,2701709-RED-01-2014-112,"1,250.60",BATSON LANDSCAPE & TREE CARE LTD.,42876
Regeneration & Economic Development,Economic Development and Housing,Supplies and Services,384700,Miscellaneous Expenses,05-Feb-2014,2701730-RED-01-2014-014,"2,000.00",CHESTER LE TRACK.,172814
Regeneration & Economic Development,Economic Development and Housing,Supplies and Services,384700,Miscellaneous Expenses,05-Feb-2014,2701793-RED-01-2014-113,"1,000.00",INFINITE LEARNING & DEVELOPMENT.,166719
Regeneration & Economic Development,"Spatial Policy, Planning, Assets & Environment",Supplies and Services,384199,Miscellaneous Expenses,05-Feb-2014,2701807-378,"45,803.00",JW BAINBRIDGE CONTRACTORS LTD.,58512
Regeneration & Economic Development,Economic Development and Housing,Third Party Payments,430100,Rendered by Private Contractors,05-Feb-2014,2701768-SITRH/0005937,"17,377.50",FOUR HOUSING GROUP.,151213
Regeneration & Economic Development,Transport and Contracted Services,Third Party Payments,440999,Other Third Party Payments,05-Feb-2014,2701748-2429399,"14,247.97",DARLINGTON BOROUGH COUNCIL.,42964
Regeneration & Economic Development,Transport and Contracted Services,Third Party Payments,440999,Other Third Party Payments,05-Feb-2014,2701759-5595-12,"1,666.67",DTA CONSULTING ENGINEERS.,43530
Regeneration & Economic Development,Transport and Contracted Services,Other Expenses,914001,Other capital expenses,05-Feb-2014,2701710-23584,"3,884.00",BAYDALE CONTROL SYSTEMS LTD.,115668
Regeneration & Economic Development,Transport and Contracted Services,Supplies and Services,384956,Miscellaneous Expenses,05-Feb-2014,2701864-4149394,546.21,PRS FOR MUSIC.,51161
Regeneration & Economic Development,Transport and Contracted Services,Premises,125009,Rents,05-Feb-2014,2701894-275480,"1,000.00",STOREYS EDWARD SYMMONS.,162653
Regeneration & Economic Development,Transport and Contracted Services,Other Expenses,914001,Other capital expenses,05-Feb-2014,2701899-6665,"4,140.00",SURVEY & MARKETING SERVICES LTD.,46246
Regeneration & Economic Development,"Spatial Policy, Planning, Assets & Environment",Employees,040149,"Recruitment, Instruction and Training",05-Feb-2014,2701837-50057805,"2,700.00",NEW COLLEGE DURHAM.,45419
Assistant Chief Executive,Partnerships & Community Engagement Div.,Supplies and Services,312010,"Newspapers, Books and Periodicals",06-Feb-2014,2702216-JD/DCC/1165,610.00,JACK DRUM ARTS LTD.,44166
Assistant Chief Executive,Partnerships & Community Engagement Div.,Supplies and Services,384086,Miscellaneous Expenses,06-Feb-2014,2702035-13NB-CHES017,"4,000.00",CHESTER LE STREET & DISTRICT WELFARE COMMITTEE.,165270
Assistant Chief Executive,Partnerships & Community Engagement Div.,Cap Exp on Grants & Other Financial Assistance (REFCUS),918004,Contributions to other bodies,06-Feb-2014,2702127-MDUR007ADD,"1,150.00",ESH PARISH COUNCIL.,60472
Assistant Chief Executive,Partnerships & Community Engagement Div.,Cap Exp on Grants & Other Financial Assistance (REFCUS),918004,Contributions to other bodies,06-Feb-2014,2702131-CHES022,"2,000.00",FENCE HOUSES COMMUNITY ASSOCIATION.,62175
Assistant Chief Executive,Partnerships & Community Engagement Div.,Cap Exp on Grants & Other Financial Assistance (REFCUS),918004,Contributions to other bodies,06-Feb-2014,2702133-4TOG010,"5,860.00",FERRYHILL TOWN COUNCIL.,43752
Assistant Chief Executive,Partnerships & Community Engagement Div.,Cap Exp on Grants & Other Financial Assistance (REFCUS),918004,Contributions to other bodies,06-Feb-2014,2702556-TEES008,"5,000.00",VEG OUT IN BARNY.,174511
Assistant Chief Executive,Partnerships & Community Engagement Div.,Construction Work,908105,Construction work,06-Feb-2014,2702262-10327,"1,570.00",LUCION ENVIRONMENTAL LLP LTD.,153666
Children and Adult Services,Commissioning inc Supporting People,Supplies and Services,384700,Miscellaneous Expenses,06-Feb-2014,2702181-023,"10,000.00",HASWELL & DISTRICT MENCAP SOCIETY.,43984
Children and Adult Services,Commissioning inc Supporting People,Supplies and Services,384700,Miscellaneous Expenses,06-Feb-2014,2702548-71,"2,175.00",U CRE8 COMMUNITY ARTS LTD.,61912
Children and Adult Services,Head of Adults,Cap Exp on Grants & Other Financial Assistance (REFCUS),918401,Capital grants,06-Feb-2014,2702512-CAS-02-2014-03,"46,148.47",THE HOSPITAL OF GOD AT GREATHAM.,166366
Children and Adult Services,Planning & Service Strategy,Supplies and Services,338089,Services,06-Feb-2014,2702308-133/2014,"1,795.00",NATIONAL APPROPRIATE ADULT NETWORK LTD.,57852
Children and Adult Services,Planning & Service Strategy,Supplies and Services,342051,Computers and Communications,06-Feb-2014,2702019-365658,722.64,BYTES SOFTWARE SERVICES.,164101
Children and Adult Services,Early Intervention and Involvement,Supplies and Services,338099,Services,06-Feb-2014,2702206-13,"2,441.20",INSPIRE YOUTH CIC.,154935
Children and Adult Services,Early Intervention and Involvement,Supplies and Services,336005,Advertising,06-Feb-2014,2702206-15,"1,638.00",INSPIRE YOUTH CIC.,154935
Children and Adult Services,Public Health,Third Party Payments,460802,Contract Payments,06-Feb-2014,2702577,992.69,WEST CORNFORTH MEDICAL CENTRE.,167149
Children and Adult Services,Public Health,Third Party Payments,460802,Contract Payments,06-Feb-2014,2702578,"2,493.29",WEST RAINTON SURGERY.,134206
Children and Adult Services,Public Health,Third Party Payments,460802,Contract Payments,06-Feb-2014,2702589,725.00,WOODVIEW MEDICAL PRACTICE.,167152
Children and Adult Services,Public Health,Third Party Payments,460803,Contract Payments,06-Feb-2014,2701999,739.71,BOOTS THE CHEMISTS LTD.,120493
Children and Adult Services,Public Health,Third Party Payments,460803,Contract Payments,06-Feb-2014,2702032,"1,446.50",CENTRECHEM DISPENSING CHEMIST.,167098
Dedicated Schools Grant,Dedicated Schools Grant,Transport,230010,Contract Hire,06-Feb-2014,2702197-PRU020,"1,325.00",IAN SOULSBY.,44092
Dedicated Schools Grant,Dedicated Schools Grant,Transport,230010,Contract Hire,06-Feb-2014,2702325-2,"1,074.00",NORTH EAST EXECUTIVE TRAVEL.,174065
Dedicated Schools Grant,Dedicated Schools Grant,Transport,230010,Contract Hire,06-Feb-2014,2702526-TS14-16,"1,442.00",TOP STAR TRAVEL.,46488
Dedicated Schools Grant,Dedicated Schools Grant,Transport,230010,Contract Hire,06-Feb-2014,2702537-13005,"1,156.00",TRAVEL 6.,151653
Dedicated Schools Grant,Dedicated Schools Grant,Transport,230010,Contract Hire,06-Feb-2014,2702537-2020,"1,002.00",TRAVEL 6.,151653
Dedicated Schools Grant,Dedicated Schools Grant,Transport,230010,Contract Hire,06-Feb-2014,2702485-24301G,"1,173.00",T MOORE & SON.,46274
Dedicated Schools Grant,Dedicated Schools Grant,Transport,230010,Contract Hire,06-Feb-2014,2702485-24401H,"1,554.00",T MOORE & SON.,46274
Dedicated Schools Grant,Dedicated Schools Grant,Employees,080025,Agency Staff,06-Feb-2014,2702023-03619462,"1,107.15",CAPITA EDUCATION RESOURCING.,43065
Children and Adult Services,Early Intervention and Involvement,Supplies and Services,384199,Miscellaneous Expenses,06-Feb-2014,2702478-0000003878,600.00,SUNDERLAND AFC FOUNDATION.,46231
Children and Adult Services,Early Intervention and Involvement,Premises,145050,Cleaning and Domestic Supplies,06-Feb-2014,2702052-3910002267,"1,029.20",CO DURHAM & DARLINGTON NHS FOUNDATION TRUST.,43222
Children and Adult Services,Early Intervention and Involvement,Supplies and Services,324117,Provisions,06-Feb-2014,2702364-60719260,604.44,PHS GROUP PLC.,45658
Children and Adult Services,Early Intervention and Involvement,Supplies and Services,384302,Miscellaneous Expenses,06-Feb-2014,2702579,"4,383.38",WEST RAINTON YOUTH PROJECT.,93598
Children and Adult Services,Early Intervention and Involvement,Third Party Payments,479101,Purchase of Care,06-Feb-2014,2702052-3910002256,"9,753.82",CO DURHAM & DARLINGTON NHS FOUNDATION TRUST.,43222
Children and Adult Services,Early Intervention and Involvement,Supplies and Services,340001,Postages,06-Feb-2014,2702314-0276082,"2,000.00",NEOPOST LTD CREDIFON RCB ACCOUNT.,45406
Dedicated Schools Grant,Dedicated Schools Grant,Supplies and Services,384199,Miscellaneous Expenses,06-Feb-2014,2702004,628.00,BRANDON HAPPYTIMES DAYCARE.,42977
Dedicated Schools Grant,Dedicated Schools Grant,Supplies and Services,384871,Miscellaneous Expenses,06-Feb-2014,2702320-1,800.00,NICOLA JONES EDUCATION CONSULTANCY & TRAINING.,161642
Children and Adult Services,Education,Transport,230007,Contract Hire,06-Feb-2014,2702486-054/4079,"1,380.00",TA TRAVEL.,53288
Children and Adult Services,Education,Transport,230007,Contract Hire,06-Feb-2014,2702573-5000,640.00,WEARDALE PRIVATE HIRE.,46661
Children and Adult Services,Education,Transport,230007,Contract Hire,06-Feb-2014,2702485-24101E,570.00,T MOORE & SON.,46274
Children and Adult Services,Education,Transport,230008,Contract Hire,06-Feb-2014,2702300-N053/01/14,"1,444.00",MR M ALLISON.,44896
Children and Adult Services,Education,Transport,230008,Contract Hire,06-Feb-2014,2702300-N059/01/14,"1,400.00",MR M ALLISON.,44896
Children and Adult Services,Education,Transport,230008,Contract Hire,06-Feb-2014,2702274-480114,920.00,MARKS TAXIS.,128379
Children and Adult Services,Education,Transport,230007,Contract Hire,06-Feb-2014,2702486-054/3080,"1,691.00",TA TRAVEL.,53288
Children and Adult Services,Early Intervention and Involvement,Supplies and Services,352001,Conference Expenses,06-Feb-2014,2702562-107591,"2,000.00",VIRTUAL COLLEGE LTD.,51347
Children and Adult Services,Education,Transport,230008,Contract Hire,06-Feb-2014,2702521-001/14,"1,426.00",TL TAXIS.,46466
Children and Adult Services,Education,Transport,230007,Contract Hire,06-Feb-2014,2702140-0283,847.20,FMR SILVA PITA.,43788
Children and Adult Services,Education,Transport,230007,Contract Hire,06-Feb-2014,2702505-203622,"3,100.00",TGM GROUP LTD T/A CLASSIC COACHES (CONTINENTAL) LTD.,43203
Children and Adult Services,Education,Transport,230007,Contract Hire,06-Feb-2014,2702572-CONS/JAN/141,"3,195.80",WEARDALE MOTOR SERVICES LTD.,46660
Children and Adult Services,Education,Transport,230007,Contract Hire,06-Feb-2014,2702572-CONS/JAN/142,"3,211.00",WEARDALE MOTOR SERVICES LTD.,46660
Children and Adult Services,Education,Fees,901004,Capital - Detailed Design,06-Feb-2014,2702207-DURH/0462,"57,521.00",INSPIREDSPACES DURHAM LTD.,85850
Children and Adult Services,Education,Transport,230007,Contract Hire,06-Feb-2014,2702303-TN005,720.00,MR THOMAS G GRIFFITHS T/A TNL TAXIS.,44960
Children and Adult Services,Education,Transport,230007,Contract Hire,06-Feb-2014,2702573-5001,"4,420.00",WEARDALE PRIVATE HIRE.,46661
Children and Adult Services,Education,Transport,230009,Contract Hire,06-Feb-2014,2702492-01/2014/006,600.00,TARNS TAXIS LTD.,51050
Children and Adult Services,Education,Transport,230007,Contract Hire,06-Feb-2014,2702496-DCC/2014/03,"1,340.00",TAYLOR`S TAXIS.,112096
Children and Adult Services,Education,Transport,230008,Contract Hire,06-Feb-2014,2702452-1,"1,290.00",SIMONS TAXIS.,163347
Children and Adult Services,Education,Transport,230007,Contract Hire,06-Feb-2014,2702535-32.13,680.00,TRANSPORT.ADVENTURE.XI.,43580
Children and Adult Services,Education,Transport,230007,Contract Hire,06-Feb-2014,2702302-5-31/1/14,700.00,MR ROY SHIPPEN.,45761
Children and Adult Services,Education,Transport,230009,Contract Hire,06-Feb-2014,2702535-33.14,760.00,TRANSPORT.ADVENTURE.XI.,43580
Children and Adult Services,Education,Transport,230007,Contract Hire,06-Feb-2014,2702215-666,760.00,J YOUNG T/A VIP TAXIS.,46614
Children and Adult Services,Education,Transport,230007,Contract Hire,06-Feb-2014,2702215-665,"1,320.00",J YOUNG T/A VIP TAXIS.,46614
Children and Adult Services,Education,Transport,230008,Contract Hire,06-Feb-2014,2702215-669,"1,900.00",J YOUNG T/A VIP TAXIS.,46614
Children and Adult Services,Education,Transport,230007,Contract Hire,06-Feb-2014,2702451-4266-01-14,"1,102.00",SIMON ELLIFF.,46062
Children and Adult Services,Education,Transport,230007,Contract Hire,06-Feb-2014,2702572-CONS/JAN14/3,"5,586.00",WEARDALE MOTOR SERVICES LTD.,46660
Children and Adult Services,Education,Fees,901004,Capital - Detailed Design,06-Feb-2014,2702207-DURH/0461,"24,151.00",INSPIREDSPACES DURHAM LTD.,85850
Children and Adult Services,Education,Transport,230008,Contract Hire,06-Feb-2014,2702358-392,"1,120.00",PETERLEE EXECUTIVE CARS.,90160
Children and Adult Services,Education,Transport,230008,Contract Hire,06-Feb-2014,2702475-18,"1,505.00",STEELYS TAXIS.,153436
Children and Adult Services,Education,Transport,230008,Contract Hire,06-Feb-2014,2702215-667,"1,025.00",J YOUNG T/A VIP TAXIS.,46614
Children and Adult Services,Education,Transport,230008,Contract Hire,06-Feb-2014,2702245-064,"1,853.00",LEE`S TAXIS.,144336
Children and Adult Services,Education,Transport,230008,Contract Hire,06-Feb-2014,2702516-110,"1,254.00",THE TAXI CO.,75271
Children and Adult Services,Education,Transport,230008,Contract Hire,06-Feb-2014,2702583,"1,225.00",WESTLEA TAXIS.,166400
Children and Adult Services,Education,Fees,901004,Capital - Detailed Design,06-Feb-2014,2702207-DURH/0460,"30,449.00",INSPIREDSPACES DURHAM LTD.,85850
Children and Adult Services,Education,Transport,230008,Contract Hire,06-Feb-2014,2702300-N081/01/14,"1,406.00",MR M ALLISON.,44896
Children and Adult Services,Education,Transport,230008,Contract Hire,06-Feb-2014,2702301-16B,926.44,MR RAYMOND RENWICK.,50021
Children and Adult Services,Education,Transport,230008,Contract Hire,06-Feb-2014,2702458-011479,"1,425.00",SMILERS TAXIS.,46088
Children and Adult Services,Education,Transport,230008,Contract Hire,06-Feb-2014,2702458-0240114,"1,140.38",SMILERS TAXIS.,46088
Children and Adult Services,Education,Transport,230008,Contract Hire,06-Feb-2014,2702292-391,"2,420.00",MOLLYS TAXIS.,44797
Children and Adult Services,Education,Transport,230008,Contract Hire,06-Feb-2014,2702374-140102,"1,120.00",PRATTS TAXIS.,45696
Children and Adult Services,Education,Transport,230008,Contract Hire,06-Feb-2014,2702487-1163-31/01/2014,"1,820.00",TAILORMADE TRAVEL.,46279
Children and Adult Services,Education,Transport,230008,Contract Hire,06-Feb-2014,2702496-DCC/2014/01,"1,582.20",TAYLOR`S TAXIS.,112096
Children and Adult Services,Education,Transport,230008,Contract Hire,06-Feb-2014,2702542-16,"1,520.00",TT TAXIS.,46534
Children and Adult Services,Education,Transport,230008,Contract Hire,06-Feb-2014,2702458-04410114,"1,012.80",SMILERS TAXIS.,46088
Children and Adult Services,Education,Transport,230008,Contract Hire,06-Feb-2014,2702458-210114,551.00,SMILERS TAXIS.,46088
Children and Adult Services,Education,Transport,230008,Contract Hire,06-Feb-2014,2702358-396,640.00,PETERLEE EXECUTIVE CARS.,90160
Children and Adult Services,Education,Transport,230008,Contract Hire,06-Feb-2014,2702406-091,"1,820.00",ROBBIE`S PRIVATE HIRE.,129695
Children and Adult Services,Education,Transport,230008,Contract Hire,06-Feb-2014,2702415-SA036,759.50,S & A TAXIS.,45897
Children and Adult Services,Education,Transport,230008,Contract Hire,06-Feb-2014,2702492-01/2014/008,760.00,TARNS TAXIS LTD.,51050
Children and Adult Services,Education,Transport,230008,Contract Hire,06-Feb-2014,2702274-380114,"1,360.00",MARKS TAXIS.,128379
Children and Adult Services,Education,Transport,230008,Contract Hire,06-Feb-2014,2702292-390,"1,680.00",MOLLYS TAXIS.,44797
Children and Adult Services,Education,Transport,230008,Contract Hire,06-Feb-2014,2702352-DDC06,"1,600.00",PAUL`S TAXIS..,161155
Children and Adult Services,Education,Transport,230008,Contract Hire,06-Feb-2014,2702358-395,"1,120.00",PETERLEE EXECUTIVE CARS.,90160
Children and Adult Services,Education,Transport,230008,Contract Hire,06-Feb-2014,2702374-140101,"1,350.00",PRATTS TAXIS.,45696
Children and Adult Services,Education,Transport,230008,Contract Hire,06-Feb-2014,2702409-005-31/1/14,"1,700.00",RONS TAXI.,164264
Children and Adult Services,Education,Transport,230008,Contract Hire,06-Feb-2014,2702086-W027,"1,856.00",DALELINK PRIVATE HIRE.,58187
Children and Adult Services,Education,Transport,230008,Contract Hire,06-Feb-2014,2702215-663,"1,596.00",J YOUNG T/A VIP TAXIS.,46614
Children and Adult Services,Education,Transport,230008,Contract Hire,06-Feb-2014,2702416-SO11/16,"1,710.00",S & S TRAVEL LTD.,45906
Children and Adult Services,Education,Transport,230008,Contract Hire,06-Feb-2014,2702416-WO75/15,"1,596.00",S & S TRAVEL LTD.,45906
Children and Adult Services,Education,Transport,230008,Contract Hire,06-Feb-2014,2702446-71311,"1,710.00",SHOTTON PRIVATE HIRE.,46040
Children and Adult Services,Education,Transport,230008,Contract Hire,06-Feb-2014,2702451-W132-01-14,912.00,SIMON ELLIFF.,46062
Children and Adult Services,Education,Transport,230008,Contract Hire,06-Feb-2014,2702485-23901C,"1,567.50",T MOORE & SON.,46274
Children and Adult Services,Education,Transport,230008,Contract Hire,06-Feb-2014,2702492-01/2014/007,"1,235.00",TARNS TAXIS LTD.,51050
Children and Adult Services,Education,Transport,230008,Contract Hire,06-Feb-2014,2702539-06,760.00,TRIDENT TAXIS.,52602
Children and Adult Services,Education,Transport,230008,Contract Hire,06-Feb-2014,2702570-000653,"1,577.00",WATSON OF SPENNYMOOR.,53415
Children and Adult Services,Education,Transport,230008,Contract Hire,06-Feb-2014,2702416-WO52/05,"2,700.00",S & S TRAVEL LTD.,45906
Children and Adult Services,Education,Transport,230008,Contract Hire,06-Feb-2014,2702516-112,880.00,THE TAXI CO.,75271
Children and Adult Services,Education,Transport,230005,Contract Hire,06-Feb-2014,2702539-006,840.00,TRIDENT TAXIS.,52602
Dedicated Schools Grant,Dedicated Schools Grant,Third Party Payments,410037,Rendered by Other Local Authorities,06-Feb-2014,2702156-110000446,"2,223.08",GATESHEAD COUNCIL.,43852
Children and Adult Services,Education,Transport,230008,Contract Hire,06-Feb-2014,2702215-662,988.00,J YOUNG T/A VIP TAXIS.,46614
Children and Adult Services,Education,Transport,230008,Contract Hire,06-Feb-2014,2702277-05,"1,800.00",MARTIN`S TAXIS.,163425
Children and Adult Services,Education,Transport,230008,Contract Hire,06-Feb-2014,2702292-385,"2,200.00",MOLLYS TAXIS.,44797
Children and Adult Services,Education,Transport,230008,Contract Hire,06-Feb-2014,2702300-A039/01/14,"1,824.00",MR M ALLISON.,44896
Children and Adult Services,Education,Transport,230008,Contract Hire,06-Feb-2014,2702374-140103,"3,069.20",PRATTS TAXIS.,45696
Children and Adult Services,Education,Transport,230008,Contract Hire,06-Feb-2014,2702443-18,"1,600.00",SHARON`S TAXI.,155017
Children and Adult Services,Education,Transport,230008,Contract Hire,06-Feb-2014,2702492-01/2014/005,"2,100.00",TARNS TAXIS LTD.,51050
Children and Adult Services,Education,Transport,230008,Contract Hire,06-Feb-2014,2702496-DCC/2014/02,"2,140.00",TAYLOR`S TAXIS.,112096
Children and Adult Services,Education,Transport,230008,Contract Hire,06-Feb-2014,2702572-PH/JAN/14,"4,194.00",WEARDALE MOTOR SERVICES LTD.,46660
Children and Adult Services,Education,Transport,230008,Contract Hire,06-Feb-2014,2702496-DDC/2014/05,"1,760.00",TAYLOR`S TAXIS.,112096
Children and Adult Services,Education,Transport,230008,Contract Hire,06-Feb-2014,2702300-N197/01/14,984.00,MR M ALLISON.,44896
Children and Adult Services,Education,Supplies and Services,338027,Services,06-Feb-2014,2702324-368,"1,050.00",NORTH EAST ENVIRONMENT NETWORK LTD.,158205
Children and Adult Services,Education,Transport,230006,Contract Hire,06-Feb-2014,2702358-397,"1,480.00",PETERLEE EXECUTIVE CARS.,90160
Children and Adult Services,Education,Transport,230006,Contract Hire,06-Feb-2014,2702374-140107,720.00,PRATTS TAXIS.,45696
Children and Adult Services,Education,Transport,230006,Contract Hire,06-Feb-2014,2702451-F536-01-14,"2,432.00",SIMON ELLIFF.,46062
Children and Adult Services,Education,Transport,230006,Contract Hire,06-Feb-2014,2702573-5004,"1,726.40",WEARDALE PRIVATE HIRE.,46661
Children and Adult Services,Education,Transport,230006,Contract Hire,06-Feb-2014,2702576-0114,"2,317.00",WEST AUCKLAND TOWN TRAVEL (WATT).,172192
Children and Adult Services,Education,Supplies and Services,352001,Conference Expenses,06-Feb-2014,2702334-9810001960,720.00,NORTHUMBERLAND TYNE & WEAR NHS TRUST.,50310
Children and Adult Services,Childrens care,Third Party Payments,425020,Rendered by Voluntary Organisations,06-Feb-2014,2702469-1140954,"2,076.25",ST CUTHBERTS CARE.,46153
Children and Adult Services,Childrens care,Employees,080025,Agency Staff,06-Feb-2014,2702055-534996,"156,969.97",COMENSURA LTD.,153274
Children and Adult Services,Childrens care,Transport,230005,Contract Hire,06-Feb-2014,2702050-CLUB14004C,545.00,CLUBMAN CABS.,157990
Children and Adult Services,Childrens care,Supplies and Services,348037,Subsistence,06-Feb-2014,2702049-446283,618.95,CLICK TRAVEL LTD.,160169
Children and Adult Services,Childrens care,Supplies and Services,338078,Services,06-Feb-2014,2702389-3766,"15,162.72",QW SECURITY LTD.,45751
Corporate Resources,Financial Services,Supplies and Services,338066,Services,06-Feb-2014,2702585-36487,"1,555.20",WILKS HEAD & EVE.,46702
Corporate Resources,I.C.T. Services,Stock,926900,Stock in hand-Inventory system,06-Feb-2014,2702462-OP/L792038,832.00,SPECIALIST COMPUTER CENTRES PLC.,50889
Corporate Resources,I.C.T. Services,"Vehicles, Equipment, Furniture and Fittings",912701,Computer equipment,06-Feb-2014,2702205-1677576,"1,107.20",INSIGHT DIRECT (UK) LTD.,44122
Corporate Resources,I.C.T. Services,Supplies and Services,342225,Computers and Communications,06-Feb-2014,2702459-INV00891113,599.94,SOFTCAT LTD.,132513
Corporate Resources,I.C.T. Services,Supplies and Services,340001,Postages,06-Feb-2014,2702411-9046390742,"9,686.81",ROYAL MAIL GROUP PLC.,45883
Corporate Resources,I.C.T. Services,Stock,926900,Stock in hand-Inventory system,06-Feb-2014,2702105-146878848,693.84,DIVERSEY LTD.,44284
Corporate Resources,I.C.T. Services,Supplies and Services,342033,Computers and Communications,06-Feb-2014,2702205-1670092,759.00,INSIGHT DIRECT (UK) LTD.,44122
Corporate Resources,I.C.T. Services,Supplies and Services,304303,Equipment and Materials,06-Feb-2014,2702205-1677591,"1,628.13",INSIGHT DIRECT (UK) LTD.,44122
Neighbourhood Services,Direct Services,Construction Work,908105,Construction work,06-Feb-2014,2702262-10325,"4,050.00",LUCION ENVIRONMENTAL LLP LTD.,153666
Neighbourhood Services,Culture & Sport,Supplies and Services,304259,Equipment and Materials,06-Feb-2014,2702360-16145,865.44,PG DRAPE.,167157
Neighbourhood Services,Direct Services,Employees,040149,"Recruitment, Instruction and Training",06-Feb-2014,2702315-50264,"1,204.85",NETA TRAINING GRP.,45412
Neighbourhood Services,Technical Services,Stock,926004,Stock,06-Feb-2014,2702048-90128968,"31,027.35",CLEVELAND POTASH LTD.,147341
Neighbourhood Services,Direct Services,Supplies and Services,304221,Equipment and Materials,06-Feb-2014,2702192-B33/0063005,877.30,HOWDENS JOINERY LTD.,44065
Neighbourhood Services,Direct Services,Supplies and Services,304221,Equipment and Materials,06-Feb-2014,2702192-B33/0063252,738.56,HOWDENS JOINERY LTD.,44065
Neighbourhood Services,Direct Services,Supplies and Services,304221,Equipment and Materials,06-Feb-2014,2702192-B33/0063253,802.01,HOWDENS JOINERY LTD.,44065
Neighbourhood Services,Direct Services,Supplies and Services,304221,Equipment and Materials,06-Feb-2014,2702332-1055129,"2,231.00",NORTHERN TOOLS & ACCESSORIES.,45494
Neighbourhood Services,Direct Services,Supplies and Services,304221,Equipment and Materials,06-Feb-2014,2702370-189676,"11,008.07",PLUMBING TRADE SUPPLIES LTD.,52634
Neighbourhood Services,Direct Services,Supplies and Services,304221,Equipment and Materials,06-Feb-2014,2702370-189677,"5,907.30",PLUMBING TRADE SUPPLIES LTD.,52634
Neighbourhood Services,Direct Services,Third Party Payments,430100,Rendered by Private Contractors,06-Feb-2014,2702414-JAN01114,600.00,RW CHICKEN (SCAFFOLDING) LTD.,76902
Neighbourhood Services,Direct Services,Third Party Payments,430100,Rendered by Private Contractors,06-Feb-2014,2702414-JAN01614,510.00,RW CHICKEN (SCAFFOLDING) LTD.,76902
Neighbourhood Services,Direct Services,Third Party Payments,430100,Rendered by Private Contractors,06-Feb-2014,2702414-JAN01814,600.00,RW CHICKEN (SCAFFOLDING) LTD.,76902
Neighbourhood Services,Direct Services,Third Party Payments,430100,Rendered by Private Contractors,06-Feb-2014,2702414-JAN02014,600.00,RW CHICKEN (SCAFFOLDING) LTD.,76902
Neighbourhood Services,Direct Services,Supplies and Services,372009,Subscriptions,06-Feb-2014,2702061-303478,880.00,CONSTRUCTIONLINE.,53678
Neighbourhood Services,"Environment,Health & Consumer Protection",Employees,040149,"Recruitment, Instruction and Training",06-Feb-2014,2701983-NSK000027,"1,514.70",BASIS (REGISTRATION) LTD.,144009
Neighbourhood Services,Direct Services,Supplies and Services,304259,Equipment and Materials,06-Feb-2014,2702367-5420,598.50,PIXL ID LTD.,60264
Neighbourhood Services,Direct Services,Premises,108135,Service Repairs and Maintenance,06-Feb-2014,2702587-6852,687.00,WNV CHEMICALS LTD.,51461
Neighbourhood Services,Projects and Business services,Supplies and Services,304357,Equipment and Materials,06-Feb-2014,2702264-7,960.00,M & E & MR WALTON.,44564
Neighbourhood Services,Projects and Business services,Supplies and Services,338027,Services,06-Feb-2014,2702399-303116,"2,310.00",RESOURCE & ENVIRONMENTAL CONSULTANTS (REC) LTD.,172437
Neighbourhood Services,Technical Services,Stock,926900,Stock in hand-Inventory system,06-Feb-2014,2701973-SIN210575,"1,674.00",ATF SUPPLIES LTD.,127844
Neighbourhood Services,Technical Services,Stock,926900,Stock in hand-Inventory system,06-Feb-2014,2702208-434933,"1,384.32",INSTARMAC GROUP PLC.,44123
Neighbourhood Services,Technical Services,Stock,926900,Stock in hand-Inventory system,06-Feb-2014,2702228-STI394917,680.45,JT DOVE LTD.,44305
Neighbourhood Services,Technical Services,Stock,926900,Stock in hand-Inventory system,06-Feb-2014,2702228-STI394920,663.75,JT DOVE LTD.,44305
Neighbourhood Services,Technical Services,Stock,926900,Stock in hand-Inventory system,06-Feb-2014,2702239-9030489812,884.67,LAFARGE TARMAC TRADING LTD.,44422
Neighbourhood Services,Technical Services,Stock,926900,Stock in hand-Inventory system,06-Feb-2014,2702349-XL105615,"2,194.50",PARK ELECTRICAL DISTRIBUTORS LTD.,45579
Neighbourhood Services,Technical Services,Stock,926900,Stock in hand-Inventory system,06-Feb-2014,2702588-87111749,"2,945.73",WOLSELEY UK LTD.,46732
Neighbourhood Services,Technical Services,Stock,926900,Stock in hand-Inventory system,06-Feb-2014,2702588-87111793,529.45,WOLSELEY UK LTD.,46732
Neighbourhood Services,Technical Services,Stock,926900,Stock in hand-Inventory system,06-Feb-2014,2702588-87227363,920.60,WOLSELEY UK LTD.,46732
Neighbourhood Services,Technical Services,Supplies and Services,304221,Equipment and Materials,06-Feb-2014,2701966-19126,614.89,ARBOR TIMBER & BUILDERS MERCHANTS LTD.,42761
Neighbourhood Services,Technical Services,Supplies and Services,304337,Equipment and Materials,06-Feb-2014,2702330-20179545,"1,017.77",NORTHERN POWERGRID (NORTHEAST) LTD.,45487
Neighbourhood Services,Technical Services,Supplies and Services,304221,Equipment and Materials,06-Feb-2014,2701949-19172334,"1,307.44",AGGREGATE INDUSTRIES UK LTD.,42655
Neighbourhood Services,Technical Services,Supplies and Services,304221,Equipment and Materials,06-Feb-2014,2701949-19181627,911.02,AGGREGATE INDUSTRIES UK LTD.,42655
Neighbourhood Services,Technical Services,Supplies and Services,304221,Equipment and Materials,06-Feb-2014,2701950-19252136,782.90,AGGREGATE INDUSTRIES UK LTD.,42655
Neighbourhood Services,Technical Services,Supplies and Services,304357,Equipment and Materials,06-Feb-2014,2701981-MG03673,"1,176.00",BAILEY CONCRETE PUMPING LTD.,42856
Neighbourhood Services,Technical Services,Supplies and Services,304357,Equipment and Materials,06-Feb-2014,2702018-NEW8101001,501.60,BURNT TREE GROUP LTD.,43033
Neighbourhood Services,Technical Services,Supplies and Services,304221,Equipment and Materials,06-Feb-2014,2702169-23303,600.00,GRAB & DELIVER LTD.,144885
Neighbourhood Services,Technical Services,Supplies and Services,304221,Equipment and Materials,06-Feb-2014,2702169-23333,600.00,GRAB & DELIVER LTD.,144885
Neighbourhood Services,Technical Services,Supplies and Services,304221,Equipment and Materials,06-Feb-2014,2702228-CN118653/D,"2,035.44",JT DOVE LTD.,44305
Neighbourhood Services,Technical Services,Supplies and Services,304221,Equipment and Materials,06-Feb-2014,2702228-STI394223,678.50,JT DOVE LTD.,44305
Neighbourhood Services,Technical Services,Supplies and Services,304221,Equipment and Materials,06-Feb-2014,2702228-STI394667,594.92,JT DOVE LTD.,44305
Neighbourhood Services,Technical Services,Supplies and Services,304221,Equipment and Materials,06-Feb-2014,2702239-9030349612,626.80,LAFARGE TARMAC TRADING LTD.,44422
Neighbourhood Services,Technical Services,Supplies and Services,304221,Equipment and Materials,06-Feb-2014,2702239-9030373529,742.60,LAFARGE TARMAC TRADING LTD.,44422
Neighbourhood Services,Technical Services,Supplies and Services,304221,Equipment and Materials,06-Feb-2014,2702239-9030412172,"1,096.90",LAFARGE TARMAC TRADING LTD.,44422
Neighbourhood Services,Technical Services,Supplies and Services,304221,Equipment and Materials,06-Feb-2014,2702239-9030483860,976.20,LAFARGE TARMAC TRADING LTD.,44422
Neighbourhood Services,Technical Services,Supplies and Services,304221,Equipment and Materials,06-Feb-2014,2702239-9030489502,704.71,LAFARGE TARMAC TRADING LTD.,44422
Neighbourhood Services,Technical Services,Supplies and Services,304221,Equipment and Materials,06-Feb-2014,2702276-ZBB0502944,"4,677.60",MARSHALLS MONO LTD.,44630
Neighbourhood Services,Technical Services,Third Party Payments,430100,Rendered by Private Contractors,06-Feb-2014,2702310-NC23/C235/BW,"5,162.73",NEDCO CONTRACTS (NE) LTD.,128501
Neighbourhood Services,Technical Services,Third Party Payments,430100,Rendered by Private Contractors,06-Feb-2014,2702383-63535,550.00,PROTECTOR SECURITY GROUP LTD.,46421
Neighbourhood Services,Technical Services,Supplies and Services,304221,Equipment and Materials,06-Feb-2014,2702449-266588/120259,619.82,SIGNATURE LTD T/A POST & COLUMN CO LTD.,46418
Neighbourhood Services,Technical Services,Third Party Payments,460151,Contract Payments,06-Feb-2014,2702208-434831,735.28,INSTARMAC GROUP PLC.,44123
Neighbourhood Services,Direct Services,Supplies and Services,304221,Equipment and Materials,06-Feb-2014,2702217-GI1328747,701.12,JAMES BURRELL LTD.,49386
Neighbourhood Services,Direct Services,Supplies and Services,304221,Equipment and Materials,06-Feb-2014,2702014-1650/0780123,"1,061.61",BSS GROUP PLC.,46351
Neighbourhood Services,Direct Services,Supplies and Services,304221,Equipment and Materials,06-Feb-2014,2702015-1650/0777091,"2,755.80",BSS GROUP PLC.,46351
Neighbourhood Services,Direct Services,Supplies and Services,304221,Equipment and Materials,06-Feb-2014,2702011-4058277,609.34,BROAG LTD.,48232
Neighbourhood Services,Direct Services,Supplies and Services,304221,Equipment and Materials,06-Feb-2014,2702138-1401-204019,630.00,FLAME HEATING SPARES LTD.,153808
Neighbourhood Services,Direct Services,Supplies and Services,304221,Equipment and Materials,06-Feb-2014,2702014-1650/0741911,"2,016.23",BSS GROUP PLC.,46351
Neighbourhood Services,Direct Services,Supplies and Services,304221,Equipment and Materials,06-Feb-2014,2702014-1650/0780122,"3,158.28",BSS GROUP PLC.,46351
Neighbourhood Services,Direct Services,Supplies and Services,304221,Equipment and Materials,06-Feb-2014,2702154-82947,503.00,GARTEC LTD.,101063
Neighbourhood Services,Direct Services,Supplies and Services,304221,Equipment and Materials,06-Feb-2014,2702157-IN37311,784.00,GB LUBRICANTS LTD.,43858
Neighbourhood Services,Direct Services,Third Party Payments,430100,Rendered by Private Contractors,06-Feb-2014,2702235-29504235,"4,925.00",KONE PLC.,62763
Neighbourhood Services,Direct Services,Supplies and Services,304221,Equipment and Materials,06-Feb-2014,2702575-0000208437,"1,176.37",WESSEX LIFT CO LTD.,46670
Neighbourhood Services,Direct Services,Third Party Payments,430100,Rendered by Private Contractors,06-Feb-2014,2702404-23471,"3,730.00",RJ UTILITY SERVICES LTD.,45845
Neighbourhood Services,Neighbourhood central costs,Debtors,930017,Debtor-gas contract holding account,06-Feb-2014,2702064,"416,834.43",CORONA ENERGY RETAIL 2 LTD.,118445
Neighbourhood Services,Culture & Sport,Supplies and Services,324117,Provisions,06-Feb-2014,2702024-EW54911236,624.32,CARLSBERG UK LTD.,93769
Neighbourhood Services,Culture & Sport,Supplies and Services,324001,Provisions,06-Feb-2014,2702024-EW54902571,502.46,CARLSBERG UK LTD.,93769
RED HRA,HRA Centrally Managed,Premises,150005,Apportioned Exps of Operational Blds,06-Feb-2014,2702115-SINV/00003217,"52,764.20",EAST DURHAM HOMES.,73538
RED HRA,HRA Centrally Managed,Premises,150005,Apportioned Exps of Operational Blds,06-Feb-2014,2702115-SINV/00003218,"4,218.34",EAST DURHAM HOMES.,73538
RED HRA,HRA Centrally Managed,Premises,150005,Apportioned Exps of Operational Blds,06-Feb-2014,2702115-SINV/00003221,979.10,EAST DURHAM HOMES.,73538
RED HRA,HRA Centrally Managed,Premises,150005,Apportioned Exps of Operational Blds,06-Feb-2014,2702115-SINV/00003222,"8,995.78",EAST DURHAM HOMES.,73538
RED HRA,HRA Capital,Construction Work,908105,Construction work,06-Feb-2014,2702099-189853,"21,143.23",DELTA ELECTRICAL & MECHANICAL SERVICES.,133387
RED HRA,HRA Capital,Construction Work,908105,Construction work,06-Feb-2014,2702117-538-154834,534.05,EDMUNDSON ELECTRICAL LTD.,43635
RED HRA,HRA Capital,Construction Work,908105,Construction work,06-Feb-2014,2702442-CON70420,520.00,SGS MIS ENVIRONMENTAL LTD.,92000
Regeneration & Economic Development,Economic Development and Housing,Premises,135005,Water Services,06-Feb-2014,2702335-210359890013098,"1,113.82",NORTHUMBRIAN WATER LTD.,45504
Regeneration & Economic Development,Economic Development and Housing,Premises,120009,Energy Costs,06-Feb-2014,2702338-NNO7JGS6,"1,409.68",NPOWER.,45509
Regeneration & Economic Development,Economic Development and Housing,Supplies and Services,340001,Postages,06-Feb-2014,2702411-9046518599,775.00,ROYAL MAIL GROUP PLC.,45883
Regeneration & Economic Development,Economic Development and Housing,Premises,135005,Water Services,06-Feb-2014,2702335-303696120013058,720.35,NORTHUMBRIAN WATER LTD.,45504
Regeneration & Economic Development,Economic Development and Housing,Premises,120021,Energy Costs,06-Feb-2014,2702064-08957632,"1,066.49",CORONA ENERGY RETAIL 2 LTD.,118445
Regeneration & Economic Development,Economic Development and Housing,Premises,120021,Energy Costs,06-Feb-2014,2702064-08954869,"2,060.15",CORONA ENERGY RETAIL 2 LTD.,118445
Regeneration & Economic Development,Economic Development and Housing,Supplies and Services,384199,Miscellaneous Expenses,06-Feb-2014,2702096-VCDNOV2013,"2,118.00",DEBBIE SHARRATT T/A DEBSHARRATT COMMUNICATIONS.,153871
Regeneration & Economic Development,Economic Development and Housing,Supplies and Services,384700,Miscellaneous Expenses,06-Feb-2014,2702211-RED-02-2014-043,"1,000.00",INTERSNACK LTD.,151126
Regeneration & Economic Development,Economic Development and Housing,Supplies and Services,338099,Services,06-Feb-2014,2702420-13840,800.00,SAFETY SET (NE) LTD.,111883
Regeneration & Economic Development,"Spatial Policy, Planning, Assets & Environment",Employees,040149,"Recruitment, Instruction and Training",06-Feb-2014,2702253-INVLUK000706,"1,850.00",LIMEHOUSE SOFTWARE LTD.,81840
Regeneration & Economic Development,"Spatial Policy, Planning, Assets & Environment",Supplies and Services,338027,Services,06-Feb-2014,2702234-4059,"11,800.00",KNIGHT KAVANAGH & PAGE (KKP).,165826
Regeneration & Economic Development,"Spatial Policy, Planning, Assets & Environment",Supplies and Services,384199,Miscellaneous Expenses,06-Feb-2014,2702112-262510,600.00,DURHAM UNIVERSITY.,46572
Regeneration & Economic Development,"Spatial Policy, Planning, Assets & Environment",Supplies and Services,384700,Miscellaneous Expenses,06-Feb-2014,2702295-RED-02-2014-006,"1,552.10",MORTHAM ESTATES (TRUSTEES) LTD.,108808
Regeneration & Economic Development,"Spatial Policy, Planning, Assets & Environment",Supplies and Services,384700,Miscellaneous Expenses,06-Feb-2014,2702179-RED-02-2014-004,600.00,HAREHOPE QUARRY PROJECT LTD.,49170
Regeneration & Economic Development,Transport and Contracted Services,Premises,120009,Energy Costs,06-Feb-2014,2702337-NNO7JCXL,"2,813.70",NPOWER.,45509
Regeneration & Economic Development,Transport and Contracted Services,Supplies and Services,304245,Equipment and Materials,06-Feb-2014,2702519-SITRH/0005995,"2,035.00",THREE RIVERS HOUSING ASSOCIATION LTD.,46459
Regeneration & Economic Development,Transport and Contracted Services,Supplies and Services,384199,Miscellaneous Expenses,06-Feb-2014,2702256-3232,"98,828.00",LIVING STREETS.,90575
Regeneration & Economic Development,Economic Development and Housing,Cap Exp on Grants & Other Financial Assistance (REFCUS),918401,Capital grants,06-Feb-2014,2702081-RED-02-2014-014,752.83,D & J JORDAN.,101208
Regeneration & Economic Development,Economic Development and Housing,Cap Exp on Grants & Other Financial Assistance (REFCUS),918401,Capital grants,06-Feb-2014,2702142-RED-02-2014-003,"9,088.80",FORESTRY COMMISSION.,48991
Regeneration & Economic Development,Economic Development and Housing,Supplies and Services,384199,Miscellaneous Expenses,06-Feb-2014,2701987-BB1026,"20,070.00",BEAVER BRIDGES.,168495
Regeneration & Economic Development,Economic Development and Housing,Supplies and Services,384899,Miscellaneous Expenses,06-Feb-2014,2702231-PV/KA/02/2014,"2,005.62",KANDO ARTS FOUNDATION CIC.,170750
Regeneration & Economic Development,Economic Development and Housing,Cap Exp on Grants & Other Financial Assistance (REFCUS),918401,Capital grants,06-Feb-2014,2702060-RED-02-2014-007,"1,066.40",CONSETT PET & AQUATIC CENTRE.,132528
Regeneration & Economic Development,Economic Development and Housing,Cap Exp on Grants & Other Financial Assistance (REFCUS),918401,Capital grants,06-Feb-2014,2702060-RED-02-2014-008,"1,823.20",CONSETT PET & AQUATIC CENTRE.,132528
Regeneration & Economic Development,Economic Development and Housing,Fees,901001,Internal fees,06-Feb-2014,2702144-SITRH/0006029,508.80,FOUR HOUSING GROUP.,151213
Regeneration & Economic Development,Economic Development and Housing,Fees,901002,Professional fees,06-Feb-2014,2701995-4163485,855.00,BOND DICKINSON LLP.,43479
Regeneration & Economic Development,Economic Development and Housing,Cap Exp on Grants & Other Financial Assistance (REFCUS),918401,Capital grants,06-Feb-2014,2702540-RED-02-2014-012,"4,911.00",TRIMDON FOUNDRY PARISH COUNCIL.,102658
Regeneration & Economic Development,Econ Dev and Regen Financing,Creditors,952146,Creditor-Section 106 agreement,06-Feb-2014,2702036-RED-02-2014-044,"12,250.00",CHESTER LE STREET DISTRICT WAR MEMORIAL GROUP.,171499
Assistant Chief Executive,Partnerships & Community Engagement Div.,Transfer Payments,525030,Other,07-Feb-2014,2702834-13-09,"1,700.00",TANTOBIE CRICKET CLUB.,81159
Assistant Chief Executive,Partnerships & Community Engagement Div.,Cap Exp on Grants & Other Financial Assistance (REFCUS),918004,Contributions to other bodies,07-Feb-2014,2702652-CHES005,"3,000.00",CHESTER LE STREET DISTRICT WAR MEMORIAL GROUP.,171499
Children and Adult Services,Head of Adults,Third Party Payments,470101,Purchase of Care,07-Feb-2014,2702708-INV-0055A,"9,211.51",INTERACT CARE LTD.,44128
Children and Adult Services,Head of Adults,Income,720047,Fees and Charges,07-Feb-2014,2702753-CAS-02-2014-015,617.57,REDACTED - PAYMENT TO INDIVIDUAL,174576
Children and Adult Services,Commissioning inc Supporting People,Third Party Payments,479101,Purchase of Care,07-Feb-2014,2702787-005305,"1,333.33",PLATINUM PHYSIOTHERAPY & PERSONAL TRAINING.,84972
Children and Adult Services,Head of Adults,Premises,108099,Service Repairs and Maintenance,07-Feb-2014,2702814-6942,"1,276.00",SIGMA CATERING EQUIPMENT LTD.,46052
Children and Adult Services,Early Intervention and Involvement,Supplies and Services,384956,Miscellaneous Expenses,07-Feb-2014,2702777-SDP001,700.00,ORCUMA LTD.,120641
Children and Adult Services,Public Health,Third Party Payments,460802,Contract Payments,07-Feb-2014,2702649,"2,563.90",CESTRIA HEALTH CENTRE.,170746
Children and Adult Services,Public Health,Third Party Payments,460802,Contract Payments,07-Feb-2014,2702658-3910002672,"31,785.00",CO DURHAM & DARLINGTON NHS FOUNDATION TRUST.,43222
Children and Adult Services,Public Health,Third Party Payments,460802,Contract Payments,07-Feb-2014,2702805,"6,004.48",SACRISTON SURGERY.,59430
Children and Adult Services,Public Health,Supplies and Services,384199,Miscellaneous Expenses,07-Feb-2014,2702694-9095-DCC-0541,"5,000.00",HELMEPARK LTD.,89138
Children and Adult Services,Public Health,Supplies and Services,384155,Miscellaneous Expenses,07-Feb-2014,2702767-1000038203,"65,742.27",NHS BUSINESS SERVICES AUTHORITY.,172415
Children and Adult Services,Public Health,Supplies and Services,384155,Miscellaneous Expenses,07-Feb-2014,2702767-1000038570,"63,970.68",NHS BUSINESS SERVICES AUTHORITY.,172415
Children and Adult Services,Public Health,Third Party Payments,460803,Contract Payments,07-Feb-2014,2702658-3910002583,"50,000.00",CO DURHAM & DARLINGTON NHS FOUNDATION TRUST.,43222
Children and Adult Services,Public Health,Third Party Payments,460803,Contract Payments,07-Feb-2014,2702661-27012014,"20,000.00",COUNTY DURHAM & DARLINGTON LOCAL PHARMACEUTICAL COMMITTEE.,173878
Children and Adult Services,Public Health,Premises,125009,Rents,07-Feb-2014,2702705-6449,666.00,INGRAMS REMOVERS & STORERS.,44116
Children and Adult Services,Public Health,Third Party Payments,460803,Contract Payments,07-Feb-2014,2702647-FE898/OCT,"1,683.07",CENTRECHEM DISPENSING CHEMIST.,167098
Children and Adult Services,Public Health,Third Party Payments,460803,Contract Payments,07-Feb-2014,2702647-FE898/SEP,"2,242.25",CENTRECHEM DISPENSING CHEMIST.,167098
Children and Adult Services,Early Intervention and Involvement,Third Party Payments,479101,Purchase of Care,07-Feb-2014,2702658-3910002522,"3,946.82",CO DURHAM & DARLINGTON NHS FOUNDATION TRUST.,43222
Children and Adult Services,Early Intervention and Involvement,Transport,230005,Contract Hire,07-Feb-2014,2702836-510,"5,662.16",TEESDALE COMMUNITY RESOURCES (TCR).,46319
Children and Adult Services,Early Intervention and Involvement,Transport,230005,Contract Hire,07-Feb-2014,2702836-550,"5,662.16",TEESDALE COMMUNITY RESOURCES (TCR).,46319
Children and Adult Services,Early Intervention and Involvement,Transport,230005,Contract Hire,07-Feb-2014,2702836-589,"5,662.16",TEESDALE COMMUNITY RESOURCES (TCR).,46319
Children and Adult Services,Early Intervention and Involvement,Transport,230005,Contract Hire,07-Feb-2014,2702836-630,"5,662.16",TEESDALE COMMUNITY RESOURCES (TCR).,46319
Children and Adult Services,Early Intervention and Involvement,Third Party Payments,479101,Purchase of Care,07-Feb-2014,2702658-3910002262,"10,147.82",CO DURHAM & DARLINGTON NHS FOUNDATION TRUST.,43222
Children and Adult Services,Education,Transfer Payments,510026,School Children,07-Feb-2014,2702630,"1,395.00",BRANDON HAPPYTIMES DAYCARE.,42977
Children and Adult Services,Education,Transfer Payments,510026,School Children,07-Feb-2014,2702672-CAS-02-2014-012,"10,000.00",EARLY LEARNERS PRIVATE DAY NURSERY.,68502
Children and Adult Services,Education,Supplies and Services,338091,Services,07-Feb-2014,2702851-10242302-004,"3,900.00",UNIVERSITY OF TEESSIDE.,46579
Children and Adult Services,Education,Supplies and Services,338091,Services,07-Feb-2014,2702851-11207737-007,"1,260.00",UNIVERSITY OF TEESSIDE.,46579
Children and Adult Services,Education,Transfer Payments,510026,School Children,07-Feb-2014,2702858,"1,114.20",WESTMINSTER DAY NURSERIES LTD.,46683
Dedicated Schools Grant,Dedicated Schools Grant,Transfer Payments,510032,School Children,07-Feb-2014,2702699-CAS-02-2014-009,581.87,HOUSE OF EDEN CHILDRENS NURSERY.,44061
Children and Adult Services,Education,Transport,230007,Contract Hire,07-Feb-2014,2702713-668,675.00,J YOUNG T/A VIP TAXIS.,46614
Children and Adult Services,Education,Transport,230007,Contract Hire,07-Feb-2014,2702835-5038(T06),"1,995.00",TED WILFORD COACHES.,46315
Children and Adult Services,Education,"Vehicles, Equipment, Furniture and Fittings",912701,Computer equipment,07-Feb-2014,2702673,"12,801.00",EASINGTON ACADEMY.,160362
Children and Adult Services,Education,Transport,230007,Contract Hire,07-Feb-2014,2702835-5030(M05),"5,200.00",TED WILFORD COACHES.,46315
Children and Adult Services,Education,Transport,230008,Contract Hire,07-Feb-2014,2702703-02/2014,"1,400.00",I CLYDESDALE T/A BURNOPFIELD TAXIS.,44086
Children and Adult Services,Education,Transport,230008,Contract Hire,07-Feb-2014,2702604-0175,"1,064.00",ABC & OUSTON CABS.,42614
Children and Adult Services,Education,Supplies and Services,338094,Services,07-Feb-2014,2702863-ESS-P2E,900.00,WOODHAM VILLAGE COMMUNITY ASSOCIATION.,51471
Children and Adult Services,Education,Supplies and Services,304259,Equipment and Materials,07-Feb-2014,2702722-0000080097,680.00,JOHN PACKER LTD.,141918
Children and Adult Services,Education,Transport,230008,Contract Hire,07-Feb-2014,2702604-0174,"2,279.00",ABC & OUSTON CABS.,42614
Children and Adult Services,Education,Transport,230008,Contract Hire,07-Feb-2014,2702835-E014(EG05),"1,600.00",TED WILFORD COACHES.,46315
Children and Adult Services,Education,Transport,230008,Contract Hire,07-Feb-2014,2702604-0171,"1,748.00",ABC & OUSTON CABS.,42614
Children and Adult Services,Education,Transport,230008,Contract Hire,07-Feb-2014,2702626-80,700.00,BL TAXIS.,42945
Children and Adult Services,Education,Transport,230008,Contract Hire,07-Feb-2014,2702604-0173,874.00,ABC & OUSTON CABS.,42614
Children and Adult Services,Education,Transport,230008,Contract Hire,07-Feb-2014,2702703-01/2014,"1,832.00",I CLYDESDALE T/A BURNOPFIELD TAXIS.,44086
Children and Adult Services,Education,Transport,230008,Contract Hire,07-Feb-2014,2702713-664,"2,120.00",J YOUNG T/A VIP TAXIS.,46614
Children and Adult Services,Education,Transport,230008,Contract Hire,07-Feb-2014,2702604-0172,798.00,ABC & OUSTON CABS.,42614
Children and Adult Services,Education,Transport,230006,Contract Hire,07-Feb-2014,2702757-32,"1,600.00",MRS ANNE BOWMAN T/A ANNES CARS.,61763
Children and Adult Services,Education,Third Party Payments,440999,Other Third Party Payments,07-Feb-2014,2702817-200879,"11,317.32",SKILLSHARE NORTH EAST LTD.,144277
Children and Adult Services,Education,Supplies and Services,338094,Services,07-Feb-2014,2702681-614,"1,300.00",FERRYHILL LADDER CENTRE LTD.,46370
Children and Adult Services,Childrens care,Supplies and Services,384638,Miscellaneous Expenses,07-Feb-2014,2702675-1-05,975.00,EAST DURHAM POSITIVE INCLUSION PARTNERSHIP.,48792
Children and Adult Services,Childrens care,Supplies and Services,384638,Miscellaneous Expenses,07-Feb-2014,2702675-1-06,975.00,EAST DURHAM POSITIVE INCLUSION PARTNERSHIP.,48792
Children and Adult Services,Childrens care,Supplies and Services,384638,Miscellaneous Expenses,07-Feb-2014,2702675-1-07,975.00,EAST DURHAM POSITIVE INCLUSION PARTNERSHIP.,48792
Children and Adult Services,Childrens care,Supplies and Services,384638,Miscellaneous Expenses,07-Feb-2014,2702689-GSACIC/03/00001,"3,850.00",GLOBAL SPORT ACADEMY CIC.,170015
Children and Adult Services,Planning & Service Strategy,Supplies and Services,340001,Postages,07-Feb-2014,2702802-9046313036,872.61,ROYAL MAIL GROUP PLC.,45883
Children and Adult Services,Childrens care,Premises,108135,Service Repairs and Maintenance,07-Feb-2014,2702620-315942,768.63,BAY PLASTICS LTD.,42877
Children and Adult Services,Childrens care,Supplies and Services,308011,Furniture,07-Feb-2014,2702785-SI/30806,"2,040.00",PINEAPPLE CONTRACTS.,52578
Corporate Resources,Corporate Finance,Supplies and Services,342051,Computers and Communications,07-Feb-2014,2702776-1429921,"4,752.00",ORACLE CORPORATION UK LTD.,60063
Corporate Resources,Financial Services,Supplies and Services,372009,Subscriptions,07-Feb-2014,2702710-A114742,995.00,IRRV OF REVENUES RATING & VALUATION.,100714
Corporate Resources,I.C.T. Services,"Vehicles, Equipment, Furniture and Fittings",912701,Computer equipment,07-Feb-2014,2702831-119060,"1,500.00",SWITCHSHOP LTD.,51032
Corporate Resources,I.C.T. Services,Supplies and Services,304639,Equipment and Materials,07-Feb-2014,2702606-128171,559.91,ACCUPART LTD.,79230
Corporate Resources,I.C.T. Services,Stock,926900,Stock in hand-Inventory system,07-Feb-2014,2702664-7402085260,"2,512.59",DELL COMPUTER CORPORATION LTD.,43439
Corporate Resources,I.C.T. Services,Stock,926900,Stock in hand-Inventory system,07-Feb-2014,2702829-6444984,564.53,SUPPLIES TEAM LTD.,46236
Corporate Resources,I.C.T. Services,Supplies and Services,304639,Equipment and Materials,07-Feb-2014,2702843-IN123068133,602.98,TOSHIBA INFORMATION SYSTEMS (UK) LTD.,54506
Neighbourhood Services,Direct Services,Premises,145051,Cleaning and Domestic Supplies,07-Feb-2014,2702603-2013156,"1,765.26",A & E THOMPSON.,111686
Neighbourhood Services,Redundant Direct Services,Supplies and Services,304221,Equipment and Materials,07-Feb-2014,2702736-10394,"1,142.80",LOGIC STREET & PARK FURNITURE LTD.,156972
Neighbourhood Services,Culture & Sport,Construction Work,908105,Construction work,07-Feb-2014,2702692-9005,"4,990.00",H2O SERVICING LTD.,165446
Neighbourhood Services,Culture & Sport,Supplies and Services,328041,"Clothing, Uniforms and Laundry",07-Feb-2014,2702687-1233,509.04,FUTURE GARMENTS LTD.,169456
Neighbourhood Services,Culture & Sport,Supplies and Services,324117,Provisions,07-Feb-2014,2702629-41682080,505.37,BRAKE BROS FOODSERVICE LTD.,42973
Neighbourhood Services,Projects and Business services,Supplies and Services,340001,Postages,07-Feb-2014,2702802-9046470014,"2,753.40",ROYAL MAIL GROUP PLC.,45883
Neighbourhood Services,Direct Services,Supplies and Services,304221,Equipment and Materials,07-Feb-2014,2702609-1104885,"1,119.78",AKW MEDI CARE LTD.,132877
Neighbourhood Services,Direct Services,Supplies and Services,304221,Equipment and Materials,07-Feb-2014,2702700-B33/0062881,600.64,HOWDENS JOINERY LTD.,44065
Neighbourhood Services,Direct Services,Supplies and Services,304221,Equipment and Materials,07-Feb-2014,2702700-B33/0063018,761.10,HOWDENS JOINERY LTD.,44065
Neighbourhood Services,Direct Services,Supplies and Services,304221,Equipment and Materials,07-Feb-2014,2702788-188823,"1,612.89",PLUMBING TRADE SUPPLIES LTD.,52634
Neighbourhood Services,Direct Services,Third Party Payments,430100,Rendered by Private Contractors,07-Feb-2014,2702804-JAN02614,600.00,RW CHICKEN (SCAFFOLDING) LTD.,76902
Neighbourhood Services,Direct Services,Third Party Payments,430100,Rendered by Private Contractors,07-Feb-2014,2702804-JAN02714,600.00,RW CHICKEN (SCAFFOLDING) LTD.,76902
Neighbourhood Services,Direct Services,Third Party Payments,430100,Rendered by Private Contractors,07-Feb-2014,2702804-JAN02814,600.00,RW CHICKEN (SCAFFOLDING) LTD.,76902
Neighbourhood Services,Direct Services,Third Party Payments,430100,Rendered by Private Contractors,07-Feb-2014,2702804-JAN03013A,600.00,RW CHICKEN (SCAFFOLDING) LTD.,76902
Neighbourhood Services,Direct Services,Premises,106099,Centrally Controlled Rep and Maint,07-Feb-2014,2702607-14238,"6,045.06",ACROL AIR CONDITIONING CO LTD.,42627
Neighbourhood Services,Technical Services,Construction Work,908105,Construction work,07-Feb-2014,2702662-10017,"1,254.73",COUPE LINE LTD.,43305
Neighbourhood Services,Direct Services,Construction Work,908105,Construction work,07-Feb-2014,2702799-6081,600.00,ROBERTSON SIMPSON LTD.,119754
Neighbourhood Services,Projects and Business services,Third Party Payments,430120,Rendered by Private Contractors,07-Feb-2014,2702682-SINV8505536,"4,428.51",FINNING (UK) LTD.,48951
Neighbourhood Services,Projects and Business services,Third Party Payments,430120,Rendered by Private Contractors,07-Feb-2014,2702682-SINV8506462,"1,268.42",FINNING (UK) LTD.,48951
Neighbourhood Services,Projects and Business services,Third Party Payments,430120,Rendered by Private Contractors,07-Feb-2014,2702682-SINV8506463,811.36,FINNING (UK) LTD.,48951
Neighbourhood Services,Projects and Business services,Third Party Payments,430120,Rendered by Private Contractors,07-Feb-2014,2702682-SINV8506464,"1,981.49",FINNING (UK) LTD.,48951
Neighbourhood Services,Projects and Business services,Third Party Payments,430120,Rendered by Private Contractors,07-Feb-2014,2702682-SINV8506465,527.50,FINNING (UK) LTD.,48951
Neighbourhood Services,Projects and Business services,Supplies and Services,304357,Equipment and Materials,07-Feb-2014,2702688,"2,042.28",GAP GROUP LTD.,43840
Neighbourhood Services,Technical Services,Stock,926900,Stock in hand-Inventory system,07-Feb-2014,2702659-145126,"1,109.52",COLAS LTD.,43233
Neighbourhood Services,Technical Services,Stock,926900,Stock in hand-Inventory system,07-Feb-2014,2702677-059135384,"24,941.38",EDMUNDSON ELECTRICAL LTD.,43635
Neighbourhood Services,Technical Services,Stock,926900,Stock in hand-Inventory system,07-Feb-2014,2702677-059-135537,"24,941.38",EDMUNDSON ELECTRICAL LTD.,43635
Neighbourhood Services,Technical Services,Stock,926900,Stock in hand-Inventory system,07-Feb-2014,2702707-435894,"2,984.80",INSTARMAC GROUP PLC.,44123
Neighbourhood Services,Technical Services,Stock,926900,Stock in hand-Inventory system,07-Feb-2014,2702720-NI023602,"14,345.10",JOHN MACLEAN & SONS ELECTRICAL (DINGWALL) LTD.,44264
Neighbourhood Services,Technical Services,Stock,926900,Stock in hand-Inventory system,07-Feb-2014,2702725-STI394534,558.00,JT DOVE LTD.,44305
Neighbourhood Services,Technical Services,Stock,926900,Stock in hand-Inventory system,07-Feb-2014,2702725-STI394660,770.67,JT DOVE LTD.,44305
Neighbourhood Services,Technical Services,Stock,926900,Stock in hand-Inventory system,07-Feb-2014,2702726-STI394553,939.63,JT DOVE LTD.,44305
Neighbourhood Services,Technical Services,Stock,926900,Stock in hand-Inventory system,07-Feb-2014,2702726-STI394677,502.50,JT DOVE LTD.,44305
Neighbourhood Services,Technical Services,Stock,926900,Stock in hand-Inventory system,07-Feb-2014,2702726-STI394978,737.50,JT DOVE LTD.,44305
Neighbourhood Services,Technical Services,Stock,926900,Stock in hand-Inventory system,07-Feb-2014,2702782-XL105989,"1,024.08",PARK ELECTRICAL DISTRIBUTORS LTD.,45579
Neighbourhood Services,Technical Services,Stock,926900,Stock in hand-Inventory system,07-Feb-2014,2702791-5021076,977.70,PRISM MEDICAL UK WESTHOLME DIVISION.,46681
Neighbourhood Services,Technical Services,Stock,926900,Stock in hand-Inventory system,07-Feb-2014,2702792-9417,888.07,PROBRUSH T/A NORTHERN MUNICIPAL SPARES LTD.,102572
Neighbourhood Services,Technical Services,Stock,926900,Stock in hand-Inventory system,07-Feb-2014,2702820-183005,"2,640.00",SNAPFAST.,46091
Neighbourhood Services,Technical Services,Stock,926900,Stock in hand-Inventory system,07-Feb-2014,2702820-183006,"5,909.04",SNAPFAST.,46091
Neighbourhood Services,Technical Services,Stock,926900,Stock in hand-Inventory system,07-Feb-2014,2702820-183233,"2,640.00",SNAPFAST.,46091
Neighbourhood Services,Technical Services,Stock,926900,Stock in hand-Inventory system,07-Feb-2014,2702820-183385,885.60,SNAPFAST.,46091
Neighbourhood Services,Technical Services,Stock,926900,Stock in hand-Inventory system,07-Feb-2014,2702821-270022439,"1,082.05",SOVEREIGN CHEMICALS LTD.,46110
Neighbourhood Services,Technical Services,Stock,926900,Stock in hand-Inventory system,07-Feb-2014,2702829-6398201,966.44,SUPPLIES TEAM LTD.,46236
Neighbourhood Services,Technical Services,Stock,926900,Stock in hand-Inventory system,07-Feb-2014,2702832-1053361,"1,725.00",T CROSSLING & CO LTD.,46269
Neighbourhood Services,Technical Services,Stock,926900,Stock in hand-Inventory system,07-Feb-2014,2702862-87111808,"1,246.51",WOLSELEY UK LTD.,46732
Neighbourhood Services,Technical Services,Supplies and Services,304221,Equipment and Materials,07-Feb-2014,2702815-260247/120259,500.32,SIGNATURE LTD T/A POST & COLUMN CO LTD.,46418
Neighbourhood Services,Technical Services,Supplies and Services,304260,Equipment and Materials,07-Feb-2014,2702648-1850553,510.16,CERTAS ENERGY UK LTD.,59045
Neighbourhood Services,Technical Services,Third Party Payments,430100,Rendered by Private Contractors,07-Feb-2014,2702662-15750,"4,424.77",COUPE LINE LTD.,43305
Neighbourhood Services,Technical Services,Third Party Payments,430100,Rendered by Private Contractors,07-Feb-2014,2702662-15754,"8,934.53",COUPE LINE LTD.,43305
Neighbourhood Services,Technical Services,Third Party Payments,430100,Rendered by Private Contractors,07-Feb-2014,2702662-15755,"2,087.78",COUPE LINE LTD.,43305
Neighbourhood Services,Technical Services,Supplies and Services,304221,Equipment and Materials,07-Feb-2014,2702718-00086236,"4,969.28",JOBLING PURSER LTD.,44248
Neighbourhood Services,Technical Services,Supplies and Services,304221,Equipment and Materials,07-Feb-2014,2702726-HEI547676,534.65,JT DOVE LTD.,44305
Neighbourhood Services,Technical Services,Supplies and Services,304221,Equipment and Materials,07-Feb-2014,2702728-9030483868,976.20,LAFARGE TARMAC TRADING LTD.,44422
Neighbourhood Services,Technical Services,Supplies and Services,304221,Equipment and Materials,07-Feb-2014,2702728-9030489806,935.30,LAFARGE TARMAC TRADING LTD.,44422
Neighbourhood Services,Technical Services,Supplies and Services,304221,Equipment and Materials,07-Feb-2014,2702728-9030491082,976.20,LAFARGE TARMAC TRADING LTD.,44422
Neighbourhood Services,Technical Services,Supplies and Services,304221,Equipment and Materials,07-Feb-2014,2702728-9030492111,530.25,LAFARGE TARMAC TRADING LTD.,44422
Neighbourhood Services,Technical Services,Third Party Payments,430100,Rendered by Private Contractors,07-Feb-2014,2702796-2580/131241,"20,912.70",RAINTON CONSTRUCTION LTD.,99476
Neighbourhood Services,Technical Services,Third Party Payments,430100,Rendered by Private Contractors,07-Feb-2014,2702796-2580/131242,"46,399.44",RAINTON CONSTRUCTION LTD.,99476
Neighbourhood Services,Technical Services,Third Party Payments,430100,Rendered by Private Contractors,07-Feb-2014,2702796-2580/131243,"38,157.29",RAINTON CONSTRUCTION LTD.,99476
Neighbourhood Services,Technical Services,Third Party Payments,430100,Rendered by Private Contractors,07-Feb-2014,2702796-2580/131249,"21,630.52",RAINTON CONSTRUCTION LTD.,99476
Neighbourhood Services,Technical Services,Third Party Payments,430100,Rendered by Private Contractors,07-Feb-2014,2702796-2580/131251,"116,049.93",RAINTON CONSTRUCTION LTD.,99476
Neighbourhood Services,Technical Services,Third Party Payments,430100,Rendered by Private Contractors,07-Feb-2014,2702810-SIL/D262/2364,"1,000.00",SEALANE INSHORE LTD.,45979
Neighbourhood Services,Technical Services,Supplies and Services,304221,Equipment and Materials,07-Feb-2014,2702813-25216421835,"1,055.55",USE (175070) SIG FIXINGS.,49778
Neighbourhood Services,Technical Services,Supplies and Services,304221,Equipment and Materials,07-Feb-2014,2702813-25216421836,"1,652.00",USE (175070) SIG FIXINGS.,49778
Neighbourhood Services,Technical Services,Supplies and Services,304221,Equipment and Materials,07-Feb-2014,2702813-25216421837,"1,569.40",USE (175070) SIG FIXINGS.,49778
Neighbourhood Services,Technical Services,Supplies and Services,304221,Equipment and Materials,07-Feb-2014,2702815-265156/120259,519.69,SIGNATURE LTD T/A POST & COLUMN CO LTD.,46418
Neighbourhood Services,Technical Services,Third Party Payments,430100,Rendered by Private Contractors,07-Feb-2014,2702828-059108,"1,063.44",STONEGRAVE AGGREGATES LTD.,50987
Neighbourhood Services,Technical Services,Third Party Payments,430100,Rendered by Private Contractors,07-Feb-2014,2702828-059160,"2,046.14",STONEGRAVE AGGREGATES LTD.,50987
Neighbourhood Services,Technical Services,Third Party Payments,430100,Rendered by Private Contractors,07-Feb-2014,2702828-059209,"2,561.50",STONEGRAVE AGGREGATES LTD.,50987
Neighbourhood Services,Technical Services,Third Party Payments,430100,Rendered by Private Contractors,07-Feb-2014,2702828-059283,"3,378.44",STONEGRAVE AGGREGATES LTD.,50987
Neighbourhood Services,Technical Services,Third Party Payments,460053,Contract Payments,07-Feb-2014,2702662-10000,"2,792.84",COUPE LINE LTD.,43305
Neighbourhood Services,Technical Services,Third Party Payments,460053,Contract Payments,07-Feb-2014,2702662-10001,"1,026.17",COUPE LINE LTD.,43305
Neighbourhood Services,Technical Services,Third Party Payments,460053,Contract Payments,07-Feb-2014,2702662-10002,"1,144.38",COUPE LINE LTD.,43305
Neighbourhood Services,Technical Services,Third Party Payments,460053,Contract Payments,07-Feb-2014,2702662-10009,"2,706.97",COUPE LINE LTD.,43305
Neighbourhood Services,Technical Services,Third Party Payments,460053,Contract Payments,07-Feb-2014,2702662-10012,"6,798.64",COUPE LINE LTD.,43305
Neighbourhood Services,Technical Services,Third Party Payments,460053,Contract Payments,07-Feb-2014,2702662-10015,"1,760.07",COUPE LINE LTD.,43305
Neighbourhood Services,Technical Services,Third Party Payments,460053,Contract Payments,07-Feb-2014,2702662-9996,968.92,COUPE LINE LTD.,43305
Neighbourhood Services,Direct Services,Third Party Payments,430100,Rendered by Private Contractors,07-Feb-2014,2702636-24576,"6,363.00",BUILDING ADDITIONS LTD.,48252
Neighbourhood Services,Direct Services,Supplies and Services,304221,Equipment and Materials,07-Feb-2014,2702788-4120160677,579.84,PLUMBING TRADE SUPPLIES LTD.,52634
Neighbourhood Services,Direct Services,Supplies and Services,304221,Equipment and Materials,07-Feb-2014,2702624-B87155,"1,837.70",BIDDLE AIR SYSTEMS LTD.,42923
Neighbourhood Services,Direct Services,Supplies and Services,304221,Equipment and Materials,07-Feb-2014,2702677-059135598,774.43,EDMUNDSON ELECTRICAL LTD.,43635
Neighbourhood Services,Direct Services,Supplies and Services,304221,Equipment and Materials,07-Feb-2014,2702633-1660/0804781,"1,736.47",BSS GROUP PLC.,46351
Neighbourhood Services,Direct Services,Supplies and Services,304221,Equipment and Materials,07-Feb-2014,2702744-0000050859,717.85,MIKROFILL SYSTEMS LTD.,49849
Neighbourhood Services,Direct Services,Supplies and Services,304221,Equipment and Materials,07-Feb-2014,2702840-001415612,"4,993.16",THORLUX LIGHTING.,52638
Neighbourhood Services,Direct Services,Supplies and Services,304221,Equipment and Materials,07-Feb-2014,2702677-059-136906,538.28,EDMUNDSON ELECTRICAL LTD.,43635
Neighbourhood Services,Direct Services,Supplies and Services,304221,Equipment and Materials,07-Feb-2014,2702789-INV202269,"4,385.40",POINTER LTD.,45675
Neighbourhood Services,Projects and Business services,Construction Work,908105,Construction work,07-Feb-2014,2702749-1849,"1,040.00",MOULDING CONTRACTS LTD.,163108
Neighbourhood Services,Projects and Business services,Construction Work,908105,Construction work,07-Feb-2014,2702749-1850,"5,472.50",MOULDING CONTRACTS LTD.,163108
Neighbourhood Services,Technical Services,Supplies and Services,328041,"Clothing, Uniforms and Laundry",07-Feb-2014,2702727-113849,"1,256.15",KELTIC LTD.,132840
Neighbourhood Services,Culture & Sport,Premises,120021,Energy Costs,07-Feb-2014,2702641-25171308,855.46,CALOR GAS LTD.,43056
Neighbourhood Services,Culture & Sport,Supplies and Services,338047,Services,07-Feb-2014,2702741-1413,775.00,M6 THEATRE CO LTD.,166606
RED HRA,Housing Revenue Account,Supplies and Services,344033,Telephones,07-Feb-2014,2702639-12526755,"3,859.21",CABLE & WIRELESS UK.,43049
RED HRA,Housing Revenue Account,Supplies and Services,344033,Telephones,07-Feb-2014,2702639-12542435,"1,994.16",CABLE & WIRELESS UK.,43049
RED HRA,Housing Revenue Account,Supplies and Services,342223,Computers and Communications,07-Feb-2014,2702706-1655611,"4,454.10",INSIGHT DIRECT (UK) LTD.,44122
RED HRA,Housing Revenue Account,Third Party Payments,430100,Rendered by Private Contractors,07-Feb-2014,2702674-SINV/00003235,"921,916.67",EAST DURHAM HOMES.,73538
RED HRA,Housing Revenue Account,Supplies and Services,338027,Services,07-Feb-2014,2702845-2266640,"16,602.00",TROWERS & HAMLINS.,133967
RED HRA,HRA Centrally Managed,Supplies and Services,384999,Miscellaneous Expenses,07-Feb-2014,2702754-4/2/14,769.57,REDACTED - PAYMENT TO INDIVIDUAL,143848
RED HRA,HRA Centrally Managed,Supplies and Services,384999,Miscellaneous Expenses,07-Feb-2014,2702758,606.02,REDACTED - PAYMENT TO INDIVIDUAL,174579
RED HRA,HRA Centrally Managed,Creditors,952191,Creditor-HRA-rents-refunds,07-Feb-2014,2702752,641.04,REDACTED - PAYMENT TO INDIVIDUAL,174610
RED HRA,HRA Centrally Managed,Creditors,952191,Creditor-HRA-rents-refunds,07-Feb-2014,2702756,566.24,REDACTED - PAYMENT TO INDIVIDUAL,149258
RED HRA,HRA Capital,Construction Work,908105,Construction work,07-Feb-2014,2702788-169309,"11,026.58",PLUMBING TRADE SUPPLIES LTD.,52634
RED HRA,HRA Capital,Construction Work,908105,Construction work,07-Feb-2014,2702855-B50381-6,"174,780.41",WATES CONSTRUCTION LTD.,46647
RED HRA,HRA Capital,Fees,901001,Internal fees,07-Feb-2014,2702674-SINV/00003236,"112,500.00",EAST DURHAM HOMES.,73538
Regeneration & Economic Development,Economic Development and Housing,Supplies and Services,336005,Advertising,07-Feb-2014,2702801-7106,"2,500.00",ROOM 501.,50681
Regeneration & Economic Development,Economic Development and Housing,Supplies and Services,336005,Advertising,07-Feb-2014,2702671-262962,"1,500.00",DURHAM UNIVERSITY.,46572
Regeneration & Economic Development,"Spatial Policy, Planning, Assets & Environment",Supplies and Services,338099,Services,07-Feb-2014,2702772-913096016,"3,882.00",NORTHUMBRIAN WATER LTD.,45504
Regeneration & Economic Development,Transport and Contracted Services,Supplies and Services,304259,Equipment and Materials,07-Feb-2014,2702848-3IN/20128308,"29,000.00",TUNSTALL HEALTHCARE (UK) LTD.,102660
Regeneration & Economic Development,Transport and Contracted Services,Premises,135005,Water Services,07-Feb-2014,2702771-314999810010003,759.90,NORTHUMBRIAN WATER LTD.,45504
Regeneration & Economic Development,Transport and Contracted Services,Premises,135005,Water Services,07-Feb-2014,2702771-31499981002X001,759.90,NORTHUMBRIAN WATER LTD.,45504
Regeneration & Economic Development,Transport and Contracted Services,Third Party Payments,430100,Rendered by Private Contractors,07-Feb-2014,2702861-288020,975.50,WM SMITH & SONS (BARNARD CASTLE) LTD.,46730
Regeneration & Economic Development,Transport and Contracted Services,Other Expenses,914001,Other capital expenses,07-Feb-2014,2702621-23583,"3,281.00",BAYDALE CONTROL SYSTEMS LTD.,115668
Regeneration & Economic Development,Economic Development and Housing,Cap Exp on Grants & Other Financial Assistance (REFCUS),918401,Capital grants,07-Feb-2014,2702600-RED-02-2014-010,"7,511.70",1898 LEISURE LTD.,174572
Regeneration & Economic Development,Economic Development and Housing,Fees,901001,Internal fees,07-Feb-2014,2702684-SITRH/0006036,735.00,FOUR HOUSING GROUP.,151213
Assistant Chief Executive,Policy & Communications Division,Supplies and Services,384071,Miscellaneous Expenses,10-Feb-2014,2703315-7140002015,"1,016.66",RIVERSIDE EVENTS LLP.,42843
Assistant Chief Executive,Partnerships & Community Engagement Div.,Supplies and Services,384086,Miscellaneous Expenses,10-Feb-2014,2703114-STAN006,"2,000.00",GROUNDWORK NORTH EAST.,43940
Children and Adult Services,Head of Adults,Employees,080025,Agency Staff,10-Feb-2014,2703390-4810001025,"3,583.09",TEES ESK & WEAR VALLEYS NHS FOUNDATION TRUST.,46316
Children and Adult Services,Head of Adults,Employees,080025,Agency Staff,10-Feb-2014,2703390-4810001627,"3,583.09",TEES ESK & WEAR VALLEYS NHS FOUNDATION TRUST.,46316
Children and Adult Services,Planning & Service Strategy,Supplies and Services,342053,Computers and Communications,10-Feb-2014,2703390-4810001128,"16,179.00",TEES ESK & WEAR VALLEYS NHS FOUNDATION TRUST.,46316
Children and Adult Services,Head of Adults,Third Party Payments,479101,Purchase of Care,10-Feb-2014,2703390-4810000606,"6,832.00",TEES ESK & WEAR VALLEYS NHS FOUNDATION TRUST.,46316
Children and Adult Services,Head of Adults,Third Party Payments,479101,Purchase of Care,10-Feb-2014,2703390-4810000793,"6,832.00",TEES ESK & WEAR VALLEYS NHS FOUNDATION TRUST.,46316
Children and Adult Services,Head of Adults,Third Party Payments,479101,Purchase of Care,10-Feb-2014,2703390-4810001019,"6,832.00",TEES ESK & WEAR VALLEYS NHS FOUNDATION TRUST.,46316
Children and Adult Services,Head of Adults,Third Party Payments,479101,Purchase of Care,10-Feb-2014,2703390-4810001228,"6,832.00",TEES ESK & WEAR VALLEYS NHS FOUNDATION TRUST.,46316
Children and Adult Services,Planning & Service Strategy,Supplies and Services,352001,Conference Expenses,10-Feb-2014,2703048-2292,570.50,THE DURHAM CENTRE LTD.,69986
Children and Adult Services,Planning & Service Strategy,Supplies and Services,352001,Conference Expenses,10-Feb-2014,2703048-2311,570.50,THE DURHAM CENTRE LTD.,69986
Children and Adult Services,Planning & Service Strategy,Supplies and Services,352001,Conference Expenses,10-Feb-2014,2703048-2325,570.50,THE DURHAM CENTRE LTD.,69986
Children and Adult Services,Planning & Service Strategy,Supplies and Services,352001,Conference Expenses,10-Feb-2014,2703048-2371,644.95,THE DURHAM CENTRE LTD.,69986
Children and Adult Services,Planning & Service Strategy,Supplies and Services,352001,Conference Expenses,10-Feb-2014,2703048-2382,570.50,THE DURHAM CENTRE LTD.,69986
Children and Adult Services,Early Intervention and Involvement,Supplies and Services,384199,Miscellaneous Expenses,10-Feb-2014,2703045-DAAC/666F,"1,123.00",DURHAM AGENCY AGAINST CRIME LTD (DAAC).,48725
Children and Adult Services,Public Health,Third Party Payments,460803,Contract Payments,10-Feb-2014,2702914-FDE75/JAN/14-METH,920.00,ASDA PHARMACY.,168641
Children and Adult Services,Public Health,Third Party Payments,460803,Contract Payments,10-Feb-2014,2703042-D140110,"2,350.00",DR KJ ARMSTRONG..,174191
Children and Adult Services,Public Health,Third Party Payments,460803,Contract Payments,10-Feb-2014,2703390-4810000187,"149,986.17",TEES ESK & WEAR VALLEYS NHS FOUNDATION TRUST.,46316
Children and Adult Services,Public Health,Third Party Payments,460803,Contract Payments,10-Feb-2014,2703390-4810001444,"149,986.17",TEES ESK & WEAR VALLEYS NHS FOUNDATION TRUST.,46316
Children and Adult Services,Public Health,Third Party Payments,460803,Contract Payments,10-Feb-2014,2703046-5,"59,500.00",DURHAM ALLIANCE FOR COMMUNITY CARE.,43549
Children and Adult Services,Education,Supplies and Services,338027,Services,10-Feb-2014,2703165-1718,"5,795.09",JOHN MUIR TRUST.,109889
Dedicated Schools Grant,Dedicated Schools Grant,Transport,230010,Contract Hire,10-Feb-2014,2702894-615519,"1,086.00",ALANS CABS.,111197
Dedicated Schools Grant,Dedicated Schools Grant,Transport,230010,Contract Hire,10-Feb-2014,2703284-952,605.00,PODA LTD.,50483
Children and Adult Services,Education,Transfer Payments,510026,School Children,10-Feb-2014,2703053-260798,674.71,DURHAM UNIVERSITY.,46572
Children and Adult Services,Education,Transfer Payments,510026,School Children,10-Feb-2014,2703137-11672,945.75,HOUSE OF EDEN CHILDRENS NURSERY.,44061
Children and Adult Services,Education,Transport,230007,Contract Hire,10-Feb-2014,2702867-11401,780.00,24/7 TAXI SERVICES LTD.,128258
Children and Adult Services,Education,Transport,230007,Contract Hire,10-Feb-2014,2702895-2-31/1/14,540.00,ALAN`S TAXIS.,153909
Children and Adult Services,Education,Transport,230007,Contract Hire,10-Feb-2014,2702917-03104,560.00,ATLAS TAXIS CONSETT.,42814
Children and Adult Services,Education,Transport,230008,Contract Hire,10-Feb-2014,2702915-383,984.20,AT TAXIS LTD.,42808
Children and Adult Services,Education,Transport,230008,Contract Hire,10-Feb-2014,2702867-11409,"1,235.00",24/7 TAXI SERVICES LTD.,128258
Children and Adult Services,Education,Transport,230008,Contract Hire,10-Feb-2014,2702867-11413,840.00,24/7 TAXI SERVICES LTD.,128258
Children and Adult Services,Education,Transport,230008,Contract Hire,10-Feb-2014,2702867-11411,600.00,24/7 TAXI SERVICES LTD.,128258
Children and Adult Services,Education,Transport,230007,Contract Hire,10-Feb-2014,2703183-2013414,540.00,L & M TAXIS.,125618
Children and Adult Services,Education,Transport,230007,Contract Hire,10-Feb-2014,2703276-00740,580.00,PHILLIPS TAXI GROUP LTD.,45652
Children and Adult Services,Education,Transport,230007,Contract Hire,10-Feb-2014,2702953-0401,675.40,BRIANS MINIBUSES.,42990
Children and Adult Services,Education,Transport,230007,Contract Hire,10-Feb-2014,2702879-546,"1,360.00",AC TAXIS.,85829
Children and Adult Services,Education,Transport,230007,Contract Hire,10-Feb-2014,2703276-00716,600.70,PHILLIPS TAXI GROUP LTD.,45652
Children and Adult Services,Education,Transport,230009,Contract Hire,10-Feb-2014,2703220-019,"1,800.00",MR JG HOWARTH.,44869
Children and Adult Services,Education,Transport,230007,Contract Hire,10-Feb-2014,2702917-03103,707.94,ATLAS TAXIS CONSETT.,42814
Children and Adult Services,Education,Transport,230007,Contract Hire,10-Feb-2014,2702875-29,"1,040.00",AALPHA TAXIS.,42608
Children and Adult Services,Education,Transport,230006,Contract Hire,10-Feb-2014,2702879-547,500.00,AC TAXIS.,85829
Children and Adult Services,Education,Transport,230008,Contract Hire,10-Feb-2014,2702876-01/2/14,"1,121.00",ABA TAXIS.,47873
Children and Adult Services,Education,Transport,230008,Contract Hire,10-Feb-2014,2702931-10JANUARY14,"1,520.00",BEELINE PRIVATE HIRE.,42895
Children and Adult Services,Education,Transport,230008,Contract Hire,10-Feb-2014,2702964-PS072,"1,226.70",BURNDALE PRIVATE HIRE.,43029
Children and Adult Services,Education,Transport,230007,Contract Hire,10-Feb-2014,2702867-11402,836.00,24/7 TAXI SERVICES LTD.,128258
Children and Adult Services,Education,Transport,230008,Contract Hire,10-Feb-2014,2702873-AA885,"1,425.00",AA MINIBUS HIRE.,42605
Children and Adult Services,Education,Transport,230007,Contract Hire,10-Feb-2014,2702919-31010140,600.00,AVALON TAXIS.,163220
Children and Adult Services,Education,Transport,230007,Contract Hire,10-Feb-2014,2703276-00724,552.00,PHILLIPS TAXI GROUP LTD.,45652
Children and Adult Services,Education,Transport,230007,Contract Hire,10-Feb-2014,2702937-10,760.00,BILL`S TAXIS.,141915
Children and Adult Services,Education,Transport,230009,Contract Hire,10-Feb-2014,2703183-2013413,"1,155.00",L & M TAXIS.,125618
Children and Adult Services,Education,Transport,230007,Contract Hire,10-Feb-2014,2703217-15,962.00,MR BW YOUNG.,53439
Children and Adult Services,Education,"Vehicles, Equipment, Furniture and Fittings",912701,Computer equipment,10-Feb-2014,2703149-1474712,"6,000.00",INSIGHT DIRECT (UK) LTD.,44122
Children and Adult Services,Education,Transport,230007,Contract Hire,10-Feb-2014,2702917-03105,760.00,ATLAS TAXIS CONSETT.,42814
Children and Adult Services,Education,Transport,230007,Contract Hire,10-Feb-2014,2702917-03107,720.00,ATLAS TAXIS CONSETT.,42814
Children and Adult Services,Education,Transport,230008,Contract Hire,10-Feb-2014,2703175-010114,"1,290.00",KEVIN EDMUNDSON.,44375
Children and Adult Services,Education,Transport,230008,Contract Hire,10-Feb-2014,2702867-11403,"1,230.00",24/7 TAXI SERVICES LTD.,128258
Children and Adult Services,Education,Transport,230008,Contract Hire,10-Feb-2014,2702867-11416,"1,242.00",24/7 TAXI SERVICES LTD.,128258
Children and Adult Services,Education,Transport,230008,Contract Hire,10-Feb-2014,2702930-405,"1,504.04",BEELINE MINI BUSES.,42894
Children and Adult Services,Education,Transport,230008,Contract Hire,10-Feb-2014,2702867-11414,"1,780.00",24/7 TAXI SERVICES LTD.,128258
Children and Adult Services,Education,Transport,230008,Contract Hire,10-Feb-2014,2702915-382,"1,380.00",AT TAXIS LTD.,42808
Children and Adult Services,Education,Transport,230008,Contract Hire,10-Feb-2014,2702932-28,"1,600.00",BEELINE TAXIS.,42896
Children and Adult Services,Education,Transport,230008,Contract Hire,10-Feb-2014,2702931-1JANUARY14,"1,992.60",BEELINE PRIVATE HIRE.,42895
Children and Adult Services,Education,Transport,230008,Contract Hire,10-Feb-2014,2703284-951,"1,260.00",PODA LTD.,50483
Children and Adult Services,Education,Transport,230008,Contract Hire,10-Feb-2014,2702867-11410,900.00,24/7 TAXI SERVICES LTD.,128258
Children and Adult Services,Education,Transport,230008,Contract Hire,10-Feb-2014,2702919-310114,"1,100.00",AVALON TAXIS.,163220
Children and Adult Services,Education,Transport,230008,Contract Hire,10-Feb-2014,2702941-1301,"1,380.00",BOBBY DOVE.,42957
Children and Adult Services,Education,Transport,230008,Contract Hire,10-Feb-2014,2702952-BZ00087,"1,100.00",BREZ`S TAXIS.,156052
Children and Adult Services,Education,Transport,230008,Contract Hire,10-Feb-2014,2702867-11412,"2,480.00",24/7 TAXI SERVICES LTD.,128258
Children and Adult Services,Education,Transport,230008,Contract Hire,10-Feb-2014,2703276-00742,"1,400.00",PHILLIPS TAXI GROUP LTD.,45652
Children and Adult Services,Education,Transport,230008,Contract Hire,10-Feb-2014,2702867-11408,696.00,24/7 TAXI SERVICES LTD.,128258
Children and Adult Services,Education,Transport,230008,Contract Hire,10-Feb-2014,2702870-05,"1,200.00",A & P TAXIS.,109125
Children and Adult Services,Education,Transport,230008,Contract Hire,10-Feb-2014,2702871-A220749,"1,360.00",A MURRAY TRAVEL.,52816
Children and Adult Services,Education,Transport,230008,Contract Hire,10-Feb-2014,2702931-9JANUARY14,"1,300.00",BEELINE PRIVATE HIRE.,42895
Children and Adult Services,Education,Transport,230008,Contract Hire,10-Feb-2014,2702941-1305,"1,557.50",BOBBY DOVE.,42957
Children and Adult Services,Education,Transport,230008,Contract Hire,10-Feb-2014,2702968-BIL0038,"1,300.00",CA MUSGROVE.,43048
Children and Adult Services,Education,Transport,230008,Contract Hire,10-Feb-2014,2702887-01/14,988.00,ADVANCE TRAVEL.,42646
Children and Adult Services,Education,Transport,230008,Contract Hire,10-Feb-2014,2702901-41,"1,292.00",ANDY CABS.,127489
Children and Adult Services,Education,Transport,230008,Contract Hire,10-Feb-2014,2702916-DCC5JAN14,"1,615.00",ATLAS TAXIS BISHOP AUCKLAND.,42813
Children and Adult Services,Education,Transport,230008,Contract Hire,10-Feb-2014,2703021-OAK023,"1,271.04",D IRVING T/A BJ TAXIS.,43346
Children and Adult Services,Education,Transport,230008,Contract Hire,10-Feb-2014,2703434-840,"1,800.00",WAYNE`S TAXIS.,46648
Children and Adult Services,Education,Transport,230008,Contract Hire,10-Feb-2014,2702915-381,"1,400.00",AT TAXIS LTD.,42808
Children and Adult Services,Education,Transport,230008,Contract Hire,10-Feb-2014,2702916-DCC11JAN14,"2,100.00",ATLAS TAXIS BISHOP AUCKLAND.,42813
Children and Adult Services,Education,Transport,230008,Contract Hire,10-Feb-2014,2702916-DCC3JAN14,"1,829.00",ATLAS TAXIS BISHOP AUCKLAND.,42813
Children and Adult Services,Education,Transport,230008,Contract Hire,10-Feb-2014,2703213-00624,"1,500.00",MICHAELS TRAVEL.,44699
Children and Adult Services,Education,Transport,230008,Contract Hire,10-Feb-2014,2703213-00625,"2,620.00",MICHAELS TRAVEL.,44699
Children and Adult Services,Education,Transport,230008,Contract Hire,10-Feb-2014,2703434-839,"1,936.00",WAYNE`S TAXIS.,46648
Children and Adult Services,Education,Transport,230008,Contract Hire,10-Feb-2014,2703434-841,"2,000.00",WAYNE`S TAXIS.,46648
Children and Adult Services,Education,Transport,230008,Contract Hire,10-Feb-2014,2702885-100,550.80,ADAMSONS TAXIS.,42635
Children and Adult Services,Education,Transport,230008,Contract Hire,10-Feb-2014,2702916-DCC4JAN14,"1,805.00",ATLAS TAXIS BISHOP AUCKLAND.,42813
Children and Adult Services,Education,Transport,230008,Contract Hire,10-Feb-2014,2702877-53-31012014,"1,400.00",ABLE NOVAK TAXIS.,42615
Children and Adult Services,Education,Transport,230008,Contract Hire,10-Feb-2014,2702916-DCC6JAN14,"3,264.00",ATLAS TAXIS BISHOP AUCKLAND.,42813
Children and Adult Services,Education,Transport,230008,Contract Hire,10-Feb-2014,2702954-0214,"2,558.40",BRIANS TAXIS.,42991
Children and Adult Services,Education,Transport,230008,Contract Hire,10-Feb-2014,2703276-00717,720.00,PHILLIPS TAXI GROUP LTD.,45652
Children and Adult Services,Education,Supplies and Services,338027,Services,10-Feb-2014,2703243-7631,999.10,NORTH EAST REGIONAL EMPLOYERS ORGANISATION.,45471
Children and Adult Services,Education,Transport,230006,Contract Hire,10-Feb-2014,2702867-11405,"1,120.00",24/7 TAXI SERVICES LTD.,128258
Children and Adult Services,Education,Transport,230006,Contract Hire,10-Feb-2014,2702867-11406,588.00,24/7 TAXI SERVICES LTD.,128258
Children and Adult Services,Education,Transport,230006,Contract Hire,10-Feb-2014,2702867-11407,516.00,24/7 TAXI SERVICES LTD.,128258
Children and Adult Services,Education,Transport,230006,Contract Hire,10-Feb-2014,2702917-03108,927.60,ATLAS TAXIS CONSETT.,42814
Children and Adult Services,Education,Transport,230006,Contract Hire,10-Feb-2014,2702935-010,"1,044.00",BG TAXIS.,53435
Children and Adult Services,Education,Transport,230006,Contract Hire,10-Feb-2014,2703434-846,"1,368.00",WAYNE`S TAXIS.,46648
Children and Adult Services,Childrens care,Supplies and Services,338042,Services,10-Feb-2014,2703219-301462/INVJB108,"1,800.00",MR JAMES BROWN.,49975
Children and Adult Services,Childrens care,Supplies and Services,364353,Grants to Voluntary Organisations,10-Feb-2014,2702908-667,"1,220.00",AQUILA WAY.,174664
Children and Adult Services,Childrens care,Supplies and Services,364353,Grants to Voluntary Organisations,10-Feb-2014,2702908-676,"2,440.00",AQUILA WAY.,174664
Children and Adult Services,Early Intervention and Involvement,Supplies and Services,352001,Conference Expenses,10-Feb-2014,2703048-2426,"2,240.00",THE DURHAM CENTRE LTD.,69986
Children and Adult Services,Early Intervention and Involvement,Transport,235073,Public Transport,10-Feb-2014,2702912-105775,"1,200.00",ARRIVA NORTH EAST LTD.,42776
Corporate Resources,I.C.T. Services,Supplies and Services,342223,Computers and Communications,10-Feb-2014,2703034-7402086125,"1,345.00",DELL COMPUTER CORPORATION LTD.,43439
Corporate Resources,I.C.T. Services,Supplies and Services,342222,Computers and Communications,10-Feb-2014,2703034-7402084272,"2,640.00",DELL COMPUTER CORPORATION LTD.,43439
Corporate Resources,I.C.T. Services,Supplies and Services,342222,Computers and Communications,10-Feb-2014,2703034-7402086462,"1,750.00",DELL COMPUTER CORPORATION LTD.,43439
Corporate Resources,I.C.T. Services,Supplies and Services,332047,"Printing, Stationery and Gen Off Exps",10-Feb-2014,2703441-U546758,814.00,XMA LTD.,46758
Corporate Resources,I.C.T. Services,Stock,926900,Stock in hand-Inventory system,10-Feb-2014,2703034-7402086540,"3,096.00",DELL COMPUTER CORPORATION LTD.,43439
Corporate Resources,I.C.T. Services,Supplies and Services,304639,Equipment and Materials,10-Feb-2014,2703034-7402087426,818.36,DELL COMPUTER CORPORATION LTD.,43439
Neighbourhood Services,Direct Services,Third Party Payments,430100,Rendered by Private Contractors,10-Feb-2014,2703289-126773,800.00,PREMIER TRAFFIC MANAGEMENT LTD.,45702
Neighbourhood Services,Direct Services,Transport,210057,Repair and Maintenance of Vehicles,10-Feb-2014,2702934-45044233,"2,458.20",BELL TRUCK SALES LTD.,42899
Neighbourhood Services,Direct Services,Third Party Payments,430100,Rendered by Private Contractors,10-Feb-2014,2703168-65185178,743.39,JOHNSTON SWEEPERS LTD.,91995
Neighbourhood Services,Direct Services,Transport,210057,Repair and Maintenance of Vehicles,10-Feb-2014,2703310-700555,530.47,RICKERBY LTD.,45829
Neighbourhood Services,Direct Services,Third Party Payments,430100,Rendered by Private Contractors,10-Feb-2014,2703392-96292293,"1,317.85",TERBERG MATEC (UK) LTD.,102642
Neighbourhood Services,Direct Services,Stock,926004,Stock,10-Feb-2014,2702980-1974778,"14,135.11",CERTAS ENERGY UK LTD.,59045
Neighbourhood Services,Direct Services,Stock,926004,Stock,10-Feb-2014,2702980-1974786,"2,507.20",CERTAS ENERGY UK LTD.,59045
Neighbourhood Services,Direct Services,Third Party Payments,430101,Rendered by Private Contractors,10-Feb-2014,2703129-5066975281,885.60,HI Q TYRESERVICES.,54229
Neighbourhood Services,Direct Services,Transport,210057,Repair and Maintenance of Vehicles,10-Feb-2014,2703133-214136,"2,015.00",HL SMITH (TRANSMISSIONS) LTD.,133397
Neighbourhood Services,Direct Services,Stock,926004,Stock,10-Feb-2014,2703192-SI1486701,750.00,LINDEN FLUID POWER LTD.,150702
Neighbourhood Services,Direct Services,Transport,210057,Repair and Maintenance of Vehicles,10-Feb-2014,2703392-96292746,780.10,TERBERG MATEC (UK) LTD.,102642
Neighbourhood Services,Culture & Sport,Premises,145023,Cleaning and Domestic Supplies,10-Feb-2014,2703355-264646,909.65,SIS CHEMICALS.,46068
Neighbourhood Services,Culture & Sport,Premises,145023,Cleaning and Domestic Supplies,10-Feb-2014,2703355-264793,"2,205.75",SIS CHEMICALS.,46068
Neighbourhood Services,Direct Services,Stock,926004,Stock,10-Feb-2014,2702980-1964321,"23,923.76",CERTAS ENERGY UK LTD.,59045
Neighbourhood Services,Technical Services,Third Party Payments,460350,Contract Payments,10-Feb-2014,2703152-1194,860.00,J & JG GILL & SONS LTD.,44149
Neighbourhood Services,Technical Services,Third Party Payments,460350,Contract Payments,10-Feb-2014,2703155-5304539,"1,102.50",JA GILSON (AGRICULTURAL CONTRACTORS) LTD.,44164
Neighbourhood Services,Technical Services,Third Party Payments,460350,Contract Payments,10-Feb-2014,2703328-0218,"2,170.50",S & R LANDSCAPES.,45904
Neighbourhood Services,Direct Services,Stock,926004,Stock,10-Feb-2014,2702980-1949196,"13,603.91",CERTAS ENERGY UK LTD.,59045
Neighbourhood Services,Direct Services,Stock,926004,Stock,10-Feb-2014,2702980-1949217,"2,193.17",CERTAS ENERGY UK LTD.,59045
Neighbourhood Services,Direct Services,Stock,926004,Stock,10-Feb-2014,2702980-1949237,"3,280.20",CERTAS ENERGY UK LTD.,59045
Neighbourhood Services,Direct Services,Third Party Payments,430100,Rendered by Private Contractors,10-Feb-2014,2703134-52640,"1,518.05",HOGARTH COACHWORKS LTD.,54505
Neighbourhood Services,Direct Services,Third Party Payments,430100,Rendered by Private Contractors,10-Feb-2014,2703191-125745,772.25,LIFTING & COOLING LTD.,44488
Neighbourhood Services,Direct Services,Third Party Payments,430100,Rendered by Private Contractors,10-Feb-2014,2703367-11607347,695.79,SPRINGFIELD MOTOR GROUP.,50904
Neighbourhood Services,Direct Services,Third Party Payments,430100,Rendered by Private Contractors,10-Feb-2014,2703325-JAN037/14,680.00,RW CHICKEN (SCAFFOLDING) LTD.,76902
Neighbourhood Services,Direct Services,Third Party Payments,430100,Rendered by Private Contractors,10-Feb-2014,2703325-JAN038/14,600.00,RW CHICKEN (SCAFFOLDING) LTD.,76902
Neighbourhood Services,Technical Services,Construction Work,908105,Construction work,10-Feb-2014,2703010-10051,"1,631.14",COUPE LINE LTD.,43305
Neighbourhood Services,Technical Services,Construction Work,908108,Capital - Surface Dressing,10-Feb-2014,2703010-9911,552.84,COUPE LINE LTD.,43305
Neighbourhood Services,Technical Services,Other Expenses,914002,Capital - Advertisments,10-Feb-2014,2703238-4898223,810.84,NEWSQUEST (YORKSHIRE & NORTH EAST) LTD.,45433
Neighbourhood Services,Culture & Sport,Supplies and Services,338099,Services,10-Feb-2014,2703425-2055,780.00,VISIT COUNTY DURHAM.,59977
Neighbourhood Services,Technical Services,Stock,926900,Stock in hand-Inventory system,10-Feb-2014,2703065-059-135697,"1,163.10",EDMUNDSON ELECTRICAL LTD.,43635
Neighbourhood Services,Technical Services,Stock,926900,Stock in hand-Inventory system,10-Feb-2014,2703103-655214,"2,261.40",GLASDON UK LTD.,43889
Neighbourhood Services,Technical Services,Stock,926900,Stock in hand-Inventory system,10-Feb-2014,2703264-XL105133,"4,713.20",PARK ELECTRICAL DISTRIBUTORS LTD.,45579
Neighbourhood Services,Technical Services,Supplies and Services,304357,Equipment and Materials,10-Feb-2014,2703095,"12,567.00",GAP GROUP LTD.,43840
Neighbourhood Services,Technical Services,Supplies and Services,304358,Equipment and Materials,10-Feb-2014,2703328-0225,552.00,S & R LANDSCAPES.,45904
Neighbourhood Services,Direct Services,Supplies and Services,304221,Equipment and Materials,10-Feb-2014,2702960-1660/0797272,860.60,BSS GROUP PLC.,46351
Neighbourhood Services,Direct Services,Supplies and Services,304221,Equipment and Materials,10-Feb-2014,2703198-3247091,"1,552.10",LONDON GENERAL SALES LTD.,44533
Neighbourhood Services,Projects and Business services,Construction Work,908105,Construction work,10-Feb-2014,2703146-63631,"27,605.57",INITIAL PROJECTS LTD T/A ENITIAL.,170900
Neighbourhood Services,Culture & Sport,Premises,120021,Energy Costs,10-Feb-2014,2702970-16635799,731.85,CALOR GAS LTD.,43056
Neighbourhood Services,Culture & Sport,Supplies and Services,304259,Equipment and Materials,10-Feb-2014,2703074-INV63052,767.34,EMOS INFORMATION SYSTEMS LTD.,62081
Neighbourhood Services,Culture & Sport,Supplies and Services,384199,Miscellaneous Expenses,10-Feb-2014,2703145-1779,937.50,IMPRESSIONS GALLERY OF PHOTOGRAPHY LTD.,155819
Neighbourhood Services,Culture & Sport,Supplies and Services,384199,Miscellaneous Expenses,10-Feb-2014,2703201-0114,800.00,LOUISE TAYLOR.,49679
Neighbourhood Services,Culture & Sport,Supplies and Services,338047,Services,10-Feb-2014,2703263-SCR71142,"1,092.77",PARK CIRCUS LTD.,133986
Neighbourhood Services,Culture & Sport,Supplies and Services,338047,Services,10-Feb-2014,2703432-1338751,575.00,WALT DISNEY CO LTD.,134140
Neighbourhood Services,Culture & Sport,Supplies and Services,338047,Services,10-Feb-2014,2703432-1338752,"1,143.58",WALT DISNEY CO LTD.,134140
Neighbourhood Services,Culture & Sport,Supplies and Services,338047,Services,10-Feb-2014,2703432-1338753,"1,098.63",WALT DISNEY CO LTD.,134140
Neighbourhood Services,Culture & Sport,Supplies and Services,338047,Services,10-Feb-2014,2703433-22152153,"1,774.21",WARNER BROS ENTERTAINMENT UK LTD.,134141
Neighbourhood Services,Culture & Sport,Supplies and Services,338047,Services,10-Feb-2014,2703025-120213,"3,090.00",DAMES IN DIS DRESS.,168310
Neighbourhood Services,Culture & Sport,Supplies and Services,338047,Services,10-Feb-2014,2703115-FBC671,600.00,GROWLING CLOWN.,74531
Neighbourhood Services,Culture & Sport,Supplies and Services,338047,Services,10-Feb-2014,2703376-02031,"2,226.41",SWEENEY ENTERTAINMENTS.,134097
Neighbourhood Services,Culture & Sport,Supplies and Services,384199,Miscellaneous Expenses,10-Feb-2014,2703273-0039,"3,419.80",PETER THIERFELDT.,174100
Regeneration & Economic Development,Economic Development and Housing,Supplies and Services,384700,Miscellaneous Expenses,10-Feb-2014,2703372-RED-02-2014-045,"1,500.00",STUART HALL & CO.,174611
Regeneration & Economic Development,Strategy Programmes and Performance,Supplies and Services,384899,Miscellaneous Expenses,10-Feb-2014,2703050-FEDF004/01,"1,754.50",DURHAM GIN LTD T/A DURHAM DISTILLERY.,174633
Regeneration & Economic Development,"Spatial Policy, Planning, Assets & Environment",Supplies and Services,336005,Advertising,10-Feb-2014,2703238-4744695,846.65,NEWSQUEST (YORKSHIRE & NORTH EAST) LTD.,45433
Regeneration & Economic Development,"Spatial Policy, Planning, Assets & Environment",Supplies and Services,336005,Advertising,10-Feb-2014,2703238-4775670,911.78,NEWSQUEST (YORKSHIRE & NORTH EAST) LTD.,45433
Regeneration & Economic Development,Economic Development and Housing,Supplies and Services,384199,Miscellaneous Expenses,10-Feb-2014,2702878-4047,"4,309.00",ABRITAS LTD.,115649
Regeneration & Economic Development,Transport and Contracted Services,Supplies and Services,304245,Equipment and Materials,10-Feb-2014,2703410-3IN/10232840,"2,015.87",TUNSTALL HEALTHCARE (UK) LTD.,102660
Regeneration & Economic Development,Transport and Contracted Services,Construction Work,908105,Construction work,10-Feb-2014,2703000-RED-02-2014-077,"1,428.00",COAL AUTHORITY.,99471
Regeneration & Economic Development,Transport and Contracted Services,Other Expenses,914001,Other capital expenses,10-Feb-2014,2702889-28180303,"1,449.00",AECOM LTD.,99060
Regeneration & Economic Development,"Spatial Policy, Planning, Assets & Environment",Fees,901002,Professional fees,10-Feb-2014,2703037-1800019368,"6,800.00",DEPARTMENT FOR COMMUNITIES & LOCAL GOVERNMENT.,61440
Children and Adult Services,Head of Adults,Transport,230005,Contract Hire,11-Feb-2014,2704439-2915,"1,105.00",NIGHTINGALE COACHES.,45446
Children and Adult Services,Head of Adults,Transport,230005,Contract Hire,11-Feb-2014,2704060-AA884,"1,090.00",AA MINIBUS HIRE.,42605
Children and Adult Services,Head of Adults,Transport,230005,Contract Hire,11-Feb-2014,2704324-675-31/1/14,884.00,J YOUNG T/A VIP TAXIS.,46614
Children and Adult Services,Head of Adults,Transport,230005,Contract Hire,11-Feb-2014,2704328-436,"1,175.90",JDS PRIVATE HIRE DURHAM.,44208
Children and Adult Services,Head of Adults,Transport,230005,Contract Hire,11-Feb-2014,2704414-222,649.00,MR LEE ANDERSON.,72958
Children and Adult Services,Head of Adults,Transport,230005,Contract Hire,11-Feb-2014,2704328-438,856.80,JDS PRIVATE HIRE DURHAM.,44208
Children and Adult Services,Head of Adults,Transport,230005,Contract Hire,11-Feb-2014,2704399-387,918.00,MOLLYS TAXIS.,44797
Children and Adult Services,Head of Adults,Transport,230005,Contract Hire,11-Feb-2014,2704061-N44/SX,810.00,AABAT TAXIS.,42607
Children and Adult Services,Commissioning inc Supporting People,Supplies and Services,384700,Miscellaneous Expenses,11-Feb-2014,2704178-CCA49,"1,191.40",CRAFTY CARDS.,174458
Children and Adult Services,Head of Adults,Transport,230005,Contract Hire,11-Feb-2014,2704381-0114,"1,155.00",MAG`S CARS.,163474
Children and Adult Services,Head of Adults,Transport,230005,Contract Hire,11-Feb-2014,2704439-2914,858.00,NIGHTINGALE COACHES.,45446
Children and Adult Services,Head of Adults,Transport,230005,Contract Hire,11-Feb-2014,2704439-2916,"2,214.60",NIGHTINGALE COACHES.,45446
Children and Adult Services,Head of Adults,Transport,230005,Contract Hire,11-Feb-2014,2704439-2917,"1,458.60",NIGHTINGALE COACHES.,45446
Children and Adult Services,Head of Adults,Transport,230005,Contract Hire,11-Feb-2014,2704439-2918,830.40,NIGHTINGALE COACHES.,45446
Children and Adult Services,Head of Adults,Transport,230005,Contract Hire,11-Feb-2014,2704060-AA883,"1,953.60",AA MINIBUS HIRE.,42605
Children and Adult Services,Head of Adults,Transport,230005,Contract Hire,11-Feb-2014,2704439-2910,"1,360.00",NIGHTINGALE COACHES.,45446
Children and Adult Services,Head of Adults,Transport,230005,Contract Hire,11-Feb-2014,2704439-2911,"2,580.60",NIGHTINGALE COACHES.,45446
Children and Adult Services,Head of Adults,Transport,230005,Contract Hire,11-Feb-2014,2704439-2912,"1,496.00",NIGHTINGALE COACHES.,45446
Children and Adult Services,Head of Adults,Cap Exp on Grants & Other Financial Assistance (REFCUS),918401,Capital grants,11-Feb-2014,2704085-CAS-02-2014-253,"5,670.00",ASPIRE LEARNING SUPPORT & WELLING CIC.,162546
Children and Adult Services,Head of Adults,Cap Exp on Grants & Other Financial Assistance (REFCUS),918401,Capital grants,11-Feb-2014,2704145-CAS-02-2014-017,"15,790.12",CHESTER LE STREET MIND.,62161
Children and Adult Services,Head of Adults,Cap Exp on Grants & Other Financial Assistance (REFCUS),918401,Capital grants,11-Feb-2014,2704565-CAS-01-2014-070,"41,047.01",THE HOSPITAL OF GOD AT GREATHAM.,166366
Children and Adult Services,Planning & Service Strategy,Supplies and Services,384621,Miscellaneous Expenses,11-Feb-2014,2704187-261,"21,510.00",DALE CARE LTD.,43355
Children and Adult Services,Planning & Service Strategy,Employees,040149,"Recruitment, Instruction and Training",11-Feb-2014,2704591-08106629-005,570.00,UNIVERSITY OF TEESSIDE.,46579
Children and Adult Services,Planning & Service Strategy,Supplies and Services,338089,Services,11-Feb-2014,2704429-127/2013,"1,845.00",NATIONAL APPROPRIATE ADULT NETWORK LTD.,57852
Children and Adult Services,Planning & Service Strategy,Supplies and Services,384540,Miscellaneous Expenses,11-Feb-2014,2704237-SINV00001020,"4,410.00",EXTERION MEDIA.,43112
Children and Adult Services,Education,Supplies and Services,384871,Miscellaneous Expenses,11-Feb-2014,2704067-0114/11,500.00,ADAM BUSHNELL STORY TALES.,42634
Children and Adult Services,Head of Adults,Premises,120009,Energy Costs,11-Feb-2014,2704116-64547653/2,880.12,BRITISH GAS TRADING LTD.,43004
Children and Adult Services,Head of Adults,Supplies and Services,304259,Equipment and Materials,11-Feb-2014,2704475-60607606,608.88,PHS GROUP PLC.,45658
Children and Adult Services,Early Intervention and Involvement,Supplies and Services,384199,Miscellaneous Expenses,11-Feb-2014,2704560-11137,"3,467.00",TEESDALE EVENT & SITE SERVICES LTD.,51070
Children and Adult Services,Early Intervention and Involvement,Supplies and Services,338099,Services,11-Feb-2014,2704536-10995,"5,000.00",SOUTH DURHAM ENTERPRISE AGENCY LTD.,75379
Children and Adult Services,Public Health,Third Party Payments,460802,Contract Payments,11-Feb-2014,2704155,"3,587.39",CLAYPATH & UNIVERSITY MEDICAL GROUP.,59750
Children and Adult Services,Public Health,Third Party Payments,460802,Contract Payments,11-Feb-2014,2704491-1113,"1,170.00",QUEENS ROAD SURGERY.,101634
Children and Adult Services,Public Health,Third Party Payments,460802,Contract Payments,11-Feb-2014,2704476-11910/14,"1,095.00",PIONEERING CARE PARTNERSHIP.,45662
Children and Adult Services,Public Health,Third Party Payments,460803,Contract Payments,11-Feb-2014,2704554,"2,800.00",REDACTED - PAYMENT TO INDIVIDUAL,167090
Children and Adult Services,Public Health,Third Party Payments,460803,Contract Payments,11-Feb-2014,2704120-CAS-02-2014-027,500.00,BURGESS HYDER DENTAL GROUP.,174421
Children and Adult Services,Public Health,Third Party Payments,460803,Contract Payments,11-Feb-2014,2704121-CAS-02-2014-028,500.00,BURGESS HYDER DENTAL GROUP.,174421
Children and Adult Services,Central Charges,Debtors,930131,Debtor-Hospital Re-Admission Avoidance Project,11-Feb-2014,2704074-0400007342,738.99,ALLIED HEALTHCARE GROUP LTD.,42679
Children and Adult Services,Central Charges (CYPS),Employees,030001,Teachers Pension,11-Feb-2014,2704557,"3,450.40",TEACHERS PENSIONS.,46299
Dedicated Schools Grant,Dedicated Schools Grant,Transport,230010,Contract Hire,11-Feb-2014,2704126-P04805,760.00,C & R TAXIS.,53433
Dedicated Schools Grant,Dedicated Schools Grant,Transport,230010,Contract Hire,11-Feb-2014,2704126-P05203,"1,124.00",C & R TAXIS.,53433
Dedicated Schools Grant,Dedicated Schools Grant,Transport,230010,Contract Hire,11-Feb-2014,2704146-1057,"1,550.00",CHESTER ROAD TAXIS.,53432
Dedicated Schools Grant,Dedicated Schools Grant,Transport,230008,Contract Hire,11-Feb-2014,2704239-019,646.00,EXTREAM TAXI`S.,171111
Dedicated Schools Grant,Dedicated Schools Grant,Transport,230008,Contract Hire,11-Feb-2014,2704304-96-31/1/14,"1,402.00",HORNDALE AJ`S TAXIS.,95705
Dedicated Schools Grant,Dedicated Schools Grant,Transport,230010,Contract Hire,11-Feb-2014,2704262-JG005,600.00,GARY JACKSON PRIVATE HIRE.,161132
Dedicated Schools Grant,Dedicated Schools Grant,Transport,230010,Contract Hire,11-Feb-2014,2704350-L050/001,"1,026.00",KEITH HAMMOND T/A FERRYHILL VILLAGE TRAVEL.,44354
Dedicated Schools Grant,Dedicated Schools Grant,Transport,230010,Contract Hire,11-Feb-2014,2704384-011403,"1,950.00",MARK & JOHN CHISHOLM T/A (CHEVRON).,89253
Dedicated Schools Grant,Dedicated Schools Grant,Transport,230010,Contract Hire,11-Feb-2014,2704384-011404,"1,755.00",MARK & JOHN CHISHOLM T/A (CHEVRON).,89253
Dedicated Schools Grant,Dedicated Schools Grant,Transport,230007,Contract Hire,11-Feb-2014,2704384-011409,"1,755.00",MARK & JOHN CHISHOLM T/A (CHEVRON).,89253
Dedicated Schools Grant,Dedicated Schools Grant,Transport,230010,Contract Hire,11-Feb-2014,2704412-58-D5-31,"1,755.00",MR GS ANDERSON.,44858
Dedicated Schools Grant,Dedicated Schools Grant,Transport,230010,Contract Hire,11-Feb-2014,2704468-1,890.00,PAUL SMITH T/A LANGLEY TAXIS.,163394
Children and Adult Services,Early Intervention and Involvement,Premises,125009,Rents,11-Feb-2014,2704568-2871,"1,233.30",THE WORK PLACE (AYCLIFFE) LTD.,52492
Children and Adult Services,Early Intervention and Involvement,Supplies and Services,352001,Conference Expenses,11-Feb-2014,2704242-9687,625.00,FAMILY LINKS.,94428
Children and Adult Services,Early Intervention and Involvement,Third Party Payments,479101,Purchase of Care,11-Feb-2014,2704161-3910002520,"9,595.00",CO DURHAM & DARLINGTON NHS FOUNDATION TRUST.,43222
Children and Adult Services,Early Intervention and Involvement,Transport,235073,Public Transport,11-Feb-2014,2704558-608,625.41,TEESDALE COMMUNITY RESOURCES (TCR).,46319
Children and Adult Services,Early Intervention and Involvement,Supplies and Services,338099,Services,11-Feb-2014,2704392-0000088360,694.00,MEDELA UK LTD.,61088
Children and Adult Services,Education,Transfer Payments,510026,School Children,11-Feb-2014,2704191,"3,903.75",DAYPARK LTD T/A YELLOW WELLIES.,43399
Children and Adult Services,Education,Transfer Payments,510026,School Children,11-Feb-2014,2704268-8317,"1,392.75",GIANT STEPS LTD.,43881
Children and Adult Services,Education,Transfer Payments,510026,School Children,11-Feb-2014,2704308-1-1HB,"1,207.05",HOWLETCH & SHOTTON CHILDCARE LTD.,49283
Children and Adult Services,Education,Transfer Payments,510026,School Children,11-Feb-2014,2704353,"1,564.88",KIDS 1ST NURSERIES DURHAM.,44386
Children and Adult Services,Education,Transfer Payments,510026,School Children,11-Feb-2014,2704366-SI-002246,"1,135.80",LEISUREWORKS.,44464
Children and Adult Services,Education,Transfer Payments,510026,School Children,11-Feb-2014,2704371,"1,419.75",LITTLE ACORNS NORTH EAST LTD.,44517
Children and Adult Services,Education,Supplies and Services,384700,Miscellaneous Expenses,11-Feb-2014,2704590-119092536-002,675.00,UNIVERSITY OF SUNDERLAND.,46578
Children and Adult Services,Education,Supplies and Services,352001,Conference Expenses,11-Feb-2014,2704591-8379,"4,620.00",UNIVERSITY OF TEESSIDE.,46579
Children and Adult Services,Education,Transport,230007,Contract Hire,11-Feb-2014,2704269-BSCH/57,"1,236.30",GILLINGHAM COACHES.,43886
Children and Adult Services,Education,Transport,230007,Contract Hire,11-Feb-2014,2704369-2946,"1,080.00",LINCAB TAXIS.,44494
Children and Adult Services,Education,Transport,230008,Contract Hire,11-Feb-2014,2704133-76,"1,425.00",CASTLE CARS.,43095
Children and Adult Services,Education,Transport,230008,Contract Hire,11-Feb-2014,2704304-94,"1,064.00",HORNDALE AJ`S TAXIS.,95705
Children and Adult Services,Education,Transport,230007,Contract Hire,11-Feb-2014,2704154-44191,"1,980.00",CJ GRIERSON.,43193
Children and Adult Services,Education,Transport,230007,Contract Hire,11-Feb-2014,2704154-44192,"1,780.00",CJ GRIERSON.,43193
Children and Adult Services,Education,Transport,230007,Contract Hire,11-Feb-2014,2704154-44193,"1,980.00",CJ GRIERSON.,43193
Children and Adult Services,Education,Transport,230007,Contract Hire,11-Feb-2014,2704223-5075/0114,766.60,ELLIOTTS OF TRIMDON.,43670
Children and Adult Services,Education,Transport,230007,Contract Hire,11-Feb-2014,2704261-16031,"11,900.00",GARNETTS LTD (COACHES).,43847
Children and Adult Services,Education,Transport,230007,Contract Hire,11-Feb-2014,2704369-2948,"1,660.00",LINCAB TAXIS.,44494
Children and Adult Services,Education,Transport,230007,Contract Hire,11-Feb-2014,2704154-44189,"1,400.00",CJ GRIERSON.,43193
Children and Adult Services,Education,Transport,230007,Contract Hire,11-Feb-2014,2704154-44190,"4,800.00",CJ GRIERSON.,43193
Children and Adult Services,Education,Transport,230007,Contract Hire,11-Feb-2014,2704202-D04,648.00,DUNCAN G CUMMINGS T/A DC TAXIS.,155555
Children and Adult Services,Education,Transport,230007,Contract Hire,11-Feb-2014,2704364-19343,"4,779.80",LEE`S COACHES LTD.,44462
Children and Adult Services,Education,Transport,230007,Contract Hire,11-Feb-2014,2704261-16029,"2,780.00",GARNETTS LTD (COACHES).,43847
Children and Adult Services,Education,Transport,230007,Contract Hire,11-Feb-2014,2704261-16033,"17,780.00",GARNETTS LTD (COACHES).,43847
Children and Adult Services,Education,Transport,230007,Contract Hire,11-Feb-2014,2704301-010507,600.00,HODGSONS COACH OPERATORS LTD.,44043
Children and Adult Services,Education,Transport,230007,Contract Hire,11-Feb-2014,2704126-205203,600.00,C & R TAXIS.,53433
Children and Adult Services,Education,Transport,230008,Contract Hire,11-Feb-2014,2704184-1309,"1,100.00",DA TAXIS.,43350
Children and Adult Services,Education,Transport,230007,Contract Hire,11-Feb-2014,2704261-16030,"4,360.00",GARNETTS LTD (COACHES).,43847
Children and Adult Services,Education,Transport,230008,Contract Hire,11-Feb-2014,2704332-31/01/14C,"1,200.00",JL EBDON.,44231
Children and Adult Services,Education,Transport,230008,Contract Hire,11-Feb-2014,2704355-KW2012,"1,100.00",KWIK CABS.,44416
Children and Adult Services,Education,Transport,230007,Contract Hire,11-Feb-2014,2704239-018,912.00,EXTREAM TAXI`S.,171111
Children and Adult Services,Education,Transport,230007,Contract Hire,11-Feb-2014,2704175-4029/01/14,"1,980.00",COUNTY COACHES.,43299
Children and Adult Services,Education,Transport,230006,Contract Hire,11-Feb-2014,2704202-DC4,576.00,DUNCAN G CUMMINGS T/A DC TAXIS.,155555
Children and Adult Services,Education,Transport,235005,Public Transport,11-Feb-2014,2704082-105684,"233,798.00",ARRIVA NORTH EAST LTD.,42776
Children and Adult Services,Education,Transport,230007,Contract Hire,11-Feb-2014,2704239-020,960.00,EXTREAM TAXI`S.,171111
Children and Adult Services,Education,Transport,230007,Contract Hire,11-Feb-2014,2704251-1/14,"1,000.00",FREEDOM PRIVATE HIRE.,72992
Children and Adult Services,Education,Transport,230007,Contract Hire,11-Feb-2014,2704251-12/13,750.00,FREEDOM PRIVATE HIRE.,72992
Children and Adult Services,Education,Transport,230007,Contract Hire,11-Feb-2014,2704205-18491,"2,460.50",DURHAM CITY COACHES.,43559
Children and Adult Services,Education,Transport,230007,Contract Hire,11-Feb-2014,2704261-16035,"3,021.00",GARNETTS LTD (COACHES).,43847
Children and Adult Services,Education,Transport,230007,Contract Hire,11-Feb-2014,2704416-00148-31/1/14,570.00,MR P GARBUTT.,44920
Children and Adult Services,Education,Transport,230007,Contract Hire,11-Feb-2014,2704154-44194,"4,960.00",CJ GRIERSON.,43193
Children and Adult Services,Education,Transport,230007,Contract Hire,11-Feb-2014,2704154-44195,"2,100.00",CJ GRIERSON.,43193
Children and Adult Services,Education,Transport,230007,Contract Hire,11-Feb-2014,2704261-16032,"7,740.00",GARNETTS LTD (COACHES).,43847
